Organisation Code,Organisation Label,Effective Date,Organisational Unit,Service Division Label,Category Internal Name,Purpose,Detailed Expenditure Code,Payment Date,Transaction Number,Irrecoverable VAT Amount,Amount,Capital Or Revenue,Benificiary Name,Procurement Card
Http://opendatacommunities.org/id/metropolitan-district-council/leeds,Leeds City Council,30/04/2016,Central & Corporate,Commercial Services Trading Services,Supplies and Services,Operational Materials,205,11-Apr-2016,1604-00001,0.00,85.51,R,A & A Electrical Distributors Ltd,No
Http://opendatacommunities.org/id/metropolitan-district-council/leeds,Leeds City Council,30/04/2016,Central & Corporate,Commercial Services Trading Services,Supplies and Services,Operational Materials,205,11-Apr-2016,1604-00002,0.00,128.10,R,A & A Electrical Distributors Ltd,No
Http://opendatacommunities.org/id/metropolitan-district-council/leeds,Leeds City Council,30/04/2016,City Development,Libraries  Arts & Heritage,Supplies and Services,Bought In Professional Services,277,28-Apr-2016,1604-00003,0.00,120.00,R,A B Jones,No
Http://opendatacommunities.org/id/metropolitan-district-council/leeds,Leeds City Council,30/04/2016,Childrens Services,Learning Skills & Universal,Third Party Payments,Services Rendered By Other Organisations,511,20-Apr-2016,1604-00004,0.00,756.60,R,A Clarkson,No
Http://opendatacommunities.org/id/metropolitan-district-council/leeds,Leeds City Council,30/04/2016,Strategic Landlord,Housing Management,Supplies and Services,Bank Charges,263,20-Apr-2016,1604-00005,0.00,26.00,R,REDACTED PERSONAL DATA,No
Http://opendatacommunities.org/id/metropolitan-district-council/leeds,Leeds City Council,30/04/2016,Environment & Housing,Parks and Countryside,Supplies and Services,Bought In Professional Services,277,22-Apr-2016,1604-00006,0.00,1289.52,R,REDACTED COMMERCIAL CONFIDENTIALITY,No
Http://opendatacommunities.org/id/metropolitan-district-council/leeds,Leeds City Council,30/04/2016,Environment & Housing,Parks and Countryside,Supplies and Services,Bought In Professional Services,277,28-Apr-2016,1604-00007,0.00,5740.55,R,REDACTED COMMERCIAL CONFIDENTIALITY,No
Http://opendatacommunities.org/id/metropolitan-district-council/leeds,Leeds City Council,30/04/2016,Childrens Services,Learning Skills & Universal,Third Party Payments,Services Rendered By Other Organisations,511,20-Apr-2016,1604-00008,0.00,3329.04,R,A E Speight,No
Http://opendatacommunities.org/id/metropolitan-district-council/leeds,Leeds City Council,30/04/2016,Childrens Services,Learning Skills & Universal,Third Party Payments,Services Rendered By Voluntary Sector,505,22-Apr-2016,1604-00009,0.00,14227.20,R,A E Speight,No
Http://opendatacommunities.org/id/metropolitan-district-council/leeds,Leeds City Council,30/04/2016,Childrens Services,Learning Skills & Universal,Third Party Payments,Services Rendered By Other Organisations,511,22-Apr-2016,1604-00010,0.00,434.72,R,A Foley,No
Http://opendatacommunities.org/id/metropolitan-district-council/leeds,Leeds City Council,30/04/2016,Childrens Services,Learning Skills & Universal,Third Party Payments,Services Rendered By Other Organisations,511,20-Apr-2016,1604-00011,0.00,1513.20,R,A Green,No
Http://opendatacommunities.org/id/metropolitan-district-council/leeds,Leeds City Council,30/04/2016,Childrens Services,Learning Skills & Universal,Third Party Payments,Services Rendered By Other Organisations,511,22-Apr-2016,1604-00012,0.00,1185.60,R,A Green,No
Http://opendatacommunities.org/id/metropolitan-district-council/leeds,Leeds City Council,30/04/2016,Childrens Services,Learning Skills & Universal,Third Party Payments,Services Rendered By Other Organisations,511,22-Apr-2016,1604-00013,0.00,829.92,R,A Hayes,No
Http://opendatacommunities.org/id/metropolitan-district-council/leeds,Leeds City Council,30/04/2016,Childrens Services,Learning Skills & Universal,Third Party Payments,Services Rendered By Other Organisations,511,22-Apr-2016,1604-00014,0.00,1185.60,R,A Hodgson,No
Http://opendatacommunities.org/id/metropolitan-district-council/leeds,Leeds City Council,30/04/2016,Central & Corporate,Commercial Services Trading Services,Supplies and Services,Operational Materials,205,05-Apr-2016,1604-00015,0.00,15.00,R,A J H  Pump Supply & Repair Ltd,No
Http://opendatacommunities.org/id/metropolitan-district-council/leeds,Leeds City Council,30/04/2016,Central & Corporate,Commercial Services Trading Services,Supplies and Services,Operational Materials,205,08-Apr-2016,1604-00016,0.00,139.25,R,A J H  Pump Supply & Repair Ltd,No
Http://opendatacommunities.org/id/metropolitan-district-council/leeds,Leeds City Council,30/04/2016,Environment & Housing,Leeds Building Services,Supplies and Services,Operational Materials,205,11-Apr-2016,1604-00017,0.00,71.08,R,A J H  Pump Supply & Repair Ltd,No
Http://opendatacommunities.org/id/metropolitan-district-council/leeds,Leeds City Council,30/04/2016,Environment & Housing,Leeds Building Services,Supplies and Services,Operational Materials,205,11-Apr-2016,1604-00018,0.00,57.78,R,A J H  Pump Supply & Repair Ltd,No
Http://opendatacommunities.org/id/metropolitan-district-council/leeds,Leeds City Council,30/04/2016,Environment & Housing,Leeds Building Services,Supplies and Services,Operational Materials,205,11-Apr-2016,1604-00019,0.00,91.50,R,A J H  Pump Supply & Repair Ltd,No
Http://opendatacommunities.org/id/metropolitan-district-council/leeds,Leeds City Council,30/04/2016,Environment & Housing,Leeds Building Services,Supplies and Services,Operational Materials,205,11-Apr-2016,1604-00020,0.00,10.50,R,A J H  Pump Supply & Repair Ltd,No
Http://opendatacommunities.org/id/metropolitan-district-council/leeds,Leeds City Council,30/04/2016,Environment & Housing,Leeds Building Services,Supplies and Services,Operational Materials,205,11-Apr-2016,1604-00021,0.00,7.00,R,A J H  Pump Supply & Repair Ltd,No
Http://opendatacommunities.org/id/metropolitan-district-council/leeds,Leeds City Council,30/04/2016,Environment & Housing,Leeds Building Services,Supplies and Services,Operational Materials,205,11-Apr-2016,1604-00022,0.00,129.00,R,A J H  Pump Supply & Repair Ltd,No
Http://opendatacommunities.org/id/metropolitan-district-council/leeds,Leeds City Council,30/04/2016,Environment & Housing,Leeds Building Services,Supplies and Services,Operational Materials,205,11-Apr-2016,1604-00023,0.00,149.90,R,A J H  Pump Supply & Repair Ltd,No
Http://opendatacommunities.org/id/metropolitan-district-council/leeds,Leeds City Council,30/04/2016,Environment & Housing,Leeds Building Services,Supplies and Services,Operational Materials,205,11-Apr-2016,1604-00024,0.00,71.08,R,A J H  Pump Supply & Repair Ltd,No
Http://opendatacommunities.org/id/metropolitan-district-council/leeds,Leeds City Council,30/04/2016,Environment & Housing,Leeds Building Services,Supplies and Services,Operational Materials,205,12-Apr-2016,1604-00025,0.00,708.00,R,A J H  Pump Supply & Repair Ltd,No
Http://opendatacommunities.org/id/metropolitan-district-council/leeds,Leeds City Council,30/04/2016,Environment & Housing,Leeds Building Services,Supplies and Services,Operational Materials,205,12-Apr-2016,1604-00026,0.00,121.45,R,A J H  Pump Supply & Repair Ltd,No
Http://opendatacommunities.org/id/metropolitan-district-council/leeds,Leeds City Council,30/04/2016,Environment & Housing,Leeds Building Services,Supplies and Services,Operational Materials,205,12-Apr-2016,1604-00027,0.00,178.80,R,A J H  Pump Supply & Repair Ltd,No
Http://opendatacommunities.org/id/metropolitan-district-council/leeds,Leeds City Council,30/04/2016,Environment & Housing,Leeds Building Services,Supplies and Services,Operational Materials,205,12-Apr-2016,1604-00028,0.00,457.55,R,A J H  Pump Supply & Repair Ltd,No
Http://opendatacommunities.org/id/metropolitan-district-council/leeds,Leeds City Council,30/04/2016,Environment & Housing,Leeds Building Services,Supplies and Services,Operational Materials,205,12-Apr-2016,1604-00029,0.00,465.30,R,A J H  Pump Supply & Repair Ltd,No
Http://opendatacommunities.org/id/metropolitan-district-council/leeds,Leeds City Council,30/04/2016,Environment & Housing,Leeds Building Services,Supplies and Services,Operational Materials,205,12-Apr-2016,1604-00030,0.00,104.11,R,A J H  Pump Supply & Repair Ltd,No
Http://opendatacommunities.org/id/metropolitan-district-council/leeds,Leeds City Council,30/04/2016,Environment & Housing,Leeds Building Services,Supplies and Services,Operational Materials,205,12-Apr-2016,1604-00031,0.00,185.75,R,A J H  Pump Supply & Repair Ltd,No
Http://opendatacommunities.org/id/metropolitan-district-council/leeds,Leeds City Council,30/04/2016,Environment & Housing,Leeds Building Services,Supplies and Services,Operational Materials,205,12-Apr-2016,1604-00032,0.00,732.00,R,A J H  Pump Supply & Repair Ltd,No
Http://opendatacommunities.org/id/metropolitan-district-council/leeds,Leeds City Council,30/04/2016,Environment & Housing,Leeds Building Services,Supplies and Services,Operational Materials,205,12-Apr-2016,1604-00033,0.00,43.85,R,A J H  Pump Supply & Repair Ltd,No
Http://opendatacommunities.org/id/metropolitan-district-council/leeds,Leeds City Council,30/04/2016,Environment & Housing,Leeds Building Services,Supplies and Services,Operational Materials,205,12-Apr-2016,1604-00034,0.00,57.90,R,A J H  Pump Supply & Repair Ltd,No
Http://opendatacommunities.org/id/metropolitan-district-council/leeds,Leeds City Council,30/04/2016,Environment & Housing,Leeds Building Services,Supplies and Services,Operational Materials,205,12-Apr-2016,1604-00035,0.00,60.00,R,A J H  Pump Supply & Repair Ltd,No
Http://opendatacommunities.org/id/metropolitan-district-council/leeds,Leeds City Council,30/04/2016,Environment & Housing,Leeds Building Services,Supplies and Services,Operational Materials,205,12-Apr-2016,1604-00036,0.00,183.00,R,A J H  Pump Supply & Repair Ltd,No
Http://opendatacommunities.org/id/metropolitan-district-council/leeds,Leeds City Council,30/04/2016,Environment & Housing,Leeds Building Services,Supplies and Services,Operational Materials,205,12-Apr-2016,1604-00037,0.00,305.00,R,A J H  Pump Supply & Repair Ltd,No
Http://opendatacommunities.org/id/metropolitan-district-council/leeds,Leeds City Council,30/04/2016,Environment & Housing,Leeds Building Services,Supplies and Services,Operational Materials,205,12-Apr-2016,1604-00038,0.00,124.50,R,A J H  Pump Supply & Repair Ltd,No
Http://opendatacommunities.org/id/metropolitan-district-council/leeds,Leeds City Council,30/04/2016,Central & Corporate,Commercial Services Trading Services,Supplies and Services,Operational Materials,205,14-Apr-2016,1604-00039,0.00,152.40,R,A J H  Pump Supply & Repair Ltd,No
Http://opendatacommunities.org/id/metropolitan-district-council/leeds,Leeds City Council,30/04/2016,Environment & Housing,Leeds Building Services,Supplies and Services,Operational Materials,205,15-Apr-2016,1604-00040,0.00,57.78,R,A J H  Pump Supply & Repair Ltd,No
Http://opendatacommunities.org/id/metropolitan-district-council/leeds,Leeds City Council,30/04/2016,Environment & Housing,Leeds Building Services,Supplies and Services,Operational Materials,205,19-Apr-2016,1604-00041,0.00,200.00,R,A J H  Pump Supply & Repair Ltd,No
Http://opendatacommunities.org/id/metropolitan-district-council/leeds,Leeds City Council,30/04/2016,Environment & Housing,Leeds Building Services,Supplies and Services,Operational Materials,205,20-Apr-2016,1604-00042,0.00,220.00,R,A J H  Pump Supply & Repair Ltd,No
Http://opendatacommunities.org/id/metropolitan-district-council/leeds,Leeds City Council,30/04/2016,Environment & Housing,Leeds Building Services,Supplies and Services,Operational Materials,205,20-Apr-2016,1604-00043,0.00,998.00,R,A J H  Pump Supply & Repair Ltd,No
Http://opendatacommunities.org/id/metropolitan-district-council/leeds,Leeds City Council,30/04/2016,Environment & Housing,Leeds Building Services,Supplies and Services,Operational Materials,205,28-Apr-2016,1604-00044,0.00,967.00,R,A J H  Pump Supply & Repair Ltd,No
Http://opendatacommunities.org/id/metropolitan-district-council/leeds,Leeds City Council,30/04/2016,Environment & Housing,Leeds Building Services,Supplies and Services,Operational Materials,205,29-Apr-2016,1604-00045,0.00,112.95,R,A J H  Pump Supply & Repair Ltd,No
Http://opendatacommunities.org/id/metropolitan-district-council/leeds,Leeds City Council,30/04/2016,Environment & Housing,Leeds Building Services,Supplies and Services,Operational Materials,205,29-Apr-2016,1604-00046,0.00,42.00,R,A J H  Pump Supply & Repair Ltd,No
Http://opendatacommunities.org/id/metropolitan-district-council/leeds,Leeds City Council,30/04/2016,Environment & Housing,Leeds Building Services,Supplies and Services,Operational Materials,205,29-Apr-2016,1604-00047,0.00,1279.00,R,A J H  Pump Supply & Repair Ltd,No
Http://opendatacommunities.org/id/metropolitan-district-council/leeds,Leeds City Council,30/04/2016,Environment & Housing,Leeds Building Services,Supplies and Services,Operational Materials,205,29-Apr-2016,1604-00048,0.00,96.00,R,A J H  Pump Supply & Repair Ltd,No
Http://opendatacommunities.org/id/metropolitan-district-council/leeds,Leeds City Council,30/04/2016,Environment & Housing,Leeds Building Services,Supplies and Services,Operational Materials,205,29-Apr-2016,1604-00049,0.00,95.00,R,A J H  Pump Supply & Repair Ltd,No
Http://opendatacommunities.org/id/metropolitan-district-council/leeds,Leeds City Council,30/04/2016,Environment & Housing,Leeds Building Services,Supplies and Services,Operational Materials,205,29-Apr-2016,1604-00050,0.00,186.87,R,A J H  Pump Supply & Repair Ltd,No
Http://opendatacommunities.org/id/metropolitan-district-council/leeds,Leeds City Council,30/04/2016,Environment & Housing,Leeds Building Services,Supplies and Services,Operational Materials,205,29-Apr-2016,1604-00051,0.00,125.00,R,A J H  Pump Supply & Repair Ltd,No
Http://opendatacommunities.org/id/metropolitan-district-council/leeds,Leeds City Council,30/04/2016,Environment & Housing,Leeds Building Services,Supplies and Services,Operational Materials,205,29-Apr-2016,1604-00052,0.00,255.00,R,A J H  Pump Supply & Repair Ltd,No
Http://opendatacommunities.org/id/metropolitan-district-council/leeds,Leeds City Council,30/04/2016,Environment & Housing,Leeds Building Services,Supplies and Services,Operational Materials,205,29-Apr-2016,1604-00053,0.00,23.40,R,A J H  Pump Supply & Repair Ltd,No
Http://opendatacommunities.org/id/metropolitan-district-council/leeds,Leeds City Council,30/04/2016,Environment & Housing,Leeds Building Services,Supplies and Services,Operational Materials,205,29-Apr-2016,1604-00054,0.00,30.46,R,A J H  Pump Supply & Repair Ltd,No
Http://opendatacommunities.org/id/metropolitan-district-council/leeds,Leeds City Council,30/04/2016,Environment & Housing,Leeds Building Services,Supplies and Services,Operational Materials,205,29-Apr-2016,1604-00055,0.00,70.45,R,A J H  Pump Supply & Repair Ltd,No
Http://opendatacommunities.org/id/metropolitan-district-council/leeds,Leeds City Council,30/04/2016,Environment & Housing,Leeds Building Services,Supplies and Services,Operational Materials,205,29-Apr-2016,1604-00056,0.00,29.70,R,A J H  Pump Supply & Repair Ltd,No
Http://opendatacommunities.org/id/metropolitan-district-council/leeds,Leeds City Council,30/04/2016,Environment & Housing,Leeds Building Services,Supplies and Services,Operational Materials,205,29-Apr-2016,1604-00057,0.00,192.10,R,A J H  Pump Supply & Repair Ltd,No
Http://opendatacommunities.org/id/metropolitan-district-council/leeds,Leeds City Council,30/04/2016,Environment & Housing,Leeds Building Services,Supplies and Services,Operational Materials,205,29-Apr-2016,1604-00058,0.00,8.40,R,A J H  Pump Supply & Repair Ltd,No
Http://opendatacommunities.org/id/metropolitan-district-council/leeds,Leeds City Council,30/04/2016,Environment & Housing,Leeds Building Services,Supplies and Services,Operational Materials,205,29-Apr-2016,1604-00059,0.00,415.00,R,A J H  Pump Supply & Repair Ltd,No
Http://opendatacommunities.org/id/metropolitan-district-council/leeds,Leeds City Council,30/04/2016,Environment & Housing,Leeds Building Services,Supplies and Services,Operational Materials,205,29-Apr-2016,1604-00060,0.00,30.44,R,A J H  Pump Supply & Repair Ltd,No
Http://opendatacommunities.org/id/metropolitan-district-council/leeds,Leeds City Council,30/04/2016,Environment & Housing,Leeds Building Services,Supplies and Services,Operational Furniture And Equipment,203,29-Apr-2016,1604-00061,0.00,110.00,R,A J H  Pump Supply & Repair Ltd,No
Http://opendatacommunities.org/id/metropolitan-district-council/leeds,Leeds City Council,30/04/2016,Environment & Housing,Leeds Building Services,Supplies and Services,Operational Materials,205,29-Apr-2016,1604-00062,0.00,113.40,R,A J H  Pump Supply & Repair Ltd,No
Http://opendatacommunities.org/id/metropolitan-district-council/leeds,Leeds City Council,30/04/2016,Environment & Housing,Leeds Building Services,Supplies and Services,Operational Materials,205,29-Apr-2016,1604-00063,0.00,250.00,R,A J H  Pump Supply & Repair Ltd,No
Http://opendatacommunities.org/id/metropolitan-district-council/leeds,Leeds City Council,30/04/2016,Environment & Housing,Leeds Building Services,Supplies and Services,Operational Materials,205,29-Apr-2016,1604-00064,0.00,719.00,R,A J H  Pump Supply & Repair Ltd,No
Http://opendatacommunities.org/id/metropolitan-district-council/leeds,Leeds City Council,30/04/2016,City Development,Libraries  Arts & Heritage,Supplies and Services,Resaleable Materials,204,01-Apr-2016,1604-00065,0.00,2002.35,R,A J Promotions,No
Http://opendatacommunities.org/id/metropolitan-district-council/leeds,Leeds City Council,30/04/2016,Environment & Housing,Parks and Countryside,Supplies and Services,Resaleable Materials,204,01-Apr-2016,1604-00066,0.00,505.00,R,A J Promotions,No
Http://opendatacommunities.org/id/metropolitan-district-council/leeds,Leeds City Council,30/04/2016,City Development,Libraries  Arts & Heritage,Supplies and Services,Resaleable Materials,204,01-Apr-2016,1604-00067,0.00,1019.06,R,A J Promotions,No
Http://opendatacommunities.org/id/metropolitan-district-council/leeds,Leeds City Council,30/04/2016,Environment & Housing,Parks and Countryside,Supplies and Services,Resaleable Materials,204,06-Apr-2016,1604-00068,0.00,620.00,R,A J Promotions,No
Http://opendatacommunities.org/id/metropolitan-district-council/leeds,Leeds City Council,30/04/2016,City Development,Libraries  Arts & Heritage,Supplies and Services,Resaleable Materials,204,13-Apr-2016,1604-00069,0.00,218.79,R,A J Promotions,No
Http://opendatacommunities.org/id/metropolitan-district-council/leeds,Leeds City Council,30/04/2016,City Development,Libraries  Arts & Heritage,Supplies and Services,Resaleable Materials,204,13-Apr-2016,1604-00070,0.00,53.55,R,A J Promotions,No
Http://opendatacommunities.org/id/metropolitan-district-council/leeds,Leeds City Council,30/04/2016,Environment & Housing,Parks and Countryside,Supplies and Services,Resaleable Materials,204,25-Apr-2016,1604-00071,0.00,164.60,R,A J Promotions,No
Http://opendatacommunities.org/id/metropolitan-district-council/leeds,Leeds City Council,30/04/2016,Childrens Services,Learning Skills & Universal,Third Party Payments,Services Rendered By Other Organisations,511,22-Apr-2016,1604-00072,0.00,2371.20,R,A K Walsh,No
Http://opendatacommunities.org/id/metropolitan-district-council/leeds,Leeds City Council,30/04/2016,Childrens Services,Safeguarding Targeted & Specialist,Transfer Payments,Leaving Care Allowances,634,18-Apr-2016,1604-00073,0.00,200.00,R,REDACTED PERSONAL DATA,No
Http://opendatacommunities.org/id/metropolitan-district-council/leeds,Leeds City Council,30/04/2016,Childrens Services,Learning Skills & Universal,Third Party Payments,Services Rendered By Other Organisations,511,20-Apr-2016,1604-00074,0.00,768.24,R,A Longbottom,No
Http://opendatacommunities.org/id/metropolitan-district-council/leeds,Leeds City Council,30/04/2016,Citizens and Communities,Customer Access,Supplies and Services,Other Hired And Contracted Services,265,04-Apr-2016,1604-00075,0.00,931.63,R,A Mohammed,No
Http://opendatacommunities.org/id/metropolitan-district-council/leeds,Leeds City Council,30/04/2016,Citizens and Communities,Customer Access,Supplies and Services,Other Hired And Contracted Services,265,04-Apr-2016,1604-00076,0.00,404.00,R,A Namaki,No
Http://opendatacommunities.org/id/metropolitan-district-council/leeds,Leeds City Council,30/04/2016,Environment & Housing,Statutory Housing,Transport,Public Transport Expenses,310,19-Apr-2016,1604-00077,0.00,32.00,R,REDACTED PERSONAL DATA,No
Http://opendatacommunities.org/id/metropolitan-district-council/leeds,Leeds City Council,30/04/2016,City Development,Libraries  Arts & Heritage,Supplies and Services,Books & Audio-Visual Materials,206,08-Apr-2016,1604-00078,0.00,138.20,R,A S Jhagra,No
Http://opendatacommunities.org/id/metropolitan-district-council/leeds,Leeds City Council,30/04/2016,City Development,Libraries  Arts & Heritage,Supplies and Services,Books & Audio-Visual Materials,206,29-Apr-2016,1604-00079,0.00,139.65,R,A S Jhagra,No
Http://opendatacommunities.org/id/metropolitan-district-council/leeds,Leeds City Council,30/04/2016,Citizens and Communities,Customer Access,Supplies and Services,Other Hired And Contracted Services,265,04-Apr-2016,1604-00080,0.00,230.00,R,A Sheikholeslami,No
Http://opendatacommunities.org/id/metropolitan-district-council/leeds,Leeds City Council,30/04/2016,Civic Enterprise Leeds,Business Support Centre,Supplies and Services,Other Hired And Contracted Services,265,15-Apr-2016,1604-00081,0.00,46.25,R,A Star Couriers Ltd,No
Http://opendatacommunities.org/id/metropolitan-district-council/leeds,Leeds City Council,30/04/2016,Civic Enterprise Leeds,Business Support Centre,Supplies and Services,Other Hired And Contracted Services,265,28-Apr-2016,1604-00082,0.00,46.25,R,A Star Couriers Ltd,No
Http://opendatacommunities.org/id/metropolitan-district-council/leeds,Leeds City Council,30/04/2016,Environment & Housing,Waste Management,Supplies and Services,Office Consumables,210,29-Apr-2016,1604-00083,0.00,395.40,R,A T Nerac Ltd,No
Http://opendatacommunities.org/id/metropolitan-district-council/leeds,Leeds City Council,30/04/2016,Childrens Services,Learning Skills & Universal,Third Party Payments,Services Rendered By Other Organisations,511,20-Apr-2016,1604-00084,0.00,1513.20,R,A Walding,No
Http://opendatacommunities.org/id/metropolitan-district-council/leeds,Leeds City Council,30/04/2016,Environment & Housing,Parks and Countryside,Supplies and Services,Other Hired And Contracted Services,265,29-Apr-2016,1604-00085,0.00,200.00,R,A Wright,No
Http://opendatacommunities.org/id/metropolitan-district-council/leeds,Leeds City Council,30/04/2016,Environment & Housing,Waste Management,Capital,Furniture And Equipment,5,05-Apr-2016,1604-00086,0.00,5608.00,C,A&C Weber Uk Ltd,No
Http://opendatacommunities.org/id/metropolitan-district-council/leeds,Leeds City Council,30/04/2016,Environment & Housing,Waste Management,Capital,Furniture And Equipment,5,22-Apr-2016,1604-00087,0.00,8905.00,C,A&C Weber Uk Ltd,No
Http://opendatacommunities.org/id/metropolitan-district-council/leeds,Leeds City Council,30/04/2016,Environment & Housing,Waste Management,Capital,Furniture And Equipment,5,22-Apr-2016,1604-00088,0.00,2130.00,C,A&C Weber Uk Ltd,No
Http://opendatacommunities.org/id/metropolitan-district-council/leeds,Leeds City Council,30/04/2016,Central & Corporate,Commercial Services Trading Services,Supplies and Services,Other Hired And Contracted Services,265,29-Apr-2016,1604-00089,0.00,6847.00,R,Aalco Leeds,No
Http://opendatacommunities.org/id/metropolitan-district-council/leeds,Leeds City Council,30/04/2016,Central & Corporate,Finance,Employees,Training & Development,70,15-Apr-2016,1604-00090,0.00,88.00,R,Aat,No
Http://opendatacommunities.org/id/metropolitan-district-council/leeds,Leeds City Council as Accountable Body,30/04/2016,Social Services Pooled Budgets,Leeds Community Equip Store Pooled Budgt,Supplies and Services,Other Equipment,203,25-Apr-2016,1604-00091,0.00,20300.00,R,Aat (Gb) Ltd,No
Http://opendatacommunities.org/id/metropolitan-district-council/leeds,Leeds City Council,30/04/2016,Central & Corporate,Finance,Transport,Public Transport Expenses,310,13-Apr-2016,1604-00092,0.00,442.00,R,Ab Cars (Garforth) Ltd,No
Http://opendatacommunities.org/id/metropolitan-district-council/leeds,Leeds City Council,30/04/2016,Environment & Housing,Streetscene Environmental Services  ,Supplies and Services,Postages,212,02-Mar-2016,1604-00093,0.00,13.50,,Abacus Express,Yes
Http://opendatacommunities.org/id/metropolitan-district-council/leeds,Leeds City Council,30/04/2016,City Development,Economic Development  ,Supplies and Services,Publication And Promotion,267,15-Mar-2016,1604-00094,0.00,13.50,,Abacus Express,Yes
Http://opendatacommunities.org/id/metropolitan-district-council/leeds,Leeds City Council,30/04/2016,Environment & Housing,Streetscene Environmental Services  ,Supplies and Services,Postages,212,18-Mar-2016,1604-00095,0.00,13.50,,Abacus Express,Yes
Http://opendatacommunities.org/id/metropolitan-district-council/leeds,Leeds City Council,30/04/2016,City Development,Economic Development  ,Supplies and Services,Publication And Promotion,267,18-Mar-2016,1604-00096,0.00,13.50,,Abacus Express,Yes
Http://opendatacommunities.org/id/metropolitan-district-council/leeds,Leeds City Council,30/04/2016,City Development,Economic Development  ,Supplies and Services,Publication And Promotion,267,22-Mar-2016,1604-00097,0.00,20.50,,Abacus Express,Yes
Http://opendatacommunities.org/id/metropolitan-district-council/leeds,Leeds City Council,30/04/2016,Childrens Services,Safeguarding Targeted & Specialist,Support Services,Legal Disbursements,411,04-Apr-2016,1604-00098,0.00,14.51,R,Abacus Express Limited,No
Http://opendatacommunities.org/id/metropolitan-district-council/leeds,Leeds City Council,30/04/2016,Childrens Services,Safeguarding Targeted & Specialist,Support Services,Legal Disbursements,411,06-Apr-2016,1604-00099,0.00,31.02,R,Abacus Express Limited,No
Http://opendatacommunities.org/id/metropolitan-district-council/leeds,Leeds City Council,30/04/2016,Childrens Services,Safeguarding Targeted & Specialist,Support Services,Legal Disbursements,411,06-Apr-2016,1604-00100,0.00,31.02,R,Abacus Express Limited,No
Http://opendatacommunities.org/id/metropolitan-district-council/leeds,Leeds City Council,30/04/2016,Childrens Services,Safeguarding Targeted & Specialist,Support Services,Legal Disbursements,411,06-Apr-2016,1604-00101,0.00,31.02,R,Abacus Express Limited,No
Http://opendatacommunities.org/id/metropolitan-district-council/leeds,Leeds City Council,30/04/2016,City Development,Planning & Sustainable Development,Supplies and Services,Other Hired And Contracted Services,265,08-Apr-2016,1604-00102,0.00,14.51,R,Abacus Express Limited,No
Http://opendatacommunities.org/id/metropolitan-district-council/leeds,Leeds City Council,30/04/2016,City Development,Planning & Sustainable Development,Supplies and Services,Other Hired And Contracted Services,265,08-Apr-2016,1604-00103,0.00,14.51,R,Abacus Express Limited,No
Http://opendatacommunities.org/id/metropolitan-district-council/leeds,Leeds City Council,30/04/2016,City Development,Planning & Sustainable Development,Supplies and Services,Other Hired And Contracted Services,265,12-Apr-2016,1604-00104,0.00,14.51,R,Abacus Express Limited,No
Http://opendatacommunities.org/id/metropolitan-district-council/leeds,Leeds City Council,30/04/2016,City Development,Planning & Sustainable Development,Supplies and Services,Other Hired And Contracted Services,265,12-Apr-2016,1604-00105,0.00,14.51,R,Abacus Express Limited,No
Http://opendatacommunities.org/id/metropolitan-district-council/leeds,Leeds City Council,30/04/2016,City Development,Planning & Sustainable Development,Supplies and Services,Other Hired And Contracted Services,265,12-Apr-2016,1604-00106,0.00,14.51,R,Abacus Express Limited,No
Http://opendatacommunities.org/id/metropolitan-district-council/leeds,Leeds City Council,30/04/2016,City Development,Planning & Sustainable Development,Supplies and Services,Other Hired And Contracted Services,265,12-Apr-2016,1604-00107,0.00,14.51,R,Abacus Express Limited,No
Http://opendatacommunities.org/id/metropolitan-district-council/leeds,Leeds City Council,30/04/2016,City Development,Planning & Sustainable Development,Supplies and Services,Other Hired And Contracted Services,265,12-Apr-2016,1604-00108,0.00,14.51,R,Abacus Express Limited,No
Http://opendatacommunities.org/id/metropolitan-district-council/leeds,Leeds City Council,30/04/2016,City Development,Planning & Sustainable Development,Supplies and Services,Other Hired And Contracted Services,265,12-Apr-2016,1604-00109,0.00,14.51,R,Abacus Express Limited,No
Http://opendatacommunities.org/id/metropolitan-district-council/leeds,Leeds City Council,30/04/2016,City Development,Planning & Sustainable Development,Supplies and Services,Other Hired And Contracted Services,265,12-Apr-2016,1604-00110,0.00,14.51,R,Abacus Express Limited,No
Http://opendatacommunities.org/id/metropolitan-district-council/leeds,Leeds City Council,30/04/2016,Childrens Services,Safeguarding Targeted & Specialist,Support Services,Legal Disbursements,411,15-Apr-2016,1604-00111,0.00,15.00,R,Abacus Express Limited,No
Http://opendatacommunities.org/id/metropolitan-district-council/leeds,Leeds City Council,30/04/2016,Childrens Services,Safeguarding Targeted & Specialist,Support Services,Legal Disbursements,411,15-Apr-2016,1604-00112,0.00,31.02,R,Abacus Express Limited,No
Http://opendatacommunities.org/id/metropolitan-district-council/leeds,Leeds City Council,30/04/2016,Childrens Services,Safeguarding Targeted & Specialist,Support Services,Legal Disbursements,411,15-Apr-2016,1604-00113,0.00,55.50,R,Abacus Express Limited,No
Http://opendatacommunities.org/id/metropolitan-district-council/leeds,Leeds City Council,30/04/2016,Childrens Services,Safeguarding Targeted & Specialist,Support Services,Legal Disbursements,411,15-Apr-2016,1604-00114,0.00,37.63,R,Abacus Express Limited,No
Http://opendatacommunities.org/id/metropolitan-district-council/leeds,Leeds City Council,30/04/2016,Childrens Services,Safeguarding Targeted & Specialist,Support Services,Legal Disbursements,411,15-Apr-2016,1604-00115,0.00,14.51,R,Abacus Express Limited,No
Http://opendatacommunities.org/id/metropolitan-district-council/leeds,Leeds City Council,30/04/2016,Central & Corporate,Legal Services,Support Services,Legal Disbursements,411,20-Apr-2016,1604-00116,0.00,16.66,R,Abacus Express Limited,No
Http://opendatacommunities.org/id/metropolitan-district-council/leeds,Leeds City Council,30/04/2016,Civic Enterprise Leeds,Business Support Centre,Supplies and Services,Computer Software & Equipment,214,08-Apr-2016,1604-00117,0.00,8182.00,R,Abacus Software Ltd,No
Http://opendatacommunities.org/id/metropolitan-district-council/leeds,Leeds City Council,30/04/2016,Environment & Housing,Environmental Action (South),Supplies and Services,Other Hired And Contracted Services,265,07-Apr-2016,1604-00118,0.00,16.60,R,Abbey House Veterinary Hospital,No
Http://opendatacommunities.org/id/metropolitan-district-council/leeds,Leeds City Council,30/04/2016,Environment & Housing,Environmental Action (South),Supplies and Services,Other Hired And Contracted Services,265,07-Apr-2016,1604-00119,0.00,50.18,R,Abbey House Veterinary Hospital,No
Http://opendatacommunities.org/id/metropolitan-district-council/leeds,Leeds City Council,30/04/2016,Adult Social Care,Services For Older People - 65 And Over,Third Party Payments,Home Care,568,21-Apr-2016,1604-00120,0.00,3580.50,R,Abbeyfield The Dales Limited,No
Http://opendatacommunities.org/id/metropolitan-district-council/leeds,Leeds City Council,30/04/2016,Adult Social Care,Services For Older People - 65 And Over,Third Party Payments,Home Care,568,29-Apr-2016,1604-00121,0.00,1328.26,R,Abbeyfield The Dales Limited,No
Http://opendatacommunities.org/id/metropolitan-district-council/leeds,Leeds City Council,30/04/2016,Environment & Housing,Parks and Countryside,Supplies and Services,Other Hired And Contracted Services,265,14-Apr-2016,1604-00122,0.00,2100.00,R,Abbotts Memorials,No
Http://opendatacommunities.org/id/metropolitan-district-council/leeds,Leeds City Council,30/04/2016,Childrens Services,Learning Skills & Universal,Third Party Payments,Services Rendered By Other Organisations,511,20-Apr-2016,1604-00123,0.00,7566.00,R,Abc Daycare And Ozone Out Of School,No
Http://opendatacommunities.org/id/metropolitan-district-council/leeds,Leeds City Council,30/04/2016,Childrens Services,Learning Skills & Universal,Third Party Payments,Services Rendered By Other Organisations,511,22-Apr-2016,1604-00124,0.00,9484.80,R,Abc Daycare And Ozone Out Of School,No
Http://opendatacommunities.org/id/metropolitan-district-council/leeds,Leeds City Council,30/04/2016,Childrens Services,Learning Skills & Universal,Third Party Payments,Services Rendered By Other Organisations,511,20-Apr-2016,1604-00125,0.00,5296.20,R,Abc Nursery At Lufc,No
Http://opendatacommunities.org/id/metropolitan-district-council/leeds,Leeds City Council,30/04/2016,Childrens Services,Learning Skills & Universal,Third Party Payments,Services Rendered By Other Organisations,511,22-Apr-2016,1604-00126,0.00,14227.20,R,Abc Nursery At Lufc,No
Http://opendatacommunities.org/id/metropolitan-district-council/leeds,Leeds City Council,30/04/2016,Childrens Services,Learning Skills & Universal,Third Party Payments,Services Rendered By Other Organisations,511,20-Apr-2016,1604-00127,0.00,2269.80,R,Abc@D'S Childcare Services,No
Http://opendatacommunities.org/id/metropolitan-district-council/leeds,Leeds City Council,30/04/2016,Childrens Services,Learning Skills & Universal,Third Party Payments,Services Rendered By Other Organisations,511,22-Apr-2016,1604-00128,0.00,592.80,R,Abc@D'S Childcare Services,No
Http://opendatacommunities.org/id/metropolitan-district-council/leeds,Leeds City Council,30/04/2016,Strategic Accounts,Strategic,Supplies and Services,Non-Recurring Grants,227,01-Apr-2016,1604-00129,0.00,435.00,R,Aberford And District Parish Council,No
Http://opendatacommunities.org/id/metropolitan-district-council/leeds,Leeds City Council,30/04/2016,Strategic Accounts,Strategic,Supplies and Services,Office Consumables,210,01-Apr-2016,1604-00130,0.00,15000.00,R,Aberford And District Parish Council,No
Http://opendatacommunities.org/id/metropolitan-district-council/leeds,Leeds City Council,30/04/2016,Adult Social Care,Services For Older People - 65 And Over,Third Party Payments,Nursing Home,570,06-Apr-2016,1604-00131,0.00,28833.52,R,Aberford Hall,No
Http://opendatacommunities.org/id/metropolitan-district-council/leeds,Leeds City Council,30/04/2016,Adult Social Care,Services For Older People - 65 And Over,Third Party Payments,Nursing Care Dementia,574,06-Apr-2016,1604-00132,0.00,-3678.26,R,Aberford Hall,No
Http://opendatacommunities.org/id/metropolitan-district-council/leeds,Leeds City Council,30/04/2016,Adult Social Care,Services For Older People - 65 And Over,Third Party Payments,Residential,580,06-Apr-2016,1604-00133,0.00,5851.87,R,Aberford Hall,No
Http://opendatacommunities.org/id/metropolitan-district-council/leeds,Leeds City Council,30/04/2016,Environment & Housing,Leeds Building Services,Supplies and Services,Operational Materials,205,12-Apr-2016,1604-00134,0.00,225.00,R,Abi Garage Doors Ltd,No
Http://opendatacommunities.org/id/metropolitan-district-council/leeds,Leeds City Council,30/04/2016,Insurance,Insurance,Supplies and Services,Insurance Claims,248,12-Apr-2016,1604-00135,0.00,280.00,R,REDACTED PERSONAL DATA,No
Http://opendatacommunities.org/id/metropolitan-district-council/leeds,Leeds City Council,30/04/2016,Citizens and Communities,Benefits  Wlefare and Poverty,Supplies and Services,Grant Related Expenditure,290,29-Apr-2016,1604-00136,0.00,1350.00,R,Abigail Housing,No
Http://opendatacommunities.org/id/metropolitan-district-council/leeds,Leeds City Council,30/04/2016,City Development,Libraries  Arts & Heritage  ,Supplies and Services,Office Furniture & Equipment,201,08-Mar-2016,1604-00137,0.00,25.67,,Abo Leeds,Yes
Http://opendatacommunities.org/id/metropolitan-district-council/leeds,Leeds City Council,30/04/2016,City Development,Libraries  Arts & Heritage  ,Supplies and Services,Food & Drink,231,24-Mar-2016,1604-00138,0.00,73.12,,Abo Leeds,Yes
Http://opendatacommunities.org/id/metropolitan-district-council/leeds,Leeds City Council,30/04/2016,Childrens Services,Learning Skills & Universal,Employees,Basic Pay,1,01-Apr-2016,1604-00139,0.00,3038.00,R,Academic Appointments Ltd,No
Http://opendatacommunities.org/id/metropolitan-district-council/leeds,Leeds City Council,30/04/2016,Childrens Services,Safeguarding Targeted & Specialist,Employees,Agency Staff,8,08-Apr-2016,1604-00140,0.00,1071.10,R,Academic Appointments Ltd,No
Http://opendatacommunities.org/id/metropolitan-district-council/leeds,Leeds City Council,30/04/2016,Childrens Services,Safeguarding Targeted & Specialist,Employees,Agency Staff,8,15-Apr-2016,1604-00141,0.00,1071.10,R,Academic Appointments Ltd,No
Http://opendatacommunities.org/id/metropolitan-district-council/leeds,Leeds City Council,30/04/2016,Childrens Services,Safeguarding Targeted & Specialist,Employees,Agency Staff,8,22-Apr-2016,1604-00142,0.00,1071.10,R,Academic Appointments Ltd,No
Http://opendatacommunities.org/id/metropolitan-district-council/leeds,Leeds City Council,30/04/2016,Childrens Services,Safeguarding Targeted & Specialist,Employees,Agency Staff,8,29-Apr-2016,1604-00143,0.00,856.88,R,Academic Appointments Ltd,No
Http://opendatacommunities.org/id/metropolitan-district-council/leeds,Leeds City Council,30/04/2016,Childrens Services,Learning Skills & Universal,Employees,Basic Pay,1,29-Apr-2016,1604-00144,0.00,4774.00,R,Academic Appointments Ltd,No
Http://opendatacommunities.org/id/metropolitan-district-council/leeds,Leeds City Council,30/04/2016,Citizens and Communities,Benefits  Wlefare and Poverty,Transfer Payments,Housing Benefits,641,18-Apr-2016,1604-00145,0.00,180.42,R,Accent Foundation Ltd,No
Http://opendatacommunities.org/id/metropolitan-district-council/leeds,Leeds City Council,30/04/2016,Environment & Housing,Community Safety,Transport,Hire Of Movable Plant & Machinery,315,01-Apr-2016,1604-00146,0.00,1263.57,R,Access Hire Nationwide Ltd,No
Http://opendatacommunities.org/id/metropolitan-district-council/leeds,Leeds City Council,30/04/2016,Environment & Housing,Parks And Countryside  ,Supplies and Services,Operational Materials,205,23-Mar-2016,1604-00147,0.00,46.95,,Access Locksmiths,Yes
Http://opendatacommunities.org/id/metropolitan-district-council/leeds,Leeds City Council,30/04/2016,Adult Social Care,Services For Adults Under 65 Learn/Dis  ,Supplies and Services,Office Furniture & Equipment,201,29-Mar-2016,1604-00148,0.00,11.04,,Access Locksmiths,Yes
Http://opendatacommunities.org/id/metropolitan-district-council/leeds,Leeds City Council,30/04/2016,Environment & Housing,Waste Management,Supplies and Services,Operational Furniture And Equipment,203,06-Apr-2016,1604-00149,0.00,260.75,R,Access Locksmiths (Leeds) Limited,No
Http://opendatacommunities.org/id/metropolitan-district-council/leeds,Leeds City Council,30/04/2016,Strategic Landlord,Property and Contracts,Premises,General Maintenance,104,08-Apr-2016,1604-00150,0.00,183.32,R,Access Locksmiths (Leeds) Limited,No
Http://opendatacommunities.org/id/metropolitan-district-council/leeds,Leeds City Council,30/04/2016,Strategic Landlord,Property and Contracts,Premises,General Maintenance,104,08-Apr-2016,1604-00151,0.00,134.79,R,Access Locksmiths (Leeds) Limited,No
Http://opendatacommunities.org/id/metropolitan-district-council/leeds,Leeds City Council,30/04/2016,Strategic Landlord,Property and Contracts,Premises,General Maintenance,104,08-Apr-2016,1604-00152,0.00,74.93,R,Access Locksmiths (Leeds) Limited,No
Http://opendatacommunities.org/id/metropolitan-district-council/leeds,Leeds City Council,30/04/2016,Environment & Housing,Leeds Building Services,Supplies and Services,Operational Materials,205,11-Apr-2016,1604-00153,0.00,89.20,R,Access Locksmiths (Leeds) Limited,No
Http://opendatacommunities.org/id/metropolitan-district-council/leeds,Leeds City Council,30/04/2016,Environment & Housing,Leeds Building Services,Supplies and Services,Operational Materials,205,11-Apr-2016,1604-00154,0.00,50.31,R,Access Locksmiths (Leeds) Limited,No
Http://opendatacommunities.org/id/metropolitan-district-council/leeds,Leeds City Council,30/04/2016,Environment & Housing,Leeds Building Services,Supplies and Services,Operational Materials,205,11-Apr-2016,1604-00155,0.00,61.46,R,Access Locksmiths (Leeds) Limited,No
Http://opendatacommunities.org/id/metropolitan-district-council/leeds,Leeds City Council,30/04/2016,Environment & Housing,Leeds Building Services,Supplies and Services,Operational Materials,205,11-Apr-2016,1604-00156,0.00,26.82,R,Access Locksmiths (Leeds) Limited,No
Http://opendatacommunities.org/id/metropolitan-district-council/leeds,Leeds City Council,30/04/2016,Environment & Housing,Leeds Building Services,Supplies and Services,Operational Materials,205,11-Apr-2016,1604-00157,0.00,46.72,R,Access Locksmiths (Leeds) Limited,No
Http://opendatacommunities.org/id/metropolitan-district-council/leeds,Leeds City Council,30/04/2016,Environment & Housing,Leeds Building Services,Supplies and Services,Operational Materials,205,11-Apr-2016,1604-00158,0.00,28.21,R,Access Locksmiths (Leeds) Limited,No
Http://opendatacommunities.org/id/metropolitan-district-council/leeds,Leeds City Council,30/04/2016,Environment & Housing,Leeds Building Services,Supplies and Services,Operational Materials,205,11-Apr-2016,1604-00159,0.00,7.00,R,Access Locksmiths (Leeds) Limited,No
Http://opendatacommunities.org/id/metropolitan-district-council/leeds,Leeds City Council,30/04/2016,Environment & Housing,Leeds Building Services,Supplies and Services,Operational Materials,205,11-Apr-2016,1604-00160,0.00,83.88,R,Access Locksmiths (Leeds) Limited,No
Http://opendatacommunities.org/id/metropolitan-district-council/leeds,Leeds City Council,30/04/2016,Environment & Housing,Leeds Building Services,Supplies and Services,Operational Materials,205,11-Apr-2016,1604-00161,0.00,5.00,R,Access Locksmiths (Leeds) Limited,No
Http://opendatacommunities.org/id/metropolitan-district-council/leeds,Leeds City Council,30/04/2016,Environment & Housing,Leeds Building Services,Supplies and Services,Operational Materials,205,11-Apr-2016,1604-00162,0.00,133.30,R,Access Locksmiths (Leeds) Limited,No
Http://opendatacommunities.org/id/metropolitan-district-council/leeds,Leeds City Council,30/04/2016,Environment & Housing,Leeds Building Services,Supplies and Services,Operational Materials,205,11-Apr-2016,1604-00163,0.00,17.06,R,Access Locksmiths (Leeds) Limited,No
Http://opendatacommunities.org/id/metropolitan-district-council/leeds,Leeds City Council,30/04/2016,Environment & Housing,Leeds Building Services,Supplies and Services,Operational Materials,205,11-Apr-2016,1604-00164,0.00,34.84,R,Access Locksmiths (Leeds) Limited,No
Http://opendatacommunities.org/id/metropolitan-district-council/leeds,Leeds City Council,30/04/2016,Environment & Housing,Leeds Building Services,Supplies and Services,Operational Materials,205,11-Apr-2016,1604-00165,0.00,30.58,R,Access Locksmiths (Leeds) Limited,No
Http://opendatacommunities.org/id/metropolitan-district-council/leeds,Leeds City Council,30/04/2016,Environment & Housing,Leeds Building Services,Supplies and Services,Operational Materials,205,11-Apr-2016,1604-00166,0.00,185.50,R,Access Locksmiths (Leeds) Limited,No
Http://opendatacommunities.org/id/metropolitan-district-council/leeds,Leeds City Council,30/04/2016,Environment & Housing,Leeds Building Services,Supplies and Services,Operational Materials,205,11-Apr-2016,1604-00167,0.00,27.90,R,Access Locksmiths (Leeds) Limited,No
Http://opendatacommunities.org/id/metropolitan-district-council/leeds,Leeds City Council,30/04/2016,Environment & Housing,Leeds Building Services,Supplies and Services,Operational Materials,205,11-Apr-2016,1604-00168,0.00,150.00,R,Access Locksmiths (Leeds) Limited,No
Http://opendatacommunities.org/id/metropolitan-district-council/leeds,Leeds City Council,30/04/2016,Central & Corporate,Commercial Services Trading Services,Supplies and Services,Operational Materials,205,11-Apr-2016,1604-00169,0.00,13.37,R,Access Locksmiths (Leeds) Limited,No
Http://opendatacommunities.org/id/metropolitan-district-council/leeds,Leeds City Council,30/04/2016,Central & Corporate,Commercial Services Trading Services,Supplies and Services,Operational Materials,205,11-Apr-2016,1604-00170,0.00,13.50,R,Access Locksmiths (Leeds) Limited,No
Http://opendatacommunities.org/id/metropolitan-district-council/leeds,Leeds City Council,30/04/2016,Central & Corporate,Commercial Services Trading Services,Supplies and Services,Operational Materials,205,11-Apr-2016,1604-00171,0.00,54.26,R,Access Locksmiths (Leeds) Limited,No
Http://opendatacommunities.org/id/metropolitan-district-council/leeds,Leeds City Council,30/04/2016,Central & Corporate,Commercial Services Trading Services,Supplies and Services,Operational Materials,205,11-Apr-2016,1604-00172,0.00,26.58,R,Access Locksmiths (Leeds) Limited,No
Http://opendatacommunities.org/id/metropolitan-district-council/leeds,Leeds City Council,30/04/2016,Central & Corporate,Commercial Services Trading Services,Supplies and Services,Operational Materials,205,11-Apr-2016,1604-00173,0.00,19.50,R,Access Locksmiths (Leeds) Limited,No
Http://opendatacommunities.org/id/metropolitan-district-council/leeds,Leeds City Council,30/04/2016,Central & Corporate,Commercial Services Trading Services,Supplies and Services,Operational Materials,205,11-Apr-2016,1604-00174,0.00,351.44,R,Access Locksmiths (Leeds) Limited,No
Http://opendatacommunities.org/id/metropolitan-district-council/leeds,Leeds City Council,30/04/2016,Central & Corporate,Commercial Services Trading Services,Supplies and Services,Operational Materials,205,11-Apr-2016,1604-00175,0.00,23.28,R,Access Locksmiths (Leeds) Limited,No
Http://opendatacommunities.org/id/metropolitan-district-council/leeds,Leeds City Council,30/04/2016,Adult Social Care,Services For Older People - 65 And Over,Supplies and Services,Operational Furniture And Equipment,203,13-Apr-2016,1604-00176,0.00,52.90,R,Access Locksmiths (Leeds) Limited,No
Http://opendatacommunities.org/id/metropolitan-district-council/leeds,Leeds City Council,30/04/2016,Strategic Landlord,Property and Contracts,Premises,General Maintenance,104,13-Apr-2016,1604-00177,0.00,155.55,R,Access Locksmiths (Leeds) Limited,No
Http://opendatacommunities.org/id/metropolitan-district-council/leeds,Leeds City Council,30/04/2016,Environment & Housing,Leeds Building Services,Supplies and Services,Operational Materials,205,15-Apr-2016,1604-00178,0.00,100.51,R,Access Locksmiths (Leeds) Limited,No
Http://opendatacommunities.org/id/metropolitan-district-council/leeds,Leeds City Council,30/04/2016,Environment & Housing,Leeds Building Services,Supplies and Services,Operational Materials,205,15-Apr-2016,1604-00179,0.00,32.10,R,Access Locksmiths (Leeds) Limited,No
Http://opendatacommunities.org/id/metropolitan-district-council/leeds,Leeds City Council,30/04/2016,Environment & Housing,Leeds Building Services,Supplies and Services,Operational Materials,205,15-Apr-2016,1604-00180,0.00,32.94,R,Access Locksmiths (Leeds) Limited,No
Http://opendatacommunities.org/id/metropolitan-district-council/leeds,Leeds City Council,30/04/2016,Strategic Landlord,Property and Contracts,Premises,General Maintenance,104,29-Apr-2016,1604-00181,0.00,194.64,R,Access Locksmiths (Leeds) Limited,No
Http://opendatacommunities.org/id/metropolitan-district-council/leeds,Leeds City Council,30/04/2016,Environment & Housing,Leeds Building Services,Supplies and Services,Operational Materials,205,29-Apr-2016,1604-00182,0.00,17.82,R,Access Locksmiths (Leeds) Limited,No
Http://opendatacommunities.org/id/metropolitan-district-council/leeds,Leeds City Council,30/04/2016,Environment & Housing,Leeds Building Services,Supplies and Services,Operational Materials,205,29-Apr-2016,1604-00183,0.00,81.99,R,Access Locksmiths (Leeds) Limited,No
Http://opendatacommunities.org/id/metropolitan-district-council/leeds,Leeds City Council,30/04/2016,Environment & Housing,Leeds Building Services,Supplies and Services,Operational Materials,205,29-Apr-2016,1604-00184,0.00,17.96,R,Access Locksmiths (Leeds) Limited,No
Http://opendatacommunities.org/id/metropolitan-district-council/leeds,Leeds City Council,30/04/2016,Environment & Housing,Leeds Building Services,Supplies and Services,Operational Materials,205,29-Apr-2016,1604-00185,0.00,351.44,R,Access Locksmiths (Leeds) Limited,No
Http://opendatacommunities.org/id/metropolitan-district-council/leeds,Leeds City Council,30/04/2016,Environment & Housing,Leeds Building Services,Supplies and Services,Operational Materials,205,29-Apr-2016,1604-00186,0.00,80.00,R,Access Locksmiths (Leeds) Limited,No
Http://opendatacommunities.org/id/metropolitan-district-council/leeds,Leeds City Council,30/04/2016,Strategic Landlord,Property and Contracts,Premises,General Maintenance,104,29-Apr-2016,1604-00187,0.00,60.02,R,Access Locksmiths (Leeds) Limited,No
Http://opendatacommunities.org/id/metropolitan-district-council/leeds,Leeds City Council,30/04/2016,Central & Corporate,Commercial Services Trading Services,Supplies and Services,Operational Materials,205,29-Apr-2016,1604-00188,0.00,167.76,R,Access Locksmiths (Leeds) Limited,No
Http://opendatacommunities.org/id/metropolitan-district-council/leeds,Leeds City Council,30/04/2016,Environment & Housing,Leeds Building Services,Supplies and Services,Operational Materials,205,29-Apr-2016,1604-00189,0.00,109.03,R,Access Locksmiths (Leeds) Limited,No
Http://opendatacommunities.org/id/metropolitan-district-council/leeds,Leeds City Council,30/04/2016,Environment & Housing,Leeds Building Services,Supplies and Services,Operational Materials,205,29-Apr-2016,1604-00190,0.00,14.74,R,Access Locksmiths (Leeds) Limited,No
Http://opendatacommunities.org/id/metropolitan-district-council/leeds,Leeds City Council,30/04/2016,Central & Corporate,Commercial Services Trading Services,Supplies and Services,Other Hired And Contracted Services,265,08-Apr-2016,1604-00191,0.00,85.00,R,Access Opening Systems Limited,No
Http://opendatacommunities.org/id/metropolitan-district-council/leeds,Leeds City Council,30/04/2016,Central & Corporate,Commercial Services Trading Services,Supplies and Services,Other Hired And Contracted Services,265,08-Apr-2016,1604-00192,0.00,85.00,R,Access Opening Systems Limited,No
Http://opendatacommunities.org/id/metropolitan-district-council/leeds,Leeds City Council,30/04/2016,Central & Corporate,Commercial Services Trading Services,Supplies and Services,Other Hired And Contracted Services,265,08-Apr-2016,1604-00193,0.00,85.00,R,Access Opening Systems Limited,No
Http://opendatacommunities.org/id/metropolitan-district-council/leeds,Leeds City Council,30/04/2016,Central & Corporate,Commercial Services Trading Services,Supplies and Services,Other Hired And Contracted Services,265,08-Apr-2016,1604-00194,0.00,415.21,R,Access Opening Systems Limited,No
Http://opendatacommunities.org/id/metropolitan-district-council/leeds,Leeds City Council,30/04/2016,Central & Corporate,Commercial Services Trading Services,Supplies and Services,Other Hired And Contracted Services,265,08-Apr-2016,1604-00195,0.00,75.00,R,Access Opening Systems Limited,No
Http://opendatacommunities.org/id/metropolitan-district-council/leeds,Leeds City Council,30/04/2016,Central & Corporate,Commercial Services Trading Services,Supplies and Services,Other Hired And Contracted Services,265,08-Apr-2016,1604-00196,0.00,325.00,R,Access Opening Systems Limited,No
Http://opendatacommunities.org/id/metropolitan-district-council/leeds,Leeds City Council,30/04/2016,Central & Corporate,Commercial Services Trading Services,Supplies and Services,Other Hired And Contracted Services,265,08-Apr-2016,1604-00197,0.00,1241.00,R,Access Opening Systems Limited,No
Http://opendatacommunities.org/id/metropolitan-district-council/leeds,Leeds City Council,30/04/2016,Central & Corporate,Commercial Services Trading Services,Supplies and Services,Operational Materials,205,08-Apr-2016,1604-00198,0.00,750.00,R,Access Opening Systems Limited,No
Http://opendatacommunities.org/id/metropolitan-district-council/leeds,Leeds City Council,30/04/2016,Central & Corporate,Commercial Services Trading Services,Supplies and Services,Other Hired And Contracted Services,265,08-Apr-2016,1604-00199,0.00,494.98,R,Access Opening Systems Limited,No
Http://opendatacommunities.org/id/metropolitan-district-council/leeds,Leeds City Council,30/04/2016,Central & Corporate,Commercial Services Trading Services,Supplies and Services,Other Hired And Contracted Services,265,08-Apr-2016,1604-00200,0.00,1100.14,R,Access Opening Systems Limited,No
Http://opendatacommunities.org/id/metropolitan-district-council/leeds,Leeds City Council,30/04/2016,Central & Corporate,Commercial Services Trading Services,Supplies and Services,Other Hired And Contracted Services,265,08-Apr-2016,1604-00201,0.00,380.45,R,Access Opening Systems Limited,No
Http://opendatacommunities.org/id/metropolitan-district-council/leeds,Leeds City Council,30/04/2016,Central & Corporate,Commercial Services Trading Services,Supplies and Services,Other Hired And Contracted Services,265,08-Apr-2016,1604-00202,0.00,85.00,R,Access Opening Systems Limited,No
Http://opendatacommunities.org/id/metropolitan-district-council/leeds,Leeds City Council,30/04/2016,Central & Corporate,Commercial Services Trading Services,Supplies and Services,Other Hired And Contracted Services,265,08-Apr-2016,1604-00203,0.00,228.90,R,Access Opening Systems Limited,No
Http://opendatacommunities.org/id/metropolitan-district-council/leeds,Leeds City Council,30/04/2016,Central & Corporate,Commercial Services Trading Services,Supplies and Services,Other Hired And Contracted Services,265,08-Apr-2016,1604-00204,0.00,93.95,R,Access Opening Systems Limited,No
Http://opendatacommunities.org/id/metropolitan-district-council/leeds,Leeds City Council,30/04/2016,Central & Corporate,Commercial Services Trading Services,Supplies and Services,Other Hired And Contracted Services,265,08-Apr-2016,1604-00205,0.00,85.00,R,Access Opening Systems Limited,No
Http://opendatacommunities.org/id/metropolitan-district-council/leeds,Leeds City Council,30/04/2016,Central & Corporate,Commercial Services Trading Services,Supplies and Services,Other Hired And Contracted Services,265,08-Apr-2016,1604-00206,0.00,425.00,R,Access Opening Systems Limited,No
Http://opendatacommunities.org/id/metropolitan-district-council/leeds,Leeds City Council,30/04/2016,Central & Corporate,Commercial Services Trading Services,Supplies and Services,Operational Materials,205,11-Apr-2016,1604-00207,0.00,102.00,R,Access Opening Systems Limited,No
Http://opendatacommunities.org/id/metropolitan-district-council/leeds,Leeds City Council,30/04/2016,Central & Corporate,Commercial Services Trading Services,Supplies and Services,Operational Materials,205,11-Apr-2016,1604-00208,0.00,318.50,R,Access Opening Systems Limited,No
Http://opendatacommunities.org/id/metropolitan-district-council/leeds,Leeds City Council,30/04/2016,Central & Corporate,Commercial Services Trading Services,Supplies and Services,Operational Materials,205,11-Apr-2016,1604-00209,0.00,105.00,R,Access Opening Systems Limited,No
Http://opendatacommunities.org/id/metropolitan-district-council/leeds,Leeds City Council,30/04/2016,Adult Social Care,Other Generic Services,Supplies and Services,Office Consumables,210,18-Apr-2016,1604-00210,0.00,85.00,R,Access Opening Systems Limited,No
Http://opendatacommunities.org/id/metropolitan-district-council/leeds,Leeds City Council,30/04/2016,Environment & Housing,Leeds Building Services,Supplies and Services,Operational Materials,205,19-Apr-2016,1604-00211,0.00,25.00,R,Access Opening Systems Limited,No
Http://opendatacommunities.org/id/metropolitan-district-council/leeds,Leeds City Council,30/04/2016,Environment & Housing,Leeds Building Services,Supplies and Services,Operational Materials,205,20-Apr-2016,1604-00212,0.00,25.00,R,Access Opening Systems Limited,No
Http://opendatacommunities.org/id/metropolitan-district-council/leeds,Leeds City Council,30/04/2016,Environment & Housing,Leeds Building Services,Supplies and Services,Operational Materials,205,22-Apr-2016,1604-00213,0.00,-445.00,R,Access Opening Systems Limited,No
Http://opendatacommunities.org/id/metropolitan-district-council/leeds,Leeds City Council,30/04/2016,Environment & Housing,Leeds Building Services,Supplies and Services,Operational Materials,205,22-Apr-2016,1604-00214,0.00,2250.00,R,Access Opening Systems Limited,No
Http://opendatacommunities.org/id/metropolitan-district-council/leeds,Leeds City Council,30/04/2016,Environment & Housing,Leeds Building Services,Supplies and Services,Operational Materials,205,25-Apr-2016,1604-00215,0.00,225.71,R,Access Opening Systems Limited,No
Http://opendatacommunities.org/id/metropolitan-district-council/leeds,Leeds City Council,30/04/2016,Environment & Housing,Leeds Building Services,Supplies and Services,Other Hired And Contracted Services,265,29-Apr-2016,1604-00216,0.00,1319.67,R,Access Opening Systems Limited,No
Http://opendatacommunities.org/id/metropolitan-district-council/leeds,Leeds City Council,30/04/2016,Environment & Housing,Leeds Building Services,Supplies and Services,Other Hired And Contracted Services,265,29-Apr-2016,1604-00217,0.00,244.62,R,Access Opening Systems Limited,No
Http://opendatacommunities.org/id/metropolitan-district-council/leeds,Leeds City Council,30/04/2016,Environment & Housing,Leeds Building Services,Supplies and Services,Other Hired And Contracted Services,265,29-Apr-2016,1604-00218,0.00,234.26,R,Access Opening Systems Limited,No
Http://opendatacommunities.org/id/metropolitan-district-council/leeds,Leeds City Council,30/04/2016,Environment & Housing,Leeds Building Services,Supplies and Services,Other Hired And Contracted Services,265,29-Apr-2016,1604-00219,0.00,2920.00,R,Access Opening Systems Limited,No
Http://opendatacommunities.org/id/metropolitan-district-council/leeds,Leeds City Council,30/04/2016,Environment & Housing,Leeds Building Services,Supplies and Services,Other Hired And Contracted Services,265,29-Apr-2016,1604-00220,0.00,85.00,R,Access Opening Systems Limited,No
Http://opendatacommunities.org/id/metropolitan-district-council/leeds,Leeds City Council,30/04/2016,Environment & Housing,Leeds Building Services,Supplies and Services,Operational Materials,205,29-Apr-2016,1604-00221,0.00,145.00,R,Access Opening Systems Limited,No
Http://opendatacommunities.org/id/metropolitan-district-council/leeds,Leeds City Council,30/04/2016,Environment & Housing,Leeds Building Services,Supplies and Services,Operational Materials,205,29-Apr-2016,1604-00222,0.00,225.50,R,Access Opening Systems Limited,No
Http://opendatacommunities.org/id/metropolitan-district-council/leeds,Leeds City Council,30/04/2016,Environment & Housing,Leeds Building Services,Supplies and Services,Other Hired And Contracted Services,265,29-Apr-2016,1604-00223,0.00,112.50,R,Access Opening Systems Limited,No
Http://opendatacommunities.org/id/metropolitan-district-council/leeds,Leeds City Council,30/04/2016,Insurance,Insurance,Supplies and Services,Insurance Claims,248,14-Apr-2016,1604-00224,0.00,838.38,R,Accident Exchange Ltd,No
Http://opendatacommunities.org/id/metropolitan-district-council/leeds,Leeds City Council,30/04/2016,Insurance,Insurance,Supplies and Services,Insurance Claims,248,14-Apr-2016,1604-00225,0.00,4000.00,R,Accountant General Of The Senior Courts,No
Http://opendatacommunities.org/id/metropolitan-district-council/leeds,Leeds City Council,30/04/2016,Insurance,Insurance,Supplies and Services,Insurance Claims,248,21-Apr-2016,1604-00226,0.00,3000.00,R,Accountant General Of The Senior Courts,No
Http://opendatacommunities.org/id/metropolitan-district-council/leeds,Leeds City Council,30/04/2016,City Development,Recreation,Supplies and Services,Other Hired And Contracted Services,265,06-Apr-2016,1604-00227,0.00,139.50,R,Ace Container Services Limited,No
Http://opendatacommunities.org/id/metropolitan-district-council/leeds,Leeds City Council,30/04/2016,City Development,Recreation,Transport,External Hire -Occasional,304,11-Apr-2016,1604-00228,0.00,128.65,R,Ace Container Services Limited,No
Http://opendatacommunities.org/id/metropolitan-district-council/leeds,Leeds City Council,30/04/2016,City Development,Libraries  Arts & Heritage,Transport,Hire Of Movable Plant & Machinery,315,28-Apr-2016,1604-00229,0.00,45.00,R,Ace Container Services Limited,No
Http://opendatacommunities.org/id/metropolitan-district-council/leeds,Leeds City Council,30/04/2016,City Development,Recreation,Transport,External Hire -Occasional,304,29-Apr-2016,1604-00230,0.00,124.50,R,Ace Container Services Limited,No
Http://opendatacommunities.org/id/metropolitan-district-council/leeds,Leeds City Council,30/04/2016,Environment & Housing,Parks and Countryside,Supplies and Services,Operational Materials,205,29-Apr-2016,1604-00231,0.00,17707.00,R,Ace Engineers (Morley) Ltd,No
Http://opendatacommunities.org/id/metropolitan-district-council/leeds,Leeds City Council,30/04/2016,Childrens Services,Safeguarding Targeted & Specialist  ,Supplies and Services,Operational Furniture And Equipment,203,04-Mar-2016,1604-00232,0.00,159.94,,Ace Innovation Ltd,Yes
Http://opendatacommunities.org/id/metropolitan-district-council/leeds,Leeds City Council,30/04/2016,Civic Enterprise Leeds,Commercial Services,Supplies and Services,Operational Furniture And Equipment,203,01-Apr-2016,1604-00233,0.00,1263.00,R,Acme Facilities Group Ltd,No
Http://opendatacommunities.org/id/metropolitan-district-council/leeds,Leeds City Council,30/04/2016,Civic Enterprise Leeds,Commercial Services,Supplies and Services,Operational Furniture And Equipment,203,14-Apr-2016,1604-00234,0.00,1902.00,R,Acme Facilities Group Ltd,No
Http://opendatacommunities.org/id/metropolitan-district-council/leeds,Leeds City Council,30/04/2016,Childrens Services,Safeguarding Targeted & Specialist,Third Party Payments,SEN Placements,566,20-Apr-2016,1604-00235,0.00,18138.67,R,Acorn Care And Education Ltd,No
Http://opendatacommunities.org/id/metropolitan-district-council/leeds,Leeds City Council,30/04/2016,Childrens Services,Safeguarding Targeted & Specialist,Third Party Payments,SEN Placements,566,20-Apr-2016,1604-00236,0.00,18138.67,R,Acorn Care And Education Ltd,No
Http://opendatacommunities.org/id/metropolitan-district-council/leeds,Leeds City Council,30/04/2016,Childrens Services,Safeguarding Targeted & Specialist,Third Party Payments,SEN Placements,566,20-Apr-2016,1604-00237,0.00,18138.67,R,Acorn Care And Education Ltd,No
Http://opendatacommunities.org/id/metropolitan-district-council/leeds,Leeds City Council,30/04/2016,Childrens Services,Safeguarding Targeted & Specialist,Third Party Payments,SEN Placements,566,20-Apr-2016,1604-00238,0.00,18138.67,R,Acorn Care And Education Ltd,No
Http://opendatacommunities.org/id/metropolitan-district-council/leeds,Leeds City Council,30/04/2016,Childrens Services,Safeguarding Targeted & Specialist,Third Party Payments,SEN Placements,566,20-Apr-2016,1604-00239,0.00,18138.67,R,Acorn Care And Education Ltd,No
Http://opendatacommunities.org/id/metropolitan-district-council/leeds,Leeds City Council,30/04/2016,Childrens Services,Safeguarding Targeted & Specialist,Third Party Payments,SEN Placements,566,20-Apr-2016,1604-00240,0.00,18138.67,R,Acorn Care And Education Ltd,No
Http://opendatacommunities.org/id/metropolitan-district-council/leeds,Leeds City Council,30/04/2016,Childrens Services,Safeguarding Targeted & Specialist,Third Party Payments,SEN Placements,566,20-Apr-2016,1604-00241,0.00,18138.67,R,Acorn Care And Education Ltd,No
Http://opendatacommunities.org/id/metropolitan-district-council/leeds,Leeds City Council,30/04/2016,Childrens Services,Safeguarding Targeted & Specialist,Third Party Payments,SEN Placements,566,20-Apr-2016,1604-00242,0.00,18138.67,R,Acorn Care And Education Ltd,No
Http://opendatacommunities.org/id/metropolitan-district-council/leeds,Leeds City Council,30/04/2016,Childrens Services,Safeguarding Targeted & Specialist,Third Party Payments,SEN Placements,566,20-Apr-2016,1604-00243,0.00,18138.67,R,Acorn Care And Education Ltd,No
Http://opendatacommunities.org/id/metropolitan-district-council/leeds,Leeds City Council,30/04/2016,Childrens Services,Safeguarding Targeted & Specialist,Third Party Payments,SEN Placements,566,20-Apr-2016,1604-00244,0.00,18138.67,R,Acorn Care And Education Ltd,No
Http://opendatacommunities.org/id/metropolitan-district-council/leeds,Leeds City Council,30/04/2016,Childrens Services,Safeguarding Targeted & Specialist,Third Party Payments,SEN Placements,566,20-Apr-2016,1604-00245,0.00,18138.67,R,Acorn Care And Education Ltd,No
Http://opendatacommunities.org/id/metropolitan-district-council/leeds,Leeds City Council,30/04/2016,Childrens Services,Safeguarding Targeted & Specialist,Third Party Payments,SEN Placements,566,20-Apr-2016,1604-00246,0.00,18138.67,R,Acorn Care And Education Ltd,No
Http://opendatacommunities.org/id/metropolitan-district-council/leeds,Leeds City Council,30/04/2016,Childrens Services,Safeguarding Targeted & Specialist,Third Party Payments,SEN Placements,566,20-Apr-2016,1604-00247,0.00,18138.67,R,Acorn Care And Education Ltd,No
Http://opendatacommunities.org/id/metropolitan-district-council/leeds,Leeds City Council,30/04/2016,Childrens Services,Safeguarding Targeted & Specialist,Third Party Payments,SEN Placements,566,20-Apr-2016,1604-00248,0.00,18138.67,R,Acorn Care And Education Ltd,No
Http://opendatacommunities.org/id/metropolitan-district-council/leeds,Leeds City Council,30/04/2016,Childrens Services,Safeguarding Targeted & Specialist,Third Party Payments,SEN Placements,566,20-Apr-2016,1604-00249,0.00,18138.67,R,Acorn Care And Education Ltd,No
Http://opendatacommunities.org/id/metropolitan-district-council/leeds,Leeds City Council,30/04/2016,Childrens Services,Safeguarding Targeted & Specialist,Third Party Payments,SEN Placements,566,20-Apr-2016,1604-00250,0.00,18138.67,R,Acorn Care And Education Ltd,No
Http://opendatacommunities.org/id/metropolitan-district-council/leeds,Leeds City Council,30/04/2016,Childrens Services,Safeguarding Targeted & Specialist,Third Party Payments,SEN Placements,566,20-Apr-2016,1604-00251,0.00,18138.67,R,Acorn Care And Education Ltd,No
Http://opendatacommunities.org/id/metropolitan-district-council/leeds,Leeds City Council,30/04/2016,Childrens Services,Safeguarding Targeted & Specialist,Third Party Payments,SEN Placements,566,20-Apr-2016,1604-00252,0.00,18138.67,R,Acorn Care And Education Ltd,No
Http://opendatacommunities.org/id/metropolitan-district-council/leeds,Leeds City Council,30/04/2016,Childrens Services,Safeguarding Targeted & Specialist,Third Party Payments,SEN Placements,566,20-Apr-2016,1604-00253,0.00,18138.67,R,Acorn Care And Education Ltd,No
Http://opendatacommunities.org/id/metropolitan-district-council/leeds,Leeds City Council,30/04/2016,Childrens Services,Safeguarding Targeted & Specialist,Third Party Payments,SEN Placements,566,20-Apr-2016,1604-00254,0.00,18138.67,R,Acorn Care And Education Ltd,No
Http://opendatacommunities.org/id/metropolitan-district-council/leeds,Leeds City Council,30/04/2016,Childrens Services,Safeguarding Targeted & Specialist,Third Party Payments,SEN Placements,566,20-Apr-2016,1604-00255,0.00,18138.67,R,Acorn Care And Education Ltd,No
Http://opendatacommunities.org/id/metropolitan-district-council/leeds,Leeds City Council,30/04/2016,Childrens Services,Safeguarding Targeted & Specialist,Third Party Payments,SEN Placements,566,20-Apr-2016,1604-00256,0.00,18138.67,R,Acorn Care And Education Ltd,No
Http://opendatacommunities.org/id/metropolitan-district-council/leeds,Leeds City Council,30/04/2016,Childrens Services,Safeguarding Targeted & Specialist,Third Party Payments,SEN Placements,566,20-Apr-2016,1604-00257,0.00,18138.67,R,Acorn Care And Education Ltd,No
Http://opendatacommunities.org/id/metropolitan-district-council/leeds,Leeds City Council,30/04/2016,Childrens Services,Safeguarding Targeted & Specialist,Third Party Payments,SEN Placements,566,20-Apr-2016,1604-00258,0.00,18138.67,R,Acorn Care And Education Ltd,No
Http://opendatacommunities.org/id/metropolitan-district-council/leeds,Leeds City Council,30/04/2016,Childrens Services,Safeguarding Targeted & Specialist,Third Party Payments,Independent Fostering Agencies,509,06-Apr-2016,1604-00259,0.00,4847.06,R,Acorn House (Fostering Services) Ltd,No
Http://opendatacommunities.org/id/metropolitan-district-council/leeds,Leeds City Council,30/04/2016,Childrens Services,Safeguarding Targeted & Specialist,Third Party Payments,Independent Fostering Agencies,509,22-Apr-2016,1604-00260,0.00,5181.34,R,Acorn House (Fostering Services) Ltd,No
Http://opendatacommunities.org/id/metropolitan-district-council/leeds,Leeds City Council,30/04/2016,Childrens Services,Learning Skills & Universal,Third Party Payments,Services Rendered By Other Organisations,511,22-Apr-2016,1604-00261,0.00,16334.83,R,Acorns Nursery,No
Http://opendatacommunities.org/id/metropolitan-district-council/leeds,Leeds City Council,30/04/2016,Environment & Housing,Environmental Health,Supplies and Services,Computer Software & Equipment,214,01-Apr-2016,1604-00262,0.00,695.00,R,Acoustic Calibration Services Limited,No
Http://opendatacommunities.org/id/metropolitan-district-council/leeds,Leeds City Council,30/04/2016,Environment & Housing,Environmental Health,Supplies and Services,Computer Software & Equipment,214,01-Apr-2016,1604-00263,0.00,75.00,R,Acoustic Calibration Services Limited,No
Http://opendatacommunities.org/id/metropolitan-district-council/leeds,Leeds City Council,30/04/2016,Adult Social Care,Services For Adults Under 65 Mental/Dis,Third Party Payments,Residential,580,06-Apr-2016,1604-00264,0.00,1351.20,R,Acre Green,No
Http://opendatacommunities.org/id/metropolitan-district-council/leeds,Leeds City Council,30/04/2016,Adult Social Care,Services For Older People - 65 And Over,Third Party Payments,Nursing Home,570,06-Apr-2016,1604-00265,0.00,16310.78,R,Acre Green,No
Http://opendatacommunities.org/id/metropolitan-district-council/leeds,Leeds City Council,30/04/2016,Adult Social Care,Services For Older People - 65 And Over,Third Party Payments,Residential Care Dementia,571,06-Apr-2016,1604-00266,0.00,-8271.84,R,Acre Green,No
Http://opendatacommunities.org/id/metropolitan-district-council/leeds,Leeds City Council,30/04/2016,Adult Social Care,Services For Older People - 65 And Over,Third Party Payments,Residential,580,06-Apr-2016,1604-00267,0.00,1492.96,R,Acre Green,No
Http://opendatacommunities.org/id/metropolitan-district-council/leeds,Leeds City Council,30/04/2016,Adult Social Care,Services For Older People Under 65 P/Dis,Third Party Payments,Nursing Home,570,06-Apr-2016,1604-00268,0.00,4816.24,R,Acre Green,No
Http://opendatacommunities.org/id/metropolitan-district-council/leeds,Leeds City Council,30/04/2016,Adult Social Care,Services For Older People Under 65 P/Dis,Third Party Payments,Nursing Care Dementia,574,06-Apr-2016,1604-00269,0.00,1014.06,R,Acre Green,No
Http://opendatacommunities.org/id/metropolitan-district-council/leeds,Leeds City Council,30/04/2016,Childrens Services,Learning Skills & Universal,Third Party Payments,Services Rendered By Other Organisations,511,20-Apr-2016,1604-00270,0.00,2269.80,R,Acre Wood Day Nursery,No
Http://opendatacommunities.org/id/metropolitan-district-council/leeds,Leeds City Council,30/04/2016,Childrens Services,Learning Skills & Universal,Third Party Payments,Services Rendered By Other Organisations,511,22-Apr-2016,1604-00271,0.00,11272.62,R,Acre Wood Day Nursery,No
Http://opendatacommunities.org/id/metropolitan-district-council/leeds,Leeds City Council,30/04/2016,City Development,Libraries  Arts & Heritage,Supplies and Services,Operational Furniture And Equipment,203,22-Apr-2016,1604-00272,0.00,108.30,R,Acrylic Design Uk Limited,No
Http://opendatacommunities.org/id/metropolitan-district-council/leeds,Leeds City Council,30/04/2016,City Development,Libraries  Arts & Heritage,Supplies and Services,Operational Furniture And Equipment,203,22-Apr-2016,1604-00273,0.00,57.42,R,Acrylic Design Uk Limited,No
Http://opendatacommunities.org/id/metropolitan-district-council/leeds,Leeds City Council,30/04/2016,Adult Social Care,Social Services Support Services,Employees,Training & Development,70,18-Apr-2016,1604-00274,0.00,265.00,R,Act Now Training Ltd,No
Http://opendatacommunities.org/id/metropolitan-district-council/leeds,Leeds City Council,30/04/2016,Adult Social Care,Social Services Support Services,Employees,Training & Development,70,19-Apr-2016,1604-00275,0.00,265.00,R,Act Now Training Ltd,No
Http://opendatacommunities.org/id/metropolitan-district-council/leeds,Leeds City Council,30/04/2016,Adult Social Care,Social Services Support Services,Employees,Training & Development,70,19-Apr-2016,1604-00276,0.00,265.00,R,Act Now Training Ltd,No
Http://opendatacommunities.org/id/metropolitan-district-council/leeds,Leeds City Council,30/04/2016,Adult Social Care,Services For Adults Under 65 Mental/Dis,Third Party Payments,Fees - Level 4,520,06-Apr-2016,1604-00277,0.00,2450.00,R,Action First Recruitment Ltd,No
Http://opendatacommunities.org/id/metropolitan-district-council/leeds,Leeds City Council,30/04/2016,Adult Social Care,Services For Adults Under 65 Mental/Dis,Third Party Payments,Fees - Level 4,520,06-Apr-2016,1604-00278,0.00,700.00,R,Action First Recruitment Ltd,No
Http://opendatacommunities.org/id/metropolitan-district-council/leeds,Leeds City Council,30/04/2016,Adult Social Care,Services For Adults Under 65 Mental/Dis,Third Party Payments,Fees - Level 4,520,06-Apr-2016,1604-00279,0.00,3500.00,R,Action First Recruitment Ltd,No
Http://opendatacommunities.org/id/metropolitan-district-council/leeds,Leeds City Council,30/04/2016,Adult Social Care,Services For Adults Under 65 Mental/Dis,Third Party Payments,Fees - Level 4,520,06-Apr-2016,1604-00280,0.00,350.00,R,Action First Recruitment Ltd,No
Http://opendatacommunities.org/id/metropolitan-district-council/leeds,Leeds City Council,30/04/2016,Adult Social Care,Services For Adults Under 65 Mental/Dis,Third Party Payments,Fees - Level 4,520,06-Apr-2016,1604-00281,0.00,700.00,R,Action First Recruitment Ltd,No
Http://opendatacommunities.org/id/metropolitan-district-council/leeds,Leeds City Council,30/04/2016,Adult Social Care,Services For Adults Under 65 Mental/Dis,Third Party Payments,Fees - Level 4,520,06-Apr-2016,1604-00282,0.00,2800.00,R,Action First Recruitment Ltd,No
Http://opendatacommunities.org/id/metropolitan-district-council/leeds,Leeds City Council,30/04/2016,Adult Social Care,Services For Adults Under 65 Mental/Dis,Third Party Payments,Fees - Level 4,520,06-Apr-2016,1604-00283,0.00,700.00,R,Action First Recruitment Ltd,No
Http://opendatacommunities.org/id/metropolitan-district-council/leeds,Leeds City Council,30/04/2016,Adult Social Care,Services For Adults Under 65 Mental/Dis,Third Party Payments,Fees - Level 4,520,08-Apr-2016,1604-00284,0.00,700.00,R,Action First Recruitment Ltd,No
Http://opendatacommunities.org/id/metropolitan-district-council/leeds,Leeds City Council,30/04/2016,Adult Social Care,Services For Adults Under 65 Mental/Dis,Third Party Payments,Fees - Level 4,520,12-Apr-2016,1604-00285,0.00,350.00,R,Action First Recruitment Ltd,No
Http://opendatacommunities.org/id/metropolitan-district-council/leeds,Leeds City Council,30/04/2016,Childrens Services,Safeguarding Targeted & Specialist,Third Party Payments,Independent Fostering Agencies,509,08-Apr-2016,1604-00286,0.00,5163.67,R,Action For Children,No
Http://opendatacommunities.org/id/metropolitan-district-council/leeds,Leeds City Council,30/04/2016,Childrens Services,Safeguarding Targeted & Specialist,Third Party Payments,Independent Fostering Agencies,509,08-Apr-2016,1604-00287,0.00,4776.48,R,Action For Children,No
Http://opendatacommunities.org/id/metropolitan-district-council/leeds,Leeds City Council,30/04/2016,Childrens Services,Safeguarding Targeted & Specialist,Third Party Payments,Independent Fostering Agencies,509,08-Apr-2016,1604-00288,0.00,5163.67,R,Action For Children,No
Http://opendatacommunities.org/id/metropolitan-district-council/leeds,Leeds City Council,30/04/2016,Childrens Services,Safeguarding Targeted & Specialist,Third Party Payments,Independent Fostering Agencies,509,08-Apr-2016,1604-00289,0.00,4776.48,R,Action For Children,No
Http://opendatacommunities.org/id/metropolitan-district-council/leeds,Leeds City Council,30/04/2016,Adult Social Care,Services For Older People - 65 And Over,Third Party Payments,Payments To Voluntary Organisations,561,01-Apr-2016,1604-00290,0.00,3238.00,R,Action For Gipton Elderly,No
Http://opendatacommunities.org/id/metropolitan-district-council/leeds,Leeds City Council,30/04/2016,Adult Social Care,Services For Older People - 65 And Over,Third Party Payments,Payments To Voluntary Organisations,561,01-Apr-2016,1604-00291,0.00,31267.50,R,Action For Gipton Elderly,No
Http://opendatacommunities.org/id/metropolitan-district-council/leeds,Leeds City Council,30/04/2016,Childrens Services,Safeguarding Targeted & Specialist,Third Party Payments,Section 17,551,08-Apr-2016,1604-00292,0.00,274.13,R,Active Kids Day Nursery,No
Http://opendatacommunities.org/id/metropolitan-district-council/leeds,Leeds City Council,30/04/2016,Childrens Services,Learning Skills & Universal,Third Party Payments,Services Rendered By Other Organisations,511,20-Apr-2016,1604-00293,0.00,1513.20,R,Active Kids Day Nursery,No
Http://opendatacommunities.org/id/metropolitan-district-council/leeds,Leeds City Council,30/04/2016,Childrens Services,Learning Skills & Universal,Third Party Payments,Services Rendered By Other Organisations,511,22-Apr-2016,1604-00294,0.00,14227.20,R,Active Kids Day Nursery,No
Http://opendatacommunities.org/id/metropolitan-district-council/leeds,Leeds City Council,30/04/2016,Childrens Services,Learning Skills & Universal  ,Supplies and Services,Clothing & Uniforms,241,29-Feb-2016,1604-00295,0.00,24.50,,Active Workwear,Yes
Http://opendatacommunities.org/id/metropolitan-district-council/leeds,Leeds City Council,30/04/2016,Environment & Housing,Parks and Countryside,Supplies and Services,Resaleable Materials,204,19-Apr-2016,1604-00296,0.00,243.00,R,Acushnet Europe Limited,No
Http://opendatacommunities.org/id/metropolitan-district-council/leeds,Leeds City Council,30/04/2016,Environment & Housing,Parks and Countryside,Supplies and Services,Resaleable Materials,204,21-Apr-2016,1604-00297,0.00,77.00,R,Acushnet Europe Limited,No
Http://opendatacommunities.org/id/metropolitan-district-council/leeds,Leeds City Council as Accountable Body,30/04/2016,Social Services Pooled Budgets,Leeds Community Equip Store Pooled Budgt,Supplies and Services,Other Equipment,203,29-Apr-2016,1604-00298,0.00,86.00,R,Acute Sales Limited,No
Http://opendatacommunities.org/id/metropolitan-district-council/leeds,Leeds City Council,30/04/2016,City Development,Highways,Supplies and Services,Publication And Promotion,267,08-Apr-2016,1604-00299,0.00,2870.00,R,Ad Merchandise Ltd,No
Http://opendatacommunities.org/id/metropolitan-district-council/leeds,Leeds City Council,30/04/2016,City Development,Economic Development,Supplies and Services,Grants To Businesses,243,26-Apr-2016,1604-00300,0.00,50000.00,R,Ad3 Envelope Printers,No
Http://opendatacommunities.org/id/metropolitan-district-council/leeds,Leeds City Council,30/04/2016,Civic Enterprise Leeds,Business Support Centre,Supplies and Services,Other Hired And Contracted Services,265,13-Apr-2016,1604-00301,0.00,81.14,R,Ad3 Envelope Printers Limited,No
Http://opendatacommunities.org/id/metropolitan-district-council/leeds,Leeds City Council,30/04/2016,Civic Enterprise Leeds,Business Support Centre,Supplies and Services,Operational Materials,205,13-Apr-2016,1604-00302,0.00,645.00,R,Ad3 Envelope Printers Limited,No
Http://opendatacommunities.org/id/metropolitan-district-council/leeds,Leeds City Council,30/04/2016,Civic Enterprise Leeds,Business Support Centre,Supplies and Services,Other Hired And Contracted Services,265,22-Apr-2016,1604-00303,0.00,930.00,R,Ad3 Envelope Printers Limited,No
Http://opendatacommunities.org/id/metropolitan-district-council/leeds,Leeds City Council,30/04/2016,Civic Enterprise Leeds,Business Support Centre,Supplies and Services,Other Hired And Contracted Services,265,28-Apr-2016,1604-00304,0.00,65.20,R,Ad3 Envelope Printers Limited,No
Http://opendatacommunities.org/id/metropolitan-district-council/leeds,Leeds City Council,30/04/2016,Insurance,Insurance,Supplies and Services,Other Hired And Contracted Services,265,14-Apr-2016,1604-00305,0.00,250.00,R,Adam Lewis,No
Http://opendatacommunities.org/id/metropolitan-district-council/leeds,Leeds City Council,30/04/2016,Adult Social Care,Services For Older People - 65 And Over,Third Party Payments,Nursing Home,570,06-Apr-2016,1604-00306,0.00,4088.57,R,Adbolton Hall,No
Http://opendatacommunities.org/id/metropolitan-district-council/leeds,Leeds City Council,30/04/2016,Adult Social Care,Services For Older People Under 65 P/Dis,Support Services,Professional Legal Services Charges,410,22-Apr-2016,1604-00307,0.00,350.00,R,Addleshaw Goddard Llp,No
Http://opendatacommunities.org/id/metropolitan-district-council/leeds,Leeds City Council,30/04/2016,Central & Corporate,Technology  ,Employees,Agency Staff,8,03-Mar-2016,1604-00308,0.00,4600.00,,Adecco Alfred Marks,Yes
Http://opendatacommunities.org/id/metropolitan-district-council/leeds,Leeds City Council,30/04/2016,Central & Corporate,Technology  ,Employees,Agency Staff,8,17-Mar-2016,1604-00309,0.00,2300.00,,Adecco Alfred Marks,Yes
Http://opendatacommunities.org/id/metropolitan-district-council/leeds,Leeds City Council,30/04/2016,Childrens Services,Learning Skills & Universal,Third Party Payments,Services Rendered By Voluntary Sector,505,20-Apr-2016,1604-00310,0.00,1731.45,R,Adel Pre School,No
Http://opendatacommunities.org/id/metropolitan-district-council/leeds,Leeds City Council,30/04/2016,Childrens Services,Learning Skills & Universal,Third Party Payments,Services Rendered By Voluntary Sector,505,22-Apr-2016,1604-00311,0.00,20036.64,R,Adel Pre School,No
Http://opendatacommunities.org/id/metropolitan-district-council/leeds,Leeds City Council,30/04/2016,Childrens Services,Safeguarding Targeted & Specialist,Third Party Payments,Placement Support,550,11-Apr-2016,1604-00312,0.00,96.00,R,Adel Quaker Meeting,No
Http://opendatacommunities.org/id/metropolitan-district-council/leeds,Leeds City Council,30/04/2016,Childrens Services,Learning Skills & Universal,Third Party Payments,Services Rendered By Other Organisations,511,22-Apr-2016,1604-00313,0.00,592.80,R,Adele Harrington,No
Http://opendatacommunities.org/id/metropolitan-district-council/leeds,Leeds City Council,30/04/2016,Childrens Services,Learning Skills & Universal,Third Party Payments,Services Rendered By Other Organisations,511,22-Apr-2016,1604-00314,0.00,711.36,R,REDACTED PERSONAL DATA,No
Http://opendatacommunities.org/id/metropolitan-district-council/leeds,Leeds City Council,30/04/2016,Childrens Services,Learning Skills & Universal,Third Party Payments,Services Rendered By Other Organisations,511,22-Apr-2016,1604-00315,0.00,592.80,R,Adele Thompson,No
Http://opendatacommunities.org/id/metropolitan-district-council/leeds,Leeds City Council,30/04/2016,Adult Social Care,Services For Older People - 65 And Over,Third Party Payments,Residential,580,06-Apr-2016,1604-00316,0.00,1178.08,R,Adeline Lodge,No
Http://opendatacommunities.org/id/metropolitan-district-council/leeds,Leeds City Council,30/04/2016,Adult Social Care,Services For Older People - 65 And Over,Third Party Payments,Nursing Home,570,06-Apr-2016,1604-00317,0.00,1063.68,R,Aden House,No
Http://opendatacommunities.org/id/metropolitan-district-council/leeds,Leeds City Council,30/04/2016,Adult Social Care,Services For Older People - 65 And Over,Third Party Payments,Residential Care Dementia,571,06-Apr-2016,1604-00318,0.00,1335.42,R,Aden House,No
Http://opendatacommunities.org/id/metropolitan-district-council/leeds,Leeds City Council,30/04/2016,City Development,Support Services,Supplies and Services,Memberships,226,22-Apr-2016,1604-00319,0.00,1700.00,R,Adept,No
Http://opendatacommunities.org/id/metropolitan-district-council/leeds,Leeds City Council,30/04/2016,Central & Corporate,Commercial Services Trading Services,Supplies and Services,Operational Materials,205,06-Apr-2016,1604-00320,0.00,45.48,R,Adi Global,No
Http://opendatacommunities.org/id/metropolitan-district-council/leeds,Leeds City Council,30/04/2016,Central & Corporate,Commercial Services Trading Services,Supplies and Services,Operational Materials,205,06-Apr-2016,1604-00321,0.00,63.91,R,Adi Global,No
Http://opendatacommunities.org/id/metropolitan-district-council/leeds,Leeds City Council,30/04/2016,Environment & Housing,Leeds Building Services,Supplies and Services,Operational Materials,205,11-Apr-2016,1604-00322,0.00,81.51,R,Adi Global,No
Http://opendatacommunities.org/id/metropolitan-district-council/leeds,Leeds City Council,30/04/2016,Central & Corporate,Commercial Services Trading Services,Supplies and Services,Operational Materials,205,11-Apr-2016,1604-00323,0.00,124.99,R,Adi Global,No
Http://opendatacommunities.org/id/metropolitan-district-council/leeds,Leeds City Council,30/04/2016,Central & Corporate,Commercial Services Trading Services,Supplies and Services,Operational Materials,205,11-Apr-2016,1604-00324,0.00,244.78,R,Adi Global,No
Http://opendatacommunities.org/id/metropolitan-district-council/leeds,Leeds City Council,30/04/2016,Environment & Housing,Leeds Building Services,Supplies and Services,Operational Materials,205,22-Apr-2016,1604-00325,0.00,484.85,R,Adi Global,No
Http://opendatacommunities.org/id/metropolitan-district-council/leeds,Leeds City Council,30/04/2016,Environment & Housing,Leeds Building Services,Supplies and Services,Operational Materials,205,22-Apr-2016,1604-00326,0.00,364.50,R,Adi Global,No
Http://opendatacommunities.org/id/metropolitan-district-council/leeds,Leeds City Council,30/04/2016,Environment & Housing,Leeds Building Services,Supplies and Services,Operational Materials,205,22-Apr-2016,1604-00327,0.00,364.50,R,Adi Global,No
Http://opendatacommunities.org/id/metropolitan-district-council/leeds,Leeds City Council,30/04/2016,Environment & Housing,Leeds Building Services,Supplies and Services,Operational Materials,205,25-Apr-2016,1604-00328,0.00,32.98,R,Adi Global,No
Http://opendatacommunities.org/id/metropolitan-district-council/leeds,Leeds City Council,30/04/2016,Environment & Housing,Leeds Building Services,Supplies and Services,Operational Materials,205,27-Apr-2016,1604-00329,0.00,46.92,R,Adi Global,No
Http://opendatacommunities.org/id/metropolitan-district-council/leeds,Leeds City Council,30/04/2016,Environment & Housing,Leeds Building Services,Supplies and Services,Operational Materials,205,27-Apr-2016,1604-00330,0.00,-71.74,R,Adi Global,No
Http://opendatacommunities.org/id/metropolitan-district-council/leeds,Leeds City Council,30/04/2016,Environment & Housing,Leeds Building Services,Supplies and Services,Operational Materials,205,27-Apr-2016,1604-00331,0.00,89.92,R,Adi Global,No
Http://opendatacommunities.org/id/metropolitan-district-council/leeds,Leeds City Council,30/04/2016,Environment & Housing,Community Safety  ,Supplies and Services,Other Hired And Contracted Services,265,17-Mar-2016,1604-00332,0.00,1306.12,,Adi-Gardiner Ltd,Yes
Http://opendatacommunities.org/id/metropolitan-district-council/leeds,Leeds City Council,30/04/2016,Environment & Housing,Leeds Building Services,Support Services,HR Safety  Wellbeing & Attendance,426,15-Apr-2016,1604-00333,0.00,995.00,R,Admas Limited,No
Http://opendatacommunities.org/id/metropolitan-district-council/leeds,Leeds City Council,30/04/2016,Childrens Services,Safeguarding Targeted & Specialist,Third Party Payments,Independent Fostering Agencies,509,01-Apr-2016,1604-00334,0.00,2850.00,R,Adolescent And Childrens Trust,No
Http://opendatacommunities.org/id/metropolitan-district-council/leeds,Leeds City Council,30/04/2016,Childrens Services,Safeguarding Targeted & Specialist,Third Party Payments,Independent Fostering Agencies,509,01-Apr-2016,1604-00335,0.00,2900.00,R,Adolescent And Childrens Trust,No
Http://opendatacommunities.org/id/metropolitan-district-council/leeds,Leeds City Council,30/04/2016,Childrens Services,Safeguarding Targeted & Specialist,Third Party Payments,Independent Fostering Agencies,509,01-Apr-2016,1604-00336,0.00,2900.00,R,Adolescent And Childrens Trust,No
Http://opendatacommunities.org/id/metropolitan-district-council/leeds,Leeds City Council,30/04/2016,Childrens Services,Safeguarding Targeted & Specialist,Third Party Payments,Independent Fostering Agencies,509,01-Apr-2016,1604-00337,0.00,2900.00,R,Adolescent And Childrens Trust,No
Http://opendatacommunities.org/id/metropolitan-district-council/leeds,Leeds City Council,30/04/2016,Childrens Services,Safeguarding Targeted & Specialist,Third Party Payments,Independent Fostering Agencies,509,29-Apr-2016,1604-00338,0.00,3100.00,R,Adolescent And Childrens Trust,No
Http://opendatacommunities.org/id/metropolitan-district-council/leeds,Leeds City Council,30/04/2016,Childrens Services,Safeguarding Targeted & Specialist,Third Party Payments,Independent Fostering Agencies,509,29-Apr-2016,1604-00339,0.00,3100.00,R,Adolescent And Childrens Trust,No
Http://opendatacommunities.org/id/metropolitan-district-council/leeds,Leeds City Council,30/04/2016,Childrens Services,Safeguarding Targeted & Specialist,Supplies and Services,Memberships,226,25-Apr-2016,1604-00340,0.00,1250.00,R,Adoption Uk,No
Http://opendatacommunities.org/id/metropolitan-district-council/leeds,Leeds City Council as Accountable Body,30/04/2016,Social Services Pooled Budgets,Jcs For People With Learning Disabilitie,Third Party Payments,Residential,580,21-Apr-2016,1604-00341,0.00,2609.36,R,Adrian House,No
Http://opendatacommunities.org/id/metropolitan-district-council/leeds,Leeds City Council,30/04/2016,Strategic Landlord,Housing Management,Premises,Premises Security Services,162,06-Apr-2016,1604-00342,0.00,137.77,R,Adt Fire And Security Plc,No
Http://opendatacommunities.org/id/metropolitan-district-council/leeds,Leeds City Council,30/04/2016,Civic Enterprise Leeds,Facilities Management  ,Supplies and Services,Other Hired And Contracted Services,265,03-Mar-2016,1604-00343,0.00,184.00,,Adt Loughton Cc,Yes
Http://opendatacommunities.org/id/metropolitan-district-council/leeds,Leeds City Council,30/04/2016,Adult Social Care,Services For Adults Under 65 Mental/Dis,Third Party Payments,Nursing Home,570,06-Apr-2016,1604-00344,0.00,1541.96,R,Adult Supported Living Ltd,No
Http://opendatacommunities.org/id/metropolitan-district-council/leeds,Leeds City Council,30/04/2016,City Development,Libraries  Arts & Heritage,Supplies and Services,External Audit Fees,261,01-Apr-2016,1604-00345,0.00,85.00,R,Advance Stocks Ltd,No
Http://opendatacommunities.org/id/metropolitan-district-council/leeds,Leeds City Council,30/04/2016,City Development,Libraries  Arts & Heritage,Supplies and Services,External Audit Fees,261,07-Apr-2016,1604-00346,0.00,85.00,R,Advance Stocks Ltd,No
Http://opendatacommunities.org/id/metropolitan-district-council/leeds,Leeds City Council,30/04/2016,City Development,Libraries  Arts & Heritage,Supplies and Services,External Audit Fees,261,07-Apr-2016,1604-00347,0.00,85.00,R,Advance Stocks Ltd,No
Http://opendatacommunities.org/id/metropolitan-district-council/leeds,Leeds City Council,30/04/2016,City Development,Libraries  Arts & Heritage,Supplies and Services,External Audit Fees,261,29-Apr-2016,1604-00348,0.00,85.00,R,Advance Stocks Ltd,No
Http://opendatacommunities.org/id/metropolitan-district-council/leeds,Leeds City Council,30/04/2016,City Development,Libraries  Arts & Heritage,Supplies and Services,External Audit Fees,261,29-Apr-2016,1604-00349,0.00,85.00,R,Advance Stocks Ltd,No
Http://opendatacommunities.org/id/metropolitan-district-council/leeds,Leeds City Council,30/04/2016,Childrens Services,Safeguarding Targeted & Specialist,Support Services,Legal Disbursements,411,04-Apr-2016,1604-00350,0.00,492.14,R,Advanced Child Care Assessments Ltd,No
Http://opendatacommunities.org/id/metropolitan-district-council/leeds,Leeds City Council,30/04/2016,Childrens Services,Safeguarding Targeted & Specialist,Support Services,Legal Disbursements,411,04-Apr-2016,1604-00351,0.00,3190.00,R,Advanced Child Care Assessments Ltd,No
Http://opendatacommunities.org/id/metropolitan-district-council/leeds,Leeds City Council,30/04/2016,Environment & Housing,Leeds Building Services,Supplies and Services,Operational Materials,205,22-Apr-2016,1604-00352,0.00,112.40,R,Advanced Labelling Limited,No
Http://opendatacommunities.org/id/metropolitan-district-council/leeds,Leeds City Council,30/04/2016,Childrens Services,Learning Skills & Universal  ,Supplies and Services,Operational Materials,205,22-Mar-2016,1604-00353,0.00,87.01,,Adventure Climb Rescue,Yes
Http://opendatacommunities.org/id/metropolitan-district-council/leeds,Leeds City Council as Accountable Body,30/04/2016,Social Services Pooled Budgets,Jcs For People With Learning Disabilitie,Third Party Payments,Residential,580,06-Apr-2016,1604-00354,0.00,20222.28,R,Advitam Ltd,No
Http://opendatacommunities.org/id/metropolitan-district-council/leeds,Leeds City Council as Accountable Body,30/04/2016,Social Services Pooled Budgets,Jcs For People With Learning Disabilitie,Third Party Payments,Other Agency Services,561,15-Apr-2016,1604-00355,0.00,11372.30,R,Advonet,No
Http://opendatacommunities.org/id/metropolitan-district-council/leeds,Leeds City Council as Accountable Body,30/04/2016,Social Services Pooled Budgets,Jcs For People With Learning Disabilitie,Third Party Payments,Other Agency Services,561,15-Apr-2016,1604-00356,0.00,6567.66,R,Advonet,No
Http://opendatacommunities.org/id/metropolitan-district-council/leeds,Leeds City Council,30/04/2016,City Development,Economic Development,Capital,Other Costs,7,08-Apr-2016,1604-00357,0.00,5555.35,C,Aecom Limited,No
Http://opendatacommunities.org/id/metropolitan-district-council/leeds,Leeds City Council,30/04/2016,City Development,Economic Development,Capital,Other Costs,7,21-Apr-2016,1604-00358,0.00,2919.60,C,Aecom Limited,No
Http://opendatacommunities.org/id/metropolitan-district-council/leeds,Leeds City Council,30/04/2016,City Development,Libraries  Arts & Heritage,Supplies and Services,Other Hired And Contracted Services,265,29-Apr-2016,1604-00359,0.00,175.00,R,Aerial Satellite Link,No
Http://opendatacommunities.org/id/metropolitan-district-council/leeds,Leeds City Council,30/04/2016,Adult Social Care,Services For Older People Under 65 P/Dis,Third Party Payments,Home Care,568,01-Apr-2016,1604-00360,0.00,303.62,R,Affinity Trust,No
Http://opendatacommunities.org/id/metropolitan-district-council/leeds,Leeds City Council,30/04/2016,Adult Social Care,Services For Older People Under 65 P/Dis,Third Party Payments,Home Care,568,01-Apr-2016,1604-00361,0.00,396.00,R,Affinity Trust,No
Http://opendatacommunities.org/id/metropolitan-district-council/leeds,Leeds City Council,30/04/2016,Adult Social Care,Services For Older People Under 65 P/Dis,Third Party Payments,Home Care,568,01-Apr-2016,1604-00362,0.00,671.16,R,Affinity Trust,No
Http://opendatacommunities.org/id/metropolitan-district-council/leeds,Leeds City Council as Accountable Body,30/04/2016,Social Services Pooled Budgets,Jcs For People With Learning Disabilitie,Third Party Payments,Home Care,568,01-Apr-2016,1604-00363,0.00,1080.00,R,Affinity Trust,No
Http://opendatacommunities.org/id/metropolitan-district-council/leeds,Leeds City Council as Accountable Body,30/04/2016,Social Services Pooled Budgets,Jcs For People With Learning Disabilitie,Third Party Payments,Home Care,568,01-Apr-2016,1604-00364,0.00,3316.88,R,Affinity Trust,No
Http://opendatacommunities.org/id/metropolitan-district-council/leeds,Leeds City Council as Accountable Body,30/04/2016,Social Services Pooled Budgets,Jcs For People With Learning Disabilitie,Third Party Payments,Home Care,568,01-Apr-2016,1604-00365,0.00,1560.00,R,Affinity Trust,No
Http://opendatacommunities.org/id/metropolitan-district-council/leeds,Leeds City Council as Accountable Body,30/04/2016,Social Services Pooled Budgets,Jcs For People With Learning Disabilitie,Third Party Payments,Day Centre,564,01-Apr-2016,1604-00366,0.00,938.56,R,Affinity Trust,No
Http://opendatacommunities.org/id/metropolitan-district-council/leeds,Leeds City Council as Accountable Body,30/04/2016,Social Services Pooled Budgets,Jcs For People With Learning Disabilitie,Third Party Payments,Home Care,568,01-Apr-2016,1604-00367,0.00,525.72,R,Affinity Trust,No
Http://opendatacommunities.org/id/metropolitan-district-council/leeds,Leeds City Council as Accountable Body,30/04/2016,Social Services Pooled Budgets,Jcs For People With Learning Disabilitie,Third Party Payments,Day Centre,564,01-Apr-2016,1604-00368,0.00,4052.48,R,Affinity Trust,No
Http://opendatacommunities.org/id/metropolitan-district-council/leeds,Leeds City Council as Accountable Body,30/04/2016,Social Services Pooled Budgets,Jcs For People With Learning Disabilitie,Third Party Payments,Home Care,568,01-Apr-2016,1604-00369,0.00,217.88,R,Affinity Trust,No
Http://opendatacommunities.org/id/metropolitan-district-council/leeds,Leeds City Council as Accountable Body,30/04/2016,Social Services Pooled Budgets,Jcs For People With Learning Disabilitie,Third Party Payments,Home Care,568,01-Apr-2016,1604-00370,0.00,1599.98,R,Affinity Trust,No
Http://opendatacommunities.org/id/metropolitan-district-council/leeds,Leeds City Council as Accountable Body,30/04/2016,Social Services Pooled Budgets,Jcs For People With Learning Disabilitie,Third Party Payments,Home Care,568,01-Apr-2016,1604-00371,0.00,804.48,R,Affinity Trust,No
Http://opendatacommunities.org/id/metropolitan-district-council/leeds,Leeds City Council as Accountable Body,30/04/2016,Social Services Pooled Budgets,Jcs For People With Learning Disabilitie,Third Party Payments,Home Care,568,01-Apr-2016,1604-00372,0.00,1035.44,R,Affinity Trust,No
Http://opendatacommunities.org/id/metropolitan-district-council/leeds,Leeds City Council,30/04/2016,Adult Social Care,Services For Older People Under 65 P/Dis,Third Party Payments,Home Care,568,01-Apr-2016,1604-00373,0.00,526.68,R,Affinity Trust,No
Http://opendatacommunities.org/id/metropolitan-district-council/leeds,Leeds City Council as Accountable Body,30/04/2016,Social Services Pooled Budgets,Jcs For People With Learning Disabilitie,Third Party Payments,Home Care,568,01-Apr-2016,1604-00374,0.00,1800.00,R,Affinity Trust,No
Http://opendatacommunities.org/id/metropolitan-district-council/leeds,Leeds City Council as Accountable Body,30/04/2016,Social Services Pooled Budgets,Jcs For People With Learning Disabilitie,Third Party Payments,Home Care,568,01-Apr-2016,1604-00375,0.00,921.80,R,Affinity Trust,No
Http://opendatacommunities.org/id/metropolitan-district-council/leeds,Leeds City Council as Accountable Body,30/04/2016,Social Services Pooled Budgets,Jcs For People With Learning Disabilitie,Third Party Payments,Home Care,568,01-Apr-2016,1604-00376,0.00,360.00,R,Affinity Trust,No
Http://opendatacommunities.org/id/metropolitan-district-council/leeds,Leeds City Council as Accountable Body,30/04/2016,Social Services Pooled Budgets,Jcs For People With Learning Disabilitie,Third Party Payments,Home Care,568,01-Apr-2016,1604-00377,0.00,116.73,R,Affinity Trust,No
Http://opendatacommunities.org/id/metropolitan-district-council/leeds,Leeds City Council as Accountable Body,30/04/2016,Social Services Pooled Budgets,Jcs For People With Learning Disabilitie,Third Party Payments,Home Care,568,01-Apr-2016,1604-00378,0.00,1206.72,R,Affinity Trust,No
Http://opendatacommunities.org/id/metropolitan-district-council/leeds,Leeds City Council as Accountable Body,30/04/2016,Social Services Pooled Budgets,Jcs For People With Learning Disabilitie,Third Party Payments,Day Centre,564,01-Apr-2016,1604-00379,0.00,714.78,R,Affinity Trust,No
Http://opendatacommunities.org/id/metropolitan-district-council/leeds,Leeds City Council as Accountable Body,30/04/2016,Social Services Pooled Budgets,Jcs For People With Learning Disabilitie,Third Party Payments,Day Centre,564,01-Apr-2016,1604-00380,0.00,2346.40,R,Affinity Trust,No
Http://opendatacommunities.org/id/metropolitan-district-council/leeds,Leeds City Council as Accountable Body,30/04/2016,Social Services Pooled Budgets,Jcs For People With Learning Disabilitie,Third Party Payments,Day Centre,564,01-Apr-2016,1604-00381,0.00,1440.00,R,Affinity Trust,No
Http://opendatacommunities.org/id/metropolitan-district-council/leeds,Leeds City Council,30/04/2016,Adult Social Care,Services For Older People Under 65 P/Dis,Third Party Payments,Home Care,568,01-Apr-2016,1604-00382,0.00,703.12,R,Affinity Trust,No
Http://opendatacommunities.org/id/metropolitan-district-council/leeds,Leeds City Council,30/04/2016,Adult Social Care,Services For Older People Under 65 P/Dis,Third Party Payments,Home Care,568,01-Apr-2016,1604-00383,0.00,255.68,R,Affinity Trust,No
Http://opendatacommunities.org/id/metropolitan-district-council/leeds,Leeds City Council,30/04/2016,Adult Social Care,Services For Older People Under 65 P/Dis,Third Party Payments,Home Care,568,01-Apr-2016,1604-00384,0.00,2240.76,R,Affinity Trust,No
Http://opendatacommunities.org/id/metropolitan-district-council/leeds,Leeds City Council,30/04/2016,Adult Social Care,Services For Adults Under 65 Mental/Dis,Third Party Payments,Home Care,568,01-Apr-2016,1604-00385,0.00,319.60,R,Affinity Trust,No
Http://opendatacommunities.org/id/metropolitan-district-council/leeds,Leeds City Council,30/04/2016,Adult Social Care,Services For Adults Under 65 Mental/Dis,Third Party Payments,Home Care,568,01-Apr-2016,1604-00386,0.00,319.60,R,Affinity Trust,No
Http://opendatacommunities.org/id/metropolitan-district-council/leeds,Leeds City Council,30/04/2016,Adult Social Care,Services For Older People Under 65 P/Dis,Third Party Payments,Home Care,568,01-Apr-2016,1604-00387,0.00,396.00,R,Affinity Trust,No
Http://opendatacommunities.org/id/metropolitan-district-council/leeds,Leeds City Council,30/04/2016,Adult Social Care,Services For Older People Under 65 P/Dis,Third Party Payments,Home Care,568,01-Apr-2016,1604-00388,0.00,506.61,R,Affinity Trust,No
Http://opendatacommunities.org/id/metropolitan-district-council/leeds,Leeds City Council,30/04/2016,Adult Social Care,Services For Older People Under 65 P/Dis,Third Party Payments,Home Care,568,01-Apr-2016,1604-00389,0.00,223.72,R,Affinity Trust,No
Http://opendatacommunities.org/id/metropolitan-district-council/leeds,Leeds City Council as Accountable Body,30/04/2016,Social Services Pooled Budgets,Jcs For People With Learning Disabilitie,Third Party Payments,Home Care,568,04-Apr-2016,1604-00390,0.00,511.36,R,Affinity Trust,No
Http://opendatacommunities.org/id/metropolitan-district-council/leeds,Leeds City Council as Accountable Body,30/04/2016,Social Services Pooled Budgets,Jcs For People With Learning Disabilitie,Third Party Payments,Day Centre,564,08-Apr-2016,1604-00391,0.00,1440.00,R,Affinity Trust,No
Http://opendatacommunities.org/id/metropolitan-district-council/leeds,Leeds City Council as Accountable Body,30/04/2016,Social Services Pooled Budgets,Jcs For People With Learning Disabilitie,Third Party Payments,Day Centre,564,08-Apr-2016,1604-00392,0.00,1080.00,R,Affinity Trust,No
Http://opendatacommunities.org/id/metropolitan-district-council/leeds,Leeds City Council as Accountable Body,30/04/2016,Social Services Pooled Budgets,Jcs For People With Learning Disabilitie,Third Party Payments,Home Care,568,11-Apr-2016,1604-00393,0.00,2011.20,R,Affinity Trust,No
Http://opendatacommunities.org/id/metropolitan-district-council/leeds,Leeds City Council as Accountable Body,30/04/2016,Social Services Pooled Budgets,Jcs For People With Learning Disabilitie,Third Party Payments,Home Care,568,11-Apr-2016,1604-00394,0.00,705.00,R,Affinity Trust,No
Http://opendatacommunities.org/id/metropolitan-district-council/leeds,Leeds City Council as Accountable Body,30/04/2016,Social Services Pooled Budgets,Jcs For People With Learning Disabilitie,Third Party Payments,Home Care,568,11-Apr-2016,1604-00395,0.00,2528.70,R,Affinity Trust,No
Http://opendatacommunities.org/id/metropolitan-district-council/leeds,Leeds City Council as Accountable Body,30/04/2016,Social Services Pooled Budgets,Jcs For People With Learning Disabilitie,Third Party Payments,Home Care,568,11-Apr-2016,1604-00396,0.00,855.00,R,Affinity Trust,No
Http://opendatacommunities.org/id/metropolitan-district-council/leeds,Leeds City Council as Accountable Body,30/04/2016,Social Services Pooled Budgets,Jcs For People With Learning Disabilitie,Third Party Payments,Home Care,568,11-Apr-2016,1604-00397,0.00,1559.04,R,Affinity Trust,No
Http://opendatacommunities.org/id/metropolitan-district-council/leeds,Leeds City Council as Accountable Body,30/04/2016,Social Services Pooled Budgets,Jcs For People With Learning Disabilitie,Third Party Payments,Home Care,568,11-Apr-2016,1604-00398,0.00,287.64,R,Affinity Trust,No
Http://opendatacommunities.org/id/metropolitan-district-council/leeds,Leeds City Council as Accountable Body,30/04/2016,Social Services Pooled Budgets,Jcs For People With Learning Disabilitie,Third Party Payments,Home Care,568,11-Apr-2016,1604-00399,0.00,336.40,R,Affinity Trust,No
Http://opendatacommunities.org/id/metropolitan-district-council/leeds,Leeds City Council as Accountable Body,30/04/2016,Social Services Pooled Budgets,Jcs For People With Learning Disabilitie,Third Party Payments,Home Care,568,11-Apr-2016,1604-00400,0.00,816.00,R,Affinity Trust,No
Http://opendatacommunities.org/id/metropolitan-district-council/leeds,Leeds City Council as Accountable Body,30/04/2016,Social Services Pooled Budgets,Jcs For People With Learning Disabilitie,Third Party Payments,Day Centre,564,11-Apr-2016,1604-00401,0.00,416.64,R,Affinity Trust,No
Http://opendatacommunities.org/id/metropolitan-district-council/leeds,Leeds City Council as Accountable Body,30/04/2016,Social Services Pooled Budgets,Jcs For People With Learning Disabilitie,Third Party Payments,Home Care,568,11-Apr-2016,1604-00402,0.00,767.04,R,Affinity Trust,No
Http://opendatacommunities.org/id/metropolitan-district-council/leeds,Leeds City Council as Accountable Body,30/04/2016,Social Services Pooled Budgets,Jcs For People With Learning Disabilitie,Third Party Payments,Home Care,568,11-Apr-2016,1604-00403,0.00,1022.72,R,Affinity Trust,No
Http://opendatacommunities.org/id/metropolitan-district-council/leeds,Leeds City Council as Accountable Body,30/04/2016,Social Services Pooled Budgets,Jcs For People With Learning Disabilitie,Third Party Payments,Home Care,568,11-Apr-2016,1604-00404,0.00,1122.00,R,Affinity Trust,No
Http://opendatacommunities.org/id/metropolitan-district-council/leeds,Leeds City Council as Accountable Body,30/04/2016,Social Services Pooled Budgets,Jcs For People With Learning Disabilitie,Third Party Payments,Home Care,568,11-Apr-2016,1604-00405,0.00,1211.04,R,Affinity Trust,No
Http://opendatacommunities.org/id/metropolitan-district-council/leeds,Leeds City Council as Accountable Body,30/04/2016,Social Services Pooled Budgets,Jcs For People With Learning Disabilitie,Third Party Payments,Home Care,568,11-Apr-2016,1604-00406,0.00,471.41,R,Affinity Trust,No
Http://opendatacommunities.org/id/metropolitan-district-council/leeds,Leeds City Council as Accountable Body,30/04/2016,Social Services Pooled Budgets,Jcs For People With Learning Disabilitie,Third Party Payments,Home Care,568,11-Apr-2016,1604-00407,0.00,1050.69,R,Affinity Trust,No
Http://opendatacommunities.org/id/metropolitan-district-council/leeds,Leeds City Council as Accountable Body,30/04/2016,Social Services Pooled Budgets,Jcs For People With Learning Disabilitie,Third Party Payments,Home Care,568,11-Apr-2016,1604-00408,0.00,511.36,R,Affinity Trust,No
Http://opendatacommunities.org/id/metropolitan-district-council/leeds,Leeds City Council as Accountable Body,30/04/2016,Social Services Pooled Budgets,Jcs For People With Learning Disabilitie,Third Party Payments,Home Care,568,11-Apr-2016,1604-00409,0.00,1150.56,R,Affinity Trust,No
Http://opendatacommunities.org/id/metropolitan-district-council/leeds,Leeds City Council as Accountable Body,30/04/2016,Social Services Pooled Budgets,Jcs For People With Learning Disabilitie,Third Party Payments,Home Care,568,11-Apr-2016,1604-00410,0.00,503.37,R,Affinity Trust,No
Http://opendatacommunities.org/id/metropolitan-district-council/leeds,Leeds City Council as Accountable Body,30/04/2016,Social Services Pooled Budgets,Jcs For People With Learning Disabilitie,Third Party Payments,Home Care,568,11-Apr-2016,1604-00411,0.00,639.20,R,Affinity Trust,No
Http://opendatacommunities.org/id/metropolitan-district-council/leeds,Leeds City Council as Accountable Body,30/04/2016,Social Services Pooled Budgets,Jcs For People With Learning Disabilitie,Third Party Payments,Home Care,568,11-Apr-2016,1604-00412,0.00,408.00,R,Affinity Trust,No
Http://opendatacommunities.org/id/metropolitan-district-council/leeds,Leeds City Council as Accountable Body,30/04/2016,Social Services Pooled Budgets,Jcs For People With Learning Disabilitie,Third Party Payments,Home Care,568,11-Apr-2016,1604-00413,0.00,1150.56,R,Affinity Trust,No
Http://opendatacommunities.org/id/metropolitan-district-council/leeds,Leeds City Council as Accountable Body,30/04/2016,Social Services Pooled Budgets,Jcs For People With Learning Disabilitie,Third Party Payments,Home Care,568,11-Apr-2016,1604-00414,0.00,2820.47,R,Affinity Trust,No
Http://opendatacommunities.org/id/metropolitan-district-council/leeds,Leeds City Council as Accountable Body,30/04/2016,Social Services Pooled Budgets,Jcs For People With Learning Disabilitie,Third Party Payments,Home Care,568,11-Apr-2016,1604-00415,0.00,300.00,R,Affinity Trust,No
Http://opendatacommunities.org/id/metropolitan-district-council/leeds,Leeds City Council as Accountable Body,30/04/2016,Social Services Pooled Budgets,Jcs For People With Learning Disabilitie,Third Party Payments,Home Care,568,11-Apr-2016,1604-00416,0.00,1398.25,R,Affinity Trust,No
Http://opendatacommunities.org/id/metropolitan-district-council/leeds,Leeds City Council as Accountable Body,30/04/2016,Social Services Pooled Budgets,Jcs For People With Learning Disabilitie,Third Party Payments,Home Care,568,11-Apr-2016,1604-00417,0.00,431.46,R,Affinity Trust,No
Http://opendatacommunities.org/id/metropolitan-district-council/leeds,Leeds City Council as Accountable Body,30/04/2016,Social Services Pooled Budgets,Jcs For People With Learning Disabilitie,Third Party Payments,Home Care,568,11-Apr-2016,1604-00418,0.00,511.36,R,Affinity Trust,No
Http://opendatacommunities.org/id/metropolitan-district-council/leeds,Leeds City Council as Accountable Body,30/04/2016,Social Services Pooled Budgets,Jcs For People With Learning Disabilitie,Third Party Payments,Home Care,568,11-Apr-2016,1604-00419,0.00,127.84,R,Affinity Trust,No
Http://opendatacommunities.org/id/metropolitan-district-council/leeds,Leeds City Council as Accountable Body,30/04/2016,Social Services Pooled Budgets,Jcs For People With Learning Disabilitie,Third Party Payments,Home Care,568,11-Apr-2016,1604-00420,0.00,306.48,R,Affinity Trust,No
Http://opendatacommunities.org/id/metropolitan-district-council/leeds,Leeds City Council as Accountable Body,30/04/2016,Social Services Pooled Budgets,Jcs For People With Learning Disabilitie,Third Party Payments,Home Care,568,11-Apr-2016,1604-00421,0.00,255.00,R,Affinity Trust,No
Http://opendatacommunities.org/id/metropolitan-district-council/leeds,Leeds City Council as Accountable Body,30/04/2016,Social Services Pooled Budgets,Jcs For People With Learning Disabilitie,Third Party Payments,Home Care,568,11-Apr-2016,1604-00422,0.00,941.92,R,Affinity Trust,No
Http://opendatacommunities.org/id/metropolitan-district-council/leeds,Leeds City Council,30/04/2016,Adult Social Care,Services For Adults Under 65 Mental/Dis,Third Party Payments,Home Care,568,15-Apr-2016,1604-00423,0.00,319.60,R,Affinity Trust,No
Http://opendatacommunities.org/id/metropolitan-district-council/leeds,Leeds City Council,30/04/2016,Adult Social Care,Services For Older People - 65 And Over,Third Party Payments,Home Care,568,29-Apr-2016,1604-00424,0.00,1076.48,R,Affinity Trust,No
Http://opendatacommunities.org/id/metropolitan-district-council/leeds,Leeds City Council,30/04/2016,Adult Social Care,Services For Older People Under 65 P/Dis,Third Party Payments,Home Care,568,29-Apr-2016,1604-00425,0.00,134.56,R,Affinity Trust,No
Http://opendatacommunities.org/id/metropolitan-district-council/leeds,Leeds City Council as Accountable Body,30/04/2016,Social Services Pooled Budgets,Jcs For People With Learning Disabilitie,Third Party Payments,Sheltered Accommodation,569,06-Apr-2016,1604-00426,0.00,173437.05,R,Affinity Trust North Divisional Office,No
Http://opendatacommunities.org/id/metropolitan-district-council/leeds,Leeds City Council as Accountable Body,30/04/2016,Social Services Pooled Budgets,Jcs For People With Learning Disabilitie,Third Party Payments,Residential,580,06-Apr-2016,1604-00427,0.00,-23349.54,R,Affinity Trust North Divisional Office,No
Http://opendatacommunities.org/id/metropolitan-district-council/leeds,Leeds City Council,30/04/2016,Environment & Housing,Parks and Countryside,Employees,Training & Development,70,07-Apr-2016,1604-00428,0.00,306.00,R,Afi-Uplift Limited,No
Http://opendatacommunities.org/id/metropolitan-district-council/leeds,Leeds City Council,30/04/2016,Environment & Housing,Parks and Countryside,Supplies and Services,Clothing & Uniforms,241,07-Apr-2016,1604-00429,0.00,100.00,R,Afi-Uplift Limited,No
Http://opendatacommunities.org/id/metropolitan-district-council/leeds,Leeds City Council,30/04/2016,Civic Enterprise Leeds,Business Support Centre,Supplies and Services,Operational Furniture And Equipment,203,01-Apr-2016,1604-00430,0.00,1008.30,R,Afm Europe Ltd,No
Http://opendatacommunities.org/id/metropolitan-district-council/leeds,Leeds City Council,30/04/2016,Central & Corporate,Human Resources,Employees,Occupational Health,85,29-Apr-2016,1604-00431,0.00,225.00,R,Agam Jung,No
Http://opendatacommunities.org/id/metropolitan-district-council/leeds,Leeds City Council,30/04/2016,Adult Social Care,Services For Older People - 65 And Over,Third Party Payments,Payments To Voluntary Organisations,561,01-Apr-2016,1604-00432,0.00,8024.75,R,Age Uk Leeds,No
Http://opendatacommunities.org/id/metropolitan-district-council/leeds,Leeds City Council,30/04/2016,Public Health,Public Health,Third Party Payments,Public Health Commissioned Services,526,01-Apr-2016,1604-00433,0.00,11416.00,R,Age Uk Leeds,No
Http://opendatacommunities.org/id/metropolitan-district-council/leeds,Leeds City Council,30/04/2016,Environment & Housing,SP Contracts & SECC,Third Party Payments,Supporting Ppl - Block Gross Chargeable,514,15-Apr-2016,1604-00434,0.00,3957.68,R,Age Uk Leeds,No
Http://opendatacommunities.org/id/metropolitan-district-council/leeds,Leeds City Council,30/04/2016,City Development,Libraries  Arts & Heritage,Supplies and Services,Bought In Professional Services,277,08-Apr-2016,1604-00435,0.00,1696.00,R,Agere Learning,No
Http://opendatacommunities.org/id/metropolitan-district-council/leeds,Leeds City Council,30/04/2016,City Development,Libraries  Arts & Heritage,Supplies and Services,Bought In Professional Services,277,22-Apr-2016,1604-00436,0.00,175.00,R,Agnis Smallwood,No
Http://opendatacommunities.org/id/metropolitan-district-council/leeds,Leeds City Council,30/04/2016,Adult Social Care,Services For Older People Under 65 P/Dis,Third Party Payments,Residential,580,06-Apr-2016,1604-00437,0.00,5598.40,R,Agricola House,No
Http://opendatacommunities.org/id/metropolitan-district-council/leeds,Leeds City Council,30/04/2016,Central & Corporate,Human Resources,Employees,Occupational Health,85,13-Apr-2016,1604-00438,0.00,100.00,R,Ahamad Hassan,No
Http://opendatacommunities.org/id/metropolitan-district-council/leeds,Leeds City Council,30/04/2016,Citizens and Communities,Communities,Transfer Payments,Direct Payments,626,11-Apr-2016,1604-00439,0.00,36.80,R,REDACTED PERSONAL DATA,No
Http://opendatacommunities.org/id/metropolitan-district-council/leeds,Leeds City Council,30/04/2016,Environment & Housing,Statutory Housing,Transport,Public Transport Expenses,310,19-Apr-2016,1604-00440,0.00,32.00,R,REDACTED PERSONAL DATA,No
Http://opendatacommunities.org/id/metropolitan-district-council/leeds,Leeds City Council,30/04/2016,Citizens and Communities,Elections  Licensing and Registration,Income,Licences  Registry & Land Charges,932,21-Apr-2016,1604-00441,0.00,23.00,R,REDACTED PERSONAL DATA,No
Http://opendatacommunities.org/id/metropolitan-district-council/leeds,Leeds City Council as Accountable Body,30/04/2016,Social Services Pooled Budgets,Leeds Community Equip Store Pooled Budgt,Supplies and Services,Other Equipment,203,01-Apr-2016,1604-00442,0.00,2463.80,R,Aidapt Bathrooms Ltd,No
Http://opendatacommunities.org/id/metropolitan-district-council/leeds,Leeds City Council as Accountable Body,30/04/2016,Social Services Pooled Budgets,Leeds Community Equip Store Pooled Budgt,Supplies and Services,Other Equipment,203,01-Apr-2016,1604-00443,0.00,1374.52,R,Aidapt Bathrooms Ltd,No
Http://opendatacommunities.org/id/metropolitan-district-council/leeds,Leeds City Council as Accountable Body,30/04/2016,Social Services Pooled Budgets,Leeds Community Equip Store Pooled Budgt,Supplies and Services,Other Equipment,203,01-Apr-2016,1604-00444,0.00,1125.00,R,Aidapt Bathrooms Ltd,No
Http://opendatacommunities.org/id/metropolitan-district-council/leeds,Leeds City Council as Accountable Body,30/04/2016,Social Services Pooled Budgets,Leeds Community Equip Store Pooled Budgt,Supplies and Services,Other Equipment,203,01-Apr-2016,1604-00445,0.00,778.00,R,Aidapt Bathrooms Ltd,No
Http://opendatacommunities.org/id/metropolitan-district-council/leeds,Leeds City Council as Accountable Body,30/04/2016,Social Services Pooled Budgets,Leeds Community Equip Store Pooled Budgt,Supplies and Services,Other Equipment,203,05-Apr-2016,1604-00446,0.00,1204.00,R,Aidapt Bathrooms Ltd,No
Http://opendatacommunities.org/id/metropolitan-district-council/leeds,Leeds City Council as Accountable Body,30/04/2016,Social Services Pooled Budgets,Leeds Community Equip Store Pooled Budgt,Supplies and Services,Other Equipment,203,08-Apr-2016,1604-00447,0.00,1125.00,R,Aidapt Bathrooms Ltd,No
Http://opendatacommunities.org/id/metropolitan-district-council/leeds,Leeds City Council as Accountable Body,30/04/2016,Social Services Pooled Budgets,Leeds Community Equip Store Pooled Budgt,Supplies and Services,Other Equipment,203,08-Apr-2016,1604-00448,0.00,449.40,R,Aidapt Bathrooms Ltd,No
Http://opendatacommunities.org/id/metropolitan-district-council/leeds,Leeds City Council as Accountable Body,30/04/2016,Social Services Pooled Budgets,Leeds Community Equip Store Pooled Budgt,Supplies and Services,Other Equipment,203,08-Apr-2016,1604-00449,0.00,449.40,R,Aidapt Bathrooms Ltd,No
Http://opendatacommunities.org/id/metropolitan-district-council/leeds,Leeds City Council as Accountable Body,30/04/2016,Social Services Pooled Budgets,Leeds Community Equip Store Pooled Budgt,Supplies and Services,Other Equipment,203,08-Apr-2016,1604-00450,0.00,449.40,R,Aidapt Bathrooms Ltd,No
Http://opendatacommunities.org/id/metropolitan-district-council/leeds,Leeds City Council as Accountable Body,30/04/2016,Social Services Pooled Budgets,Leeds Community Equip Store Pooled Budgt,Supplies and Services,Other Equipment,203,13-Apr-2016,1604-00451,0.00,88.00,R,Aidapt Bathrooms Ltd,No
Http://opendatacommunities.org/id/metropolitan-district-council/leeds,Leeds City Council as Accountable Body,30/04/2016,Social Services Pooled Budgets,Leeds Community Equip Store Pooled Budgt,Supplies and Services,Other Equipment,203,15-Apr-2016,1604-00452,0.00,1606.00,R,Aidapt Bathrooms Ltd,No
Http://opendatacommunities.org/id/metropolitan-district-council/leeds,Leeds City Council as Accountable Body,30/04/2016,Social Services Pooled Budgets,Leeds Community Equip Store Pooled Budgt,Supplies and Services,Other Equipment,203,20-Apr-2016,1604-00453,0.00,2596.20,R,Aidapt Bathrooms Ltd,No
Http://opendatacommunities.org/id/metropolitan-district-council/leeds,Leeds City Council as Accountable Body,30/04/2016,Social Services Pooled Budgets,Leeds Community Equip Store Pooled Budgt,Supplies and Services,Other Equipment,203,25-Apr-2016,1604-00454,0.00,449.40,R,Aidapt Bathrooms Ltd,No
Http://opendatacommunities.org/id/metropolitan-district-council/leeds,Leeds City Council as Accountable Body,30/04/2016,Social Services Pooled Budgets,Leeds Community Equip Store Pooled Budgt,Supplies and Services,Other Equipment,203,25-Apr-2016,1604-00455,0.00,449.40,R,Aidapt Bathrooms Ltd,No
Http://opendatacommunities.org/id/metropolitan-district-council/leeds,Leeds City Council as Accountable Body,30/04/2016,Social Services Pooled Budgets,Leeds Community Equip Store Pooled Budgt,Supplies and Services,Other Equipment,203,08-Apr-2016,1604-00456,0.00,413.00,R,Aidservice Ltd,No
Http://opendatacommunities.org/id/metropolitan-district-council/leeds,Leeds City Council as Accountable Body,30/04/2016,Social Services Pooled Budgets,Jcs For People With Learning Disabilitie,Supplies and Services,Other Equipment,203,20-Apr-2016,1604-00457,0.00,170.00,R,Aidservice Ltd,No
Http://opendatacommunities.org/id/metropolitan-district-council/leeds,Leeds City Council as Accountable Body,30/04/2016,Social Services Pooled Budgets,Jcs For People With Learning Disabilitie,Supplies and Services,Other Equipment,203,20-Apr-2016,1604-00458,0.00,168.00,R,Aidservice Ltd,No
Http://opendatacommunities.org/id/metropolitan-district-council/leeds,Leeds City Council as Accountable Body,30/04/2016,Social Services Pooled Budgets,Jcs For People With Learning Disabilitie,Supplies and Services,Other Equipment,203,20-Apr-2016,1604-00459,0.00,636.00,R,Aidservice Ltd,No
Http://opendatacommunities.org/id/metropolitan-district-council/leeds,Leeds City Council as Accountable Body,30/04/2016,Social Services Pooled Budgets,Jcs For People With Learning Disabilitie,Supplies and Services,Other Equipment,203,22-Apr-2016,1604-00460,0.00,180.00,R,Aidservice Ltd,No
Http://opendatacommunities.org/id/metropolitan-district-council/leeds,Leeds City Council as Accountable Body,30/04/2016,Social Services Pooled Budgets,Jcs For People With Learning Disabilitie,Supplies and Services,Other Equipment,203,22-Apr-2016,1604-00461,0.00,180.00,R,Aidservice Ltd,No
Http://opendatacommunities.org/id/metropolitan-district-council/leeds,Leeds City Council,30/04/2016,Childrens Services,Safeguarding Targeted & Specialist,Employees,Training & Development,70,13-Apr-2016,1604-00462,0.00,280.00,R,Aim Project,No
Http://opendatacommunities.org/id/metropolitan-district-council/leeds,Leeds City Council,30/04/2016,Strategic Accounts,Miscellaneous,Transfer Payments,Land Drainage Levies,665,29-Apr-2016,1604-00463,0.00,3615.02,R,Ainsty (2008) Internal Drainage Board,No
Http://opendatacommunities.org/id/metropolitan-district-council/leeds,Leeds City Council,30/04/2016,Environment & Housing,Leeds Building Services,Supplies and Services,Operational Materials,205,11-Apr-2016,1604-00464,0.00,55.00,R,Air Conditioning Accessories,No
Http://opendatacommunities.org/id/metropolitan-district-council/leeds,Leeds City Council,30/04/2016,Environment & Housing,Leeds Building Services,Supplies and Services,Operational Materials,205,15-Apr-2016,1604-00465,0.00,38.29,R,Air Conditioning Accessories,No
Http://opendatacommunities.org/id/metropolitan-district-council/leeds,Leeds City Council,30/04/2016,Environment & Housing,Leeds Building Services,Supplies and Services,Operational Materials,205,15-Apr-2016,1604-00466,0.00,132.00,R,Air Conditioning Accessories,No
Http://opendatacommunities.org/id/metropolitan-district-council/leeds,Leeds City Council,30/04/2016,Environment & Housing,Leeds Building Services,Supplies and Services,Operational Materials,205,15-Apr-2016,1604-00467,0.00,89.43,R,Air Conditioning Accessories,No
Http://opendatacommunities.org/id/metropolitan-district-council/leeds,Leeds City Council,30/04/2016,Environment & Housing,Leeds Building Services,Supplies and Services,Operational Materials,205,15-Apr-2016,1604-00468,0.00,14.80,R,Air Conditioning Accessories,No
Http://opendatacommunities.org/id/metropolitan-district-council/leeds,Leeds City Council,30/04/2016,Environment & Housing,Leeds Building Services,Supplies and Services,Operational Materials,205,15-Apr-2016,1604-00469,0.00,167.92,R,Air Conditioning Accessories,No
Http://opendatacommunities.org/id/metropolitan-district-council/leeds,Leeds City Council,30/04/2016,Environment & Housing,Leeds Building Services,Supplies and Services,Operational Materials,205,29-Apr-2016,1604-00470,0.00,31.90,R,Air Conditioning Accessories,No
Http://opendatacommunities.org/id/metropolitan-district-council/leeds,Leeds City Council,30/04/2016,Environment & Housing,Leeds Building Services,Supplies and Services,Operational Materials,205,29-Apr-2016,1604-00471,0.00,48.72,R,Air Conditioning Accessories,No
Http://opendatacommunities.org/id/metropolitan-district-council/leeds,Leeds City Council,30/04/2016,Civic Enterprise Leeds,Commercial Services  ,Supplies and Services,Operational Materials,205,24-Mar-2016,1604-00472,0.00,120.70,,Air Force Pneumati,Yes
Http://opendatacommunities.org/id/metropolitan-district-council/leeds,Leeds City Council,30/04/2016,Environment & Housing,Environmental Health,Supplies and Services,Other Hired And Contracted Services,265,13-Apr-2016,1604-00473,0.00,13.63,R,Air Liquide Uk,No
Http://opendatacommunities.org/id/metropolitan-district-council/leeds,Leeds City Council,30/04/2016,Environment & Housing,Environmental Health,Supplies and Services,Other Hired And Contracted Services,265,13-Apr-2016,1604-00474,0.00,13.63,R,Air Liquide Uk,No
Http://opendatacommunities.org/id/metropolitan-district-council/leeds,Leeds City Council,30/04/2016,Environment & Housing,Environmental Health,Supplies and Services,Other Hired And Contracted Services,265,13-Apr-2016,1604-00475,0.00,62.58,R,Air Liquide Uk,No
Http://opendatacommunities.org/id/metropolitan-district-council/leeds,Leeds City Council,30/04/2016,Environment & Housing,Leeds Building Services,Supplies and Services,Operational Materials,205,20-Apr-2016,1604-00476,0.00,42.00,R,Air Liquide Uk,No
Http://opendatacommunities.org/id/metropolitan-district-council/leeds,Leeds City Council,30/04/2016,Environment & Housing,Environmental Health,Supplies and Services,Other Hired And Contracted Services,265,21-Apr-2016,1604-00477,0.00,13.63,R,Air Liquide Uk,No
Http://opendatacommunities.org/id/metropolitan-district-council/leeds,Leeds City Council,30/04/2016,Environment & Housing,Leeds Building Services,Supplies and Services,Operational Materials,205,29-Apr-2016,1604-00478,0.00,146.70,R,Air Liquide Uk,No
Http://opendatacommunities.org/id/metropolitan-district-council/leeds,Leeds City Council,30/04/2016,Environment & Housing,Leeds Building Services,Supplies and Services,Operational Materials,205,29-Apr-2016,1604-00479,0.00,10.00,R,Air Liquide Uk,No
Http://opendatacommunities.org/id/metropolitan-district-council/leeds,Leeds City Council,30/04/2016,Environment & Housing,Leeds Building Services,Supplies and Services,Operational Materials,205,29-Apr-2016,1604-00480,0.00,152.40,R,Air Liquide Uk,No
Http://opendatacommunities.org/id/metropolitan-district-council/leeds,Leeds City Council,30/04/2016,Adult Social Care,Services For Adults Under 65 Mental/Dis,Third Party Payments,Residential,580,06-Apr-2016,1604-00481,0.00,6028.00,R,Aire House,No
Http://opendatacommunities.org/id/metropolitan-district-council/leeds,Leeds City Council as Accountable Body,30/04/2016,Social Services Pooled Budgets,Jcs For People With Learning Disabilitie,Third Party Payments,Residential,580,06-Apr-2016,1604-00482,0.00,3059.84,R,Aire House,No
Http://opendatacommunities.org/id/metropolitan-district-council/leeds,Leeds City Council,30/04/2016,City Development,Economic Development,Capital,Other Costs,7,27-Apr-2016,1604-00483,0.00,358627.30,C,Aire Valley Land Llp,No
Http://opendatacommunities.org/id/metropolitan-district-council/leeds,Leeds City Council,30/04/2016,Adult Social Care,Services For Older People - 65 And Over,Third Party Payments,Residential Care Dementia,571,06-Apr-2016,1604-00484,0.00,34432.70,R,Aire View Residential Home,No
Http://opendatacommunities.org/id/metropolitan-district-council/leeds,Leeds City Council,30/04/2016,Adult Social Care,Services For Older People - 65 And Over,Third Party Payments,Residential,580,06-Apr-2016,1604-00485,0.00,22394.24,R,Aire View Residential Home,No
Http://opendatacommunities.org/id/metropolitan-district-council/leeds,Leeds City Council,30/04/2016,Adult Social Care,Services For Older People - 65 And Over,Third Party Payments,Payments To Voluntary Organisations,561,01-Apr-2016,1604-00486,0.00,16560.00,R,Aireborough Voluntary Services,No
Http://opendatacommunities.org/id/metropolitan-district-council/leeds,Leeds City Council,30/04/2016,Adult Social Care,Services For Older People - 65 And Over,Third Party Payments,Residential Care Dementia,571,06-Apr-2016,1604-00487,0.00,6230.91,R,Airedale (Goldsborough),No
Http://opendatacommunities.org/id/metropolitan-district-council/leeds,Leeds City Council,30/04/2016,Adult Social Care,Services For Older People - 65 And Over,Third Party Payments,Residential,580,06-Apr-2016,1604-00488,0.00,21434.87,R,Airedale (Goldsborough),No
Http://opendatacommunities.org/id/metropolitan-district-council/leeds,Leeds City Council,30/04/2016,Adult Social Care,Services For Older People Under 65 P/Dis,Third Party Payments,Residential,580,06-Apr-2016,1604-00489,0.00,1891.68,R,Airedale (Goldsborough),No
Http://opendatacommunities.org/id/metropolitan-district-council/leeds,Leeds City Council,30/04/2016,City Development,Support Services  ,Transport,Public Transport Expenses,310,11-Mar-2016,1604-00490,0.00,17.27,,Airport Xpress,Yes
Http://opendatacommunities.org/id/metropolitan-district-council/leeds,Leeds City Council,30/04/2016,Central & Corporate,Strategy And Improvement  ,Transport,Public Transport Expenses,310,14-Mar-2016,1604-00491,0.00,25.71,,Airport Xpress,Yes
Http://opendatacommunities.org/id/metropolitan-district-council/leeds,Leeds City Council,30/04/2016,Adult Social Care,Services For Adults Under 65 Mental/Dis,Third Party Payments,Fees - Level 4,520,07-Apr-2016,1604-00492,0.00,175.00,R,Ait Mitra,No
Http://opendatacommunities.org/id/metropolitan-district-council/leeds,Leeds City Council,30/04/2016,Adult Social Care,Services For Adults Under 65 Mental/Dis,Third Party Payments,Fees - Level 4,520,12-Apr-2016,1604-00493,0.00,239.50,R,Ait Mitra,No
Http://opendatacommunities.org/id/metropolitan-district-council/leeds,Leeds City Council,30/04/2016,Adult Social Care,Services For Adults Under 65 Mental/Dis,Third Party Payments,Fees - Level 4,520,14-Apr-2016,1604-00494,0.00,239.50,R,Ait Mitra,No
Http://opendatacommunities.org/id/metropolitan-district-council/leeds,Leeds City Council,30/04/2016,Adult Social Care,Services For Adults Under 65 Mental/Dis,Third Party Payments,Fees - Level 4,520,21-Apr-2016,1604-00495,0.00,175.00,R,Ait Mitra,No
Http://opendatacommunities.org/id/metropolitan-district-council/leeds,Leeds City Council,30/04/2016,Adult Social Care,Services For Adults Under 65 Mental/Dis,Third Party Payments,Fees - Level 4,520,21-Apr-2016,1604-00496,0.00,175.00,R,Ait Mitra,No
Http://opendatacommunities.org/id/metropolitan-district-council/leeds,Leeds City Council,30/04/2016,Adult Social Care,Services For Adults Under 65 Mental/Dis,Third Party Payments,Fees - Level 4,520,21-Apr-2016,1604-00497,0.00,175.00,R,Ait Mitra,No
Http://opendatacommunities.org/id/metropolitan-district-council/leeds,Leeds City Council,30/04/2016,Adult Social Care,Services For Adults Under 65 Mental/Dis,Third Party Payments,Fees - Level 4,520,22-Apr-2016,1604-00498,0.00,175.00,R,Ait Mitra,No
Http://opendatacommunities.org/id/metropolitan-district-council/leeds,Leeds City Council,30/04/2016,Adult Social Care,Services For Adults Under 65 Mental/Dis,Third Party Payments,Fees - Level 4,520,22-Apr-2016,1604-00499,0.00,175.00,R,Ait Mitra,No
Http://opendatacommunities.org/id/metropolitan-district-council/leeds,Leeds City Council,30/04/2016,Adult Social Care,Services For Adults Under 65 Mental/Dis,Third Party Payments,Fees - Level 4,520,22-Apr-2016,1604-00500,0.00,175.00,R,Ait Mitra,No
Http://opendatacommunities.org/id/metropolitan-district-council/leeds,Leeds City Council,30/04/2016,Adult Social Care,Services For Adults Under 65 Mental/Dis,Third Party Payments,Fees - Level 4,520,22-Apr-2016,1604-00501,0.00,175.00,R,Ait Mitra,No
Http://opendatacommunities.org/id/metropolitan-district-council/leeds,Leeds City Council,30/04/2016,Adult Social Care,Services For Adults Under 65 Mental/Dis,Third Party Payments,Fees - Level 4,520,22-Apr-2016,1604-00502,0.00,175.00,R,Ait Mitra,No
Http://opendatacommunities.org/id/metropolitan-district-council/leeds,Leeds City Council,30/04/2016,Adult Social Care,Services For Adults Under 65 Mental/Dis,Third Party Payments,Fees - Level 4,520,26-Apr-2016,1604-00503,0.00,175.00,R,Ait Mitra,No
Http://opendatacommunities.org/id/metropolitan-district-council/leeds,Leeds City Council,30/04/2016,Adult Social Care,Services For Adults Under 65 Mental/Dis,Third Party Payments,Fees - Level 4,520,26-Apr-2016,1604-00504,0.00,261.00,R,Ait Mitra,No
Http://opendatacommunities.org/id/metropolitan-district-council/leeds,Leeds City Council,30/04/2016,Adult Social Care,Services For Adults Under 65 Mental/Dis,Third Party Payments,Fees - Level 4,520,26-Apr-2016,1604-00505,0.00,175.00,R,Ait Mitra,No
Http://opendatacommunities.org/id/metropolitan-district-council/leeds,Leeds City Council,30/04/2016,Adult Social Care,Services For Adults Under 65 Mental/Dis,Third Party Payments,Fees - Level 4,520,26-Apr-2016,1604-00506,0.00,175.00,R,Ait Mitra,No
Http://opendatacommunities.org/id/metropolitan-district-council/leeds,Leeds City Council,30/04/2016,Adult Social Care,Services For Adults Under 65 Mental/Dis,Third Party Payments,Fees - Level 4,520,26-Apr-2016,1604-00507,0.00,175.00,R,Ait Mitra,No
Http://opendatacommunities.org/id/metropolitan-district-council/leeds,Leeds City Council,30/04/2016,Adult Social Care,Services For Adults Under 65 Mental/Dis,Third Party Payments,Fees - Level 4,520,26-Apr-2016,1604-00508,0.00,175.00,R,Ait Mitra,No
Http://opendatacommunities.org/id/metropolitan-district-council/leeds,Leeds City Council,30/04/2016,Adult Social Care,Services For Adults Under 65 Mental/Dis,Third Party Payments,Fees - Level 4,520,26-Apr-2016,1604-00509,0.00,175.00,R,Ait Mitra,No
Http://opendatacommunities.org/id/metropolitan-district-council/leeds,Leeds City Council,30/04/2016,Adult Social Care,Services For Adults Under 65 Mental/Dis,Third Party Payments,Fees - Level 4,520,26-Apr-2016,1604-00510,0.00,175.00,R,Ait Mitra,No
Http://opendatacommunities.org/id/metropolitan-district-council/leeds,Leeds City Council,30/04/2016,Adult Social Care,Services For Adults Under 65 Mental/Dis,Third Party Payments,Fees - Level 4,520,26-Apr-2016,1604-00511,0.00,175.00,R,Ait Mitra,No
Http://opendatacommunities.org/id/metropolitan-district-council/leeds,Leeds City Council,30/04/2016,Adult Social Care,Services For Adults Under 65 Mental/Dis,Third Party Payments,Fees - Level 4,520,26-Apr-2016,1604-00512,0.00,175.00,R,Ait Mitra,No
Http://opendatacommunities.org/id/metropolitan-district-council/leeds,Leeds City Council,30/04/2016,Adult Social Care,Services For Adults Under 65 Mental/Dis,Third Party Payments,Fees - Level 4,520,26-Apr-2016,1604-00513,0.00,175.00,R,Ait Mitra,No
Http://opendatacommunities.org/id/metropolitan-district-council/leeds,Leeds City Council,30/04/2016,Adult Social Care,Services For Adults Under 65 Mental/Dis,Third Party Payments,Fees - Level 4,520,26-Apr-2016,1604-00514,0.00,175.00,R,Ait Mitra,No
Http://opendatacommunities.org/id/metropolitan-district-council/leeds,Leeds City Council,30/04/2016,Adult Social Care,Services For Adults Under 65 Mental/Dis,Third Party Payments,Fees - Level 4,520,26-Apr-2016,1604-00515,0.00,175.00,R,Ait Mitra,No
Http://opendatacommunities.org/id/metropolitan-district-council/leeds,Leeds City Council,30/04/2016,Adult Social Care,Services For Adults Under 65 Mental/Dis,Third Party Payments,Fees - Level 4,520,26-Apr-2016,1604-00516,0.00,175.00,R,Ait Mitra,No
Http://opendatacommunities.org/id/metropolitan-district-council/leeds,Leeds City Council,30/04/2016,Adult Social Care,Services For Adults Under 65 Mental/Dis,Third Party Payments,Fees - Level 4,520,26-Apr-2016,1604-00517,0.00,175.00,R,Ait Mitra,No
Http://opendatacommunities.org/id/metropolitan-district-council/leeds,Leeds City Council,30/04/2016,Adult Social Care,Services For Adults Under 65 Mental/Dis,Third Party Payments,Fees - Level 4,520,26-Apr-2016,1604-00518,0.00,175.00,R,Ait Mitra,No
Http://opendatacommunities.org/id/metropolitan-district-council/leeds,Leeds City Council,30/04/2016,Adult Social Care,Services For Adults Under 65 Mental/Dis,Third Party Payments,Fees - Level 4,520,26-Apr-2016,1604-00519,0.00,175.00,R,Ait Mitra,No
Http://opendatacommunities.org/id/metropolitan-district-council/leeds,Leeds City Council,30/04/2016,Adult Social Care,Services For Adults Under 65 Mental/Dis,Third Party Payments,Fees - Level 4,520,26-Apr-2016,1604-00520,0.00,175.00,R,Ait Mitra,No
Http://opendatacommunities.org/id/metropolitan-district-council/leeds,Leeds City Council,30/04/2016,Adult Social Care,Services For Adults Under 65 Mental/Dis,Third Party Payments,Fees - Level 4,520,26-Apr-2016,1604-00521,0.00,175.00,R,Ait Mitra,No
Http://opendatacommunities.org/id/metropolitan-district-council/leeds,Leeds City Council,30/04/2016,Adult Social Care,Services For Adults Under 65 Mental/Dis,Third Party Payments,Fees - Level 4,520,26-Apr-2016,1604-00522,0.00,175.00,R,Ait Mitra,No
Http://opendatacommunities.org/id/metropolitan-district-council/leeds,Leeds City Council,30/04/2016,Adult Social Care,Services For Adults Under 65 Mental/Dis,Third Party Payments,Fees - Level 4,520,28-Apr-2016,1604-00523,0.00,175.00,R,Ait Mitra,No
Http://opendatacommunities.org/id/metropolitan-district-council/leeds,Leeds City Council,30/04/2016,Adult Social Care,Services For Adults Under 65 Mental/Dis,Third Party Payments,Fees - Level 4,520,28-Apr-2016,1604-00524,0.00,175.00,R,Ait Mitra,No
Http://opendatacommunities.org/id/metropolitan-district-council/leeds,Leeds City Council,30/04/2016,Adult Social Care,Services For Adults Under 65 Mental/Dis,Third Party Payments,Fees - Level 4,520,28-Apr-2016,1604-00525,0.00,175.00,R,Ait Mitra,No
Http://opendatacommunities.org/id/metropolitan-district-council/leeds,Leeds City Council,30/04/2016,Adult Social Care,Services For Adults Under 65 Mental/Dis,Third Party Payments,Fees - Level 4,520,28-Apr-2016,1604-00526,0.00,175.00,R,Ait Mitra,No
Http://opendatacommunities.org/id/metropolitan-district-council/leeds,Leeds City Council,30/04/2016,Adult Social Care,Services For Adults Under 65 Mental/Dis,Third Party Payments,Fees - Level 4,520,28-Apr-2016,1604-00527,0.00,175.00,R,Ait Mitra,No
Http://opendatacommunities.org/id/metropolitan-district-council/leeds,Leeds City Council,30/04/2016,Adult Social Care,Services For Adults Under 65 Mental/Dis,Third Party Payments,Fees - Level 4,520,29-Apr-2016,1604-00528,0.00,175.00,R,Ait Mitra,No
Http://opendatacommunities.org/id/metropolitan-district-council/leeds,Leeds City Council,30/04/2016,Adult Social Care,Services For Adults Under 65 Mental/Dis,Third Party Payments,Fees - Level 4,520,29-Apr-2016,1604-00529,0.00,175.00,R,Ait Mitra,No
Http://opendatacommunities.org/id/metropolitan-district-council/leeds,Leeds City Council,30/04/2016,Adult Social Care,Services For Adults Under 65 Mental/Dis,Third Party Payments,Fees - Level 4,520,29-Apr-2016,1604-00530,0.00,175.00,R,Ait Mitra,No
Http://opendatacommunities.org/id/metropolitan-district-council/leeds,Leeds City Council as Accountable Body,30/04/2016,Social Services Pooled Budgets,Jcs For People With Learning Disabilitie,Third Party Payments,Residential,580,06-Apr-2016,1604-00531,0.00,6173.24,R,Aitch Care Homes,No
Http://opendatacommunities.org/id/metropolitan-district-council/leeds,Leeds City Council,30/04/2016,City Development,Recreation,Supplies and Services,Operational Materials,205,28-Apr-2016,1604-00532,0.00,397.08,R,Aitkens Sportsturf Ltd,No
Http://opendatacommunities.org/id/metropolitan-district-council/leeds,Leeds City Council,30/04/2016,Adult Social Care,Services For Older People - 65 And Over,Third Party Payments,Home Care,568,01-Apr-2016,1604-00533,0.00,12020.32,R,Aj Social Care,No
Http://opendatacommunities.org/id/metropolitan-district-council/leeds,Leeds City Council,30/04/2016,Adult Social Care,Services For Older People Under 65 P/Dis,Third Party Payments,Home Care,568,01-Apr-2016,1604-00534,0.00,8633.84,R,Aj Social Care,No
Http://opendatacommunities.org/id/metropolitan-district-council/leeds,Leeds City Council,30/04/2016,Environment & Housing,Leeds Building Services,Supplies and Services,Stores - Central And Other Depots,005,05-Apr-2016,1604-00535,0.00,177.10,R,Ajm Fixings & Power Tools Ltd,No
Http://opendatacommunities.org/id/metropolitan-district-council/leeds,Leeds City Council,30/04/2016,Central & Corporate,Commercial Services Trading Services,Supplies and Services,Operational Furniture And Equipment,203,06-Apr-2016,1604-00536,0.00,489.16,R,Ajm Fixings & Power Tools Ltd,No
Http://opendatacommunities.org/id/metropolitan-district-council/leeds,Leeds City Council,30/04/2016,Environment & Housing,Leeds Building Services,Supplies and Services,Stores - Central And Other Depots,005,06-Apr-2016,1604-00537,0.00,436.00,R,Ajm Fixings & Power Tools Ltd,No
Http://opendatacommunities.org/id/metropolitan-district-council/leeds,Leeds City Council,30/04/2016,Environment & Housing,Leeds Building Services,Supplies and Services,Operational Furniture And Equipment,203,07-Apr-2016,1604-00538,0.00,152.00,R,Ajm Fixings & Power Tools Ltd,No
Http://opendatacommunities.org/id/metropolitan-district-council/leeds,Leeds City Council,30/04/2016,Environment & Housing,Leeds Building Services,Supplies and Services,Operational Furniture And Equipment,203,08-Apr-2016,1604-00539,0.00,129.44,R,Ajm Fixings & Power Tools Ltd,No
Http://opendatacommunities.org/id/metropolitan-district-council/leeds,Leeds City Council,30/04/2016,Environment & Housing,Leeds Building Services,Supplies and Services,Stores - Central And Other Depots,005,11-Apr-2016,1604-00540,0.00,154.00,R,Ajm Fixings & Power Tools Ltd,No
Http://opendatacommunities.org/id/metropolitan-district-council/leeds,Leeds City Council,30/04/2016,Environment & Housing,Leeds Building Services,Supplies and Services,Stores - Central And Other Depots,005,11-Apr-2016,1604-00541,0.00,90.00,R,Ajm Fixings & Power Tools Ltd,No
Http://opendatacommunities.org/id/metropolitan-district-council/leeds,Leeds City Council,30/04/2016,Environment & Housing,Leeds Building Services,Supplies and Services,Operational Furniture And Equipment,203,11-Apr-2016,1604-00542,0.00,315.00,R,Ajm Fixings & Power Tools Ltd,No
Http://opendatacommunities.org/id/metropolitan-district-council/leeds,Leeds City Council,30/04/2016,Central & Corporate,Commercial Services Trading Services,Supplies and Services,Operational Materials,205,11-Apr-2016,1604-00543,0.00,55.62,R,Ajm Fixings & Power Tools Ltd,No
Http://opendatacommunities.org/id/metropolitan-district-council/leeds,Leeds City Council,30/04/2016,Environment & Housing,Leeds Building Services,Supplies and Services,Stores - Central And Other Depots,005,15-Apr-2016,1604-00544,0.00,150.70,R,Ajm Fixings & Power Tools Ltd,No
Http://opendatacommunities.org/id/metropolitan-district-council/leeds,Leeds City Council,30/04/2016,Central & Corporate,Commercial Services Trading Services,Supplies and Services,Operational Materials,205,20-Apr-2016,1604-00545,0.00,40.95,R,Ajm Fixings & Power Tools Ltd,No
Http://opendatacommunities.org/id/metropolitan-district-council/leeds,Leeds City Council,30/04/2016,Environment & Housing,Leeds Building Services,Supplies and Services,Stores - Central And Other Depots,005,25-Apr-2016,1604-00546,0.00,229.90,R,Ajm Fixings & Power Tools Ltd,No
Http://opendatacommunities.org/id/metropolitan-district-council/leeds,Leeds City Council,30/04/2016,Environment & Housing,Leeds Building Services,Supplies and Services,Operational Furniture And Equipment,203,26-Apr-2016,1604-00547,0.00,39.00,R,Ajm Fixings & Power Tools Ltd,No
Http://opendatacommunities.org/id/metropolitan-district-council/leeds,Leeds City Council,30/04/2016,Adult Social Care,Services For Older People - 65 And Over,Third Party Payments,Nursing Home,570,06-Apr-2016,1604-00548,0.00,1265.55,R,Akari Care Ltd,No
Http://opendatacommunities.org/id/metropolitan-district-council/leeds,Leeds City Council,30/04/2016,Adult Social Care,Services For Older People - 65 And Over,Third Party Payments,Payments To Voluntary Organisations,561,01-Apr-2016,1604-00549,0.00,3000.00,R,Al Khidmat Centre,No
Http://opendatacommunities.org/id/metropolitan-district-council/leeds,Leeds City Council,30/04/2016,Childrens Services,Learning Skills & Universal,Third Party Payments,Services Rendered By Other Organisations,511,22-Apr-2016,1604-00550,0.00,592.80,R,Alanna Cardiss,No
Http://opendatacommunities.org/id/metropolitan-district-council/leeds,Leeds City Council,30/04/2016,Environment & Housing,Environmental Action (East North East),Supplies and Services,Clothing & Uniforms,241,08-Apr-2016,1604-00551,0.00,25.90,R,Albert Haywood & Sons Ltd,No
Http://opendatacommunities.org/id/metropolitan-district-council/leeds,Leeds City Council as Accountable Body,30/04/2016,Social Services Pooled Budgets,Leeds Community Equip Store Pooled Budgt,Supplies and Services,Other Equipment,203,22-Apr-2016,1604-00552,0.00,247.30,R,Albion Electric Stores Ltd,No
Http://opendatacommunities.org/id/metropolitan-district-council/leeds,Leeds City Council as Accountable Body,30/04/2016,Social Services Pooled Budgets,Leeds Community Equip Store Pooled Budgt,Supplies and Services,Other Equipment,203,29-Apr-2016,1604-00553,0.00,14.00,R,Albion Electric Stores Ltd,No
Http://opendatacommunities.org/id/metropolitan-district-council/leeds,Leeds City Council,30/04/2016,City Development,Libraries  Arts & Heritage,Supplies and Services,Non-Recurring Grants,227,08-Apr-2016,1604-00554,0.00,1900.00,R,Alchemy Anew,No
Http://opendatacommunities.org/id/metropolitan-district-council/leeds,Leeds City Council,30/04/2016,Public Health,Public Health,Third Party Payments,Public Health Commissioned Services,526,14-Apr-2016,1604-00555,0.00,1300.00,R,Alcohol Concern,No
Http://opendatacommunities.org/id/metropolitan-district-council/leeds,Leeds City Council,30/04/2016,Environment & Housing,Waste Management,Supplies and Services,Other Hired And Contracted Services,265,21-Apr-2016,1604-00556,0.00,219.00,R,Alcontrol Uk Ltd,No
Http://opendatacommunities.org/id/metropolitan-district-council/leeds,Leeds City Council,30/04/2016,Childrens Services,Safeguarding Targeted & Specialist  ,Transfer Payments,Leaving Care Allowances,634,30-Mar-2016,1604-00557,0.00,16.26,,Aldi,Yes
Http://opendatacommunities.org/id/metropolitan-district-council/leeds,Leeds City Council,30/04/2016,City Development,Libraries  Arts & Heritage,Supplies and Services,Other Hired And Contracted Services,265,27-Apr-2016,1604-00558,0.00,250.00,R,Alejandro Wu Tan,No
Http://opendatacommunities.org/id/metropolitan-district-council/leeds,Leeds City Council,30/04/2016,Childrens Services,Safeguarding Targeted & Specialist,Support Services,Legal Disbursements,411,06-Apr-2016,1604-00559,0.00,36.00,R,Alere Toxicology Plc,No
Http://opendatacommunities.org/id/metropolitan-district-council/leeds,Leeds City Council,30/04/2016,Childrens Services,Safeguarding Targeted & Specialist,Support Services,Legal Disbursements,411,15-Apr-2016,1604-00560,0.00,36.00,R,Alere Toxicology Plc,No
Http://opendatacommunities.org/id/metropolitan-district-council/leeds,Leeds City Council,30/04/2016,Childrens Services,Safeguarding Targeted & Specialist,Support Services,Legal Disbursements,411,21-Apr-2016,1604-00561,0.00,67.66,R,Alere Toxicology Plc,No
Http://opendatacommunities.org/id/metropolitan-district-council/leeds,Leeds City Council,30/04/2016,Adult Social Care,Services For Older People - 65 And Over,Third Party Payments,Residential Care Dementia,571,06-Apr-2016,1604-00562,0.00,13893.51,R,Alexander Residential Home,No
Http://opendatacommunities.org/id/metropolitan-district-council/leeds,Leeds City Council,30/04/2016,Adult Social Care,Services For Older People - 65 And Over,Third Party Payments,Residential,580,06-Apr-2016,1604-00563,0.00,12459.70,R,Alexander Residential Home,No
Http://opendatacommunities.org/id/metropolitan-district-council/leeds,Leeds City Council,30/04/2016,Adult Social Care,Services For Older People Under 65 P/Dis,Third Party Payments,Residential,580,06-Apr-2016,1604-00564,0.00,1143.95,R,Alexander Residential Home,No
Http://opendatacommunities.org/id/metropolitan-district-council/leeds,Leeds City Council,30/04/2016,Citizens and Communities,Customer Access,Supplies and Services,Other Hired And Contracted Services,265,04-Apr-2016,1604-00565,0.00,696.25,R,Alexandra Costenco,No
Http://opendatacommunities.org/id/metropolitan-district-council/leeds,Leeds City Council,30/04/2016,Adult Social Care,Services For Older People - 65 And Over,Third Party Payments,Residential Care Dementia,571,06-Apr-2016,1604-00566,0.00,1399.76,R,Alexandra Court,No
Http://opendatacommunities.org/id/metropolitan-district-council/leeds,Leeds City Council,30/04/2016,Adult Social Care,Services For Older People - 65 And Over,Third Party Payments,Residential,580,06-Apr-2016,1604-00567,0.00,8876.32,R,Alexandra Court,No
Http://opendatacommunities.org/id/metropolitan-district-council/leeds,Leeds City Council,30/04/2016,Citizens and Communities,Customer Access,Supplies and Services,Other Hired And Contracted Services,265,04-Apr-2016,1604-00568,0.00,1133.25,R,Alexandra Hirst,No
Http://opendatacommunities.org/id/metropolitan-district-council/leeds,Leeds City Council,30/04/2016,Childrens Services,Learning Skills & Universal,Third Party Payments,Services Rendered By Other Organisations,511,20-Apr-2016,1604-00569,0.00,756.60,R,Alexandra Leigh,No
Http://opendatacommunities.org/id/metropolitan-district-council/leeds,Leeds City Council,30/04/2016,Civic Enterprise Leeds,Commercial Services,Supplies and Services,Other Hired And Contracted Services,265,29-Apr-2016,1604-00570,0.00,53.63,R,Alfa Tail Lifts Limited,No
Http://opendatacommunities.org/id/metropolitan-district-council/leeds,Leeds City Council,30/04/2016,Central & Corporate,Commercial Services Trading Services,Supplies and Services,Other Hired And Contracted Services,265,01-Apr-2016,1604-00571,0.00,3176.25,R,Alfred Bagnall & Sons (Leeds) Ltd,No
Http://opendatacommunities.org/id/metropolitan-district-council/leeds,Leeds City Council,30/04/2016,Central & Corporate,Commercial Services Trading Services,Supplies and Services,Other Hired And Contracted Services,265,06-Apr-2016,1604-00572,0.00,7021.00,R,Alfred Bagnall & Sons (Leeds) Ltd,No
Http://opendatacommunities.org/id/metropolitan-district-council/leeds,Leeds City Council,30/04/2016,Central & Corporate,Commercial Services Trading Services,Supplies and Services,Other Hired And Contracted Services,265,08-Apr-2016,1604-00573,0.00,830.00,R,Alfred Bagnall & Sons (Leeds) Ltd,No
Http://opendatacommunities.org/id/metropolitan-district-council/leeds,Leeds City Council,30/04/2016,Environment & Housing,Parks and Countryside,Supplies and Services,Other Hired And Contracted Services,265,29-Apr-2016,1604-00574,0.00,8360.00,R,Alfred Bagnall & Sons (Leeds) Ltd,No
Http://opendatacommunities.org/id/metropolitan-district-council/leeds,Leeds City Council,30/04/2016,City Development,Libraries  Arts & Heritage,Supplies and Services,Operational Furniture And Equipment,203,29-Apr-2016,1604-00575,0.00,1862.00,R,Alfred Bagnall & Sons (Leeds) Ltd,No
Http://opendatacommunities.org/id/metropolitan-district-council/leeds,Leeds City Council as Accountable Body,30/04/2016,Social Services Pooled Budgets,Leeds Community Equip Store Pooled Budgt,Supplies and Services,Other Equipment,203,29-Apr-2016,1604-00576,0.00,8330.00,R,Alfred Bagnall & Sons (Leeds) Ltd,No
Http://opendatacommunities.org/id/metropolitan-district-council/leeds,Leeds City Council,30/04/2016,Childrens Services,Safeguarding Targeted & Specialist,Third Party Payments,Section 17,551,14-Apr-2016,1604-00577,0.00,53.90,R,REDACTED PERSONAL DATA,No
Http://opendatacommunities.org/id/metropolitan-district-council/leeds,Leeds City Council,30/04/2016,Childrens Services,Safeguarding Targeted & Specialist,Third Party Payments,Section 17,551,21-Apr-2016,1604-00578,0.00,53.90,R,REDACTED PERSONAL DATA,No
Http://opendatacommunities.org/id/metropolitan-district-council/leeds,Leeds City Council,30/04/2016,Childrens Services,Safeguarding Targeted & Specialist,Third Party Payments,Section 17,551,28-Apr-2016,1604-00579,0.00,53.90,R,REDACTED PERSONAL DATA,No
Http://opendatacommunities.org/id/metropolitan-district-council/leeds,Leeds City Council,30/04/2016,Childrens Services,Learning Skills & Universal,Third Party Payments,Services Rendered By Other Organisations,511,20-Apr-2016,1604-00580,0.00,756.60,R,Alison Brook,No
Http://opendatacommunities.org/id/metropolitan-district-council/leeds,Leeds City Council,30/04/2016,Insurance,Insurance,Supplies and Services,Insurance Claims,248,12-Apr-2016,1604-00581,0.00,274.87,R,REDACTED PERSONAL DATA,No
Http://opendatacommunities.org/id/metropolitan-district-council/leeds,Leeds City Council,30/04/2016,Insurance,Insurance,Supplies and Services,Insurance Claims,248,19-Apr-2016,1604-00582,0.00,274.87,R,REDACTED PERSONAL DATA,No
Http://opendatacommunities.org/id/metropolitan-district-council/leeds,Leeds City Council,30/04/2016,City Development,Libraries  Arts & Heritage,Supplies and Services,Other Hired And Contracted Services,265,15-Apr-2016,1604-00583,0.00,300.00,R,Alison Glew,No
Http://opendatacommunities.org/id/metropolitan-district-council/leeds,Leeds City Council,30/04/2016,City Development,Libraries  Arts & Heritage,Supplies and Services,Bought In Professional Services,277,29-Apr-2016,1604-00584,0.00,4375.00,R,Alison Glew,No
Http://opendatacommunities.org/id/metropolitan-district-council/leeds,Leeds City Council,30/04/2016,City Development,Libraries  Arts & Heritage,Supplies and Services,Bought In Professional Services,277,29-Apr-2016,1604-00585,0.00,900.00,R,Alison Glew,No
Http://opendatacommunities.org/id/metropolitan-district-council/leeds,Leeds City Council as Accountable Body,30/04/2016,Social Services Pooled Budgets,Jcs For People With Learning Disabilitie,Third Party Payments,Home Care,568,25-Apr-2016,1604-00586,0.00,299.00,R,REDACTED PERSONAL DATA,No
Http://opendatacommunities.org/id/metropolitan-district-council/leeds,Leeds City Council,30/04/2016,Childrens Services,Safeguarding Targeted & Specialist,Transfer Payments,Leaving Care Allowances,634,08-Apr-2016,1604-00587,0.00,1050.53,R,REDACTED PERSONAL DATA,No
Http://opendatacommunities.org/id/metropolitan-district-council/leeds,Leeds City Council,30/04/2016,Childrens Services,Learning Skills & Universal,Supplies and Services,Bought In Professional Services,277,05-Apr-2016,1604-00588,0.00,100.00,R,Alison Smith,No
Http://opendatacommunities.org/id/metropolitan-district-council/leeds,Leeds City Council,30/04/2016,City Development,Libraries  Arts & Heritage,Supplies and Services,Other Hired And Contracted Services,265,15-Apr-2016,1604-00589,0.00,500.00,R,Alison Smith,No
Http://opendatacommunities.org/id/metropolitan-district-council/leeds,Leeds City Council,30/04/2016,City Development,Libraries  Arts & Heritage,Supplies and Services,Other Hired And Contracted Services,265,15-Apr-2016,1604-00590,0.00,150.00,R,Alison Smith,No
Http://opendatacommunities.org/id/metropolitan-district-council/leeds,Leeds City Council,30/04/2016,City Development,Libraries  Arts & Heritage,Supplies and Services,Other Hired And Contracted Services,265,15-Apr-2016,1604-00591,0.00,150.00,R,Alison Smith,No
Http://opendatacommunities.org/id/metropolitan-district-council/leeds,Leeds City Council,30/04/2016,Civic Enterprise Leeds,Commercial Services,Supplies and Services,Other Hired And Contracted Services,265,05-Apr-2016,1604-00592,0.00,194.93,R,REDACTED PERSONAL DATA,No
Http://opendatacommunities.org/id/metropolitan-district-council/leeds,Leeds City Council,30/04/2016,Civic Enterprise Leeds,Commercial Services,Supplies and Services,Other Hired And Contracted Services,265,05-Apr-2016,1604-00593,0.00,413.84,R,REDACTED PERSONAL DATA,No
Http://opendatacommunities.org/id/metropolitan-district-council/leeds,Leeds City Council,30/04/2016,Civic Enterprise Leeds,Commercial Services,Supplies and Services,Other Hired And Contracted Services,265,08-Apr-2016,1604-00594,0.00,206.92,R,REDACTED PERSONAL DATA,No
Http://opendatacommunities.org/id/metropolitan-district-council/leeds,Leeds City Council,30/04/2016,Civic Enterprise Leeds,Commercial Services,Supplies and Services,Other Hired And Contracted Services,265,25-Apr-2016,1604-00595,0.00,190.98,R,REDACTED PERSONAL DATA,No
Http://opendatacommunities.org/id/metropolitan-district-council/leeds,Leeds City Council,30/04/2016,Civic Enterprise Leeds,Commercial Services,Supplies and Services,Other Hired And Contracted Services,265,25-Apr-2016,1604-00596,0.00,198.00,R,REDACTED PERSONAL DATA,No
Http://opendatacommunities.org/id/metropolitan-district-council/leeds,Leeds City Council,30/04/2016,Childrens Services,Safeguarding Targeted & Specialist,Transfer Payments,Leaving Care Allowances,634,04-Apr-2016,1604-00597,0.00,30.00,R,All Abode,No
Http://opendatacommunities.org/id/metropolitan-district-council/leeds,Leeds City Council,30/04/2016,Childrens Services,Safeguarding Targeted & Specialist,Transfer Payments,Leaving Care Allowances,634,15-Apr-2016,1604-00598,0.00,60.00,R,All Abode,No
Http://opendatacommunities.org/id/metropolitan-district-council/leeds,Leeds City Council,30/04/2016,Childrens Services,Learning Skills & Universal,Supplies and Services,Teaching Furniture & Equipment,207,08-Apr-2016,1604-00599,0.00,3000.00,R,All Brass And Woodwind,No
Http://opendatacommunities.org/id/metropolitan-district-council/leeds,Leeds City Council,30/04/2016,Childrens Services,Safeguarding Targeted & Specialist,Supplies and Services,Conference Meetings,253,01-Apr-2016,1604-00600,0.00,45.00,R,All Saints Parish Church,No
Http://opendatacommunities.org/id/metropolitan-district-council/leeds,Leeds City Council,30/04/2016,Childrens Services,Safeguarding Targeted & Specialist,Supplies and Services,General Amenity For Clients/Residents,285,01-Apr-2016,1604-00601,0.00,720.00,R,All Star Youth Entertainment,No
Http://opendatacommunities.org/id/metropolitan-district-council/leeds,Leeds City Council,30/04/2016,Childrens Services,Learning Skills & Universal,Third Party Payments,Services Rendered By Other Organisations,511,20-Apr-2016,1604-00602,0.00,4539.60,R,All Stars Childcare,No
Http://opendatacommunities.org/id/metropolitan-district-council/leeds,Leeds City Council,30/04/2016,Childrens Services,Learning Skills & Universal,Third Party Payments,Services Rendered By Other Organisations,511,22-Apr-2016,1604-00603,0.00,13041.60,R,All Stars Childcare,No
Http://opendatacommunities.org/id/metropolitan-district-council/leeds,Leeds City Council,30/04/2016,Public Health,Public Health,Supplies and Services,Other Hired And Contracted Services,265,14-Apr-2016,1604-00604,0.00,3150.00,R,All Things Considered Theatre,No
Http://opendatacommunities.org/id/metropolitan-district-council/leeds,Leeds City Council,30/04/2016,Insurance,Insurance,Supplies and Services,Insurance Claims,248,22-Apr-2016,1604-00605,0.00,3500.00,R,REDACTED PERSONAL DATA,No
Http://opendatacommunities.org/id/metropolitan-district-council/leeds,Leeds City Council,30/04/2016,City Development,Economic Development,Premises,Maintenance Of Buildings,101,05-Apr-2016,1604-00606,0.00,475.00,R,Allan Davis,No
Http://opendatacommunities.org/id/metropolitan-district-council/leeds,Leeds City Council,30/04/2016,Civic Enterprise Leeds,Commercial Services  ,Premises,Plant and Machinery,102,10-Mar-2016,1604-00607,0.00,1825.00,,Allans Sound Commu,Yes
Http://opendatacommunities.org/id/metropolitan-district-council/leeds,Leeds City Council,30/04/2016,Environment & Housing,Parks and Countryside,Supplies and Services,Operational Furniture And Equipment,203,01-Apr-2016,1604-00608,0.00,345.00,R,Allansound Communications,No
Http://opendatacommunities.org/id/metropolitan-district-council/leeds,Leeds City Council,30/04/2016,Civic Enterprise Leeds,Facilities Management,Supplies and Services,Operational Furniture And Equipment,203,08-Apr-2016,1604-00609,0.00,45.00,R,Allansound Communications,No
Http://opendatacommunities.org/id/metropolitan-district-council/leeds,Leeds City Council as Accountable Body,30/04/2016,Social Services Pooled Budgets,Jcs For People With Learning Disabilitie,Third Party Payments,Sheltered Accommodation,569,06-Apr-2016,1604-00610,0.00,16596.04,R,Allerton Avenue,No
Http://opendatacommunities.org/id/metropolitan-district-council/leeds,Leeds City Council,30/04/2016,Strategic Accounts,Strategic,Supplies and Services,Non-Recurring Grants,227,01-Apr-2016,1604-00611,0.00,2608.00,R,Allerton Bywater Parish Council,No
Http://opendatacommunities.org/id/metropolitan-district-council/leeds,Leeds City Council,30/04/2016,Strategic Accounts,Strategic,Supplies and Services,Office Consumables,210,01-Apr-2016,1604-00612,0.00,31000.00,R,Allerton Bywater Parish Council,No
Http://opendatacommunities.org/id/metropolitan-district-council/leeds,Leeds City Council,30/04/2016,Adult Social Care,Services For Older People - 65 And Over,Third Party Payments,Residential Care Dementia,571,06-Apr-2016,1604-00613,0.00,942.36,R,Allerton Park N H,No
Http://opendatacommunities.org/id/metropolitan-district-council/leeds,Leeds City Council,30/04/2016,Environment & Housing,Parks and Countryside,Supplies and Services,Operational Materials,205,15-Apr-2016,1604-00614,0.00,2.50,R,Allflex Europe (Uk) Ltd,No
Http://opendatacommunities.org/id/metropolitan-district-council/leeds,Leeds City Council,30/04/2016,Central & Corporate,Finance,Supplies and Services,Bank Charges,263,01-Apr-2016,1604-00615,0.00,-160.73,R,Alliance & Leicester Commercial Bank,No
Http://opendatacommunities.org/id/metropolitan-district-council/leeds,Leeds City Council,30/04/2016,Strategic Landlord,Housing Management,Supplies and Services,Other Hired And Contracted Services,265,06-Apr-2016,1604-00616,0.00,299.01,R,Alliance & Leicester Commercial Bank,No
Http://opendatacommunities.org/id/metropolitan-district-council/leeds,Leeds City Council,30/04/2016,Central & Corporate,Finance,Supplies and Services,Bank Charges,263,06-Apr-2016,1604-00617,0.00,1.50,R,Alliance & Leicester Commercial Bank,No
Http://opendatacommunities.org/id/metropolitan-district-council/leeds,Leeds City Council,30/04/2016,Central & Corporate,Finance,Supplies and Services,Bank Charges,263,06-Apr-2016,1604-00618,0.00,192.14,R,Alliance & Leicester Commercial Bank,No
Http://opendatacommunities.org/id/metropolitan-district-council/leeds,Leeds City Council,30/04/2016,Central & Corporate,Finance,Supplies and Services,Bank Charges,263,06-Apr-2016,1604-00619,0.00,1060.24,R,Alliance & Leicester Commercial Bank,No
Http://opendatacommunities.org/id/metropolitan-district-council/leeds,Leeds City Council,30/04/2016,Central & Corporate,Finance,Supplies and Services,Bank Charges,263,06-Apr-2016,1604-00620,0.00,100.14,R,Alliance & Leicester Commercial Bank,No
Http://opendatacommunities.org/id/metropolitan-district-council/leeds,Leeds City Council,30/04/2016,Civic Enterprise Leeds,Commercial Services,Transport,Vehicle Spares,345,01-Apr-2016,1604-00621,0.00,445.50,R,Alliance Electronics Ltd,No
Http://opendatacommunities.org/id/metropolitan-district-council/leeds,Leeds City Council,30/04/2016,City Development,Highways,Supplies and Services,Other Hired And Contracted Services,265,12-Apr-2016,1604-00622,0.00,1121.76,R,Allied Exploration & Geotechnics Ltd,No
Http://opendatacommunities.org/id/metropolitan-district-council/leeds,Leeds City Council,30/04/2016,City Development,Highways,Supplies and Services,Other Hired And Contracted Services,265,12-Apr-2016,1604-00623,0.00,2095.50,R,Allied Exploration & Geotechnics Ltd,No
Http://opendatacommunities.org/id/metropolitan-district-council/leeds,Leeds City Council,30/04/2016,City Development,Highways,Supplies and Services,Other Hired And Contracted Services,265,12-Apr-2016,1604-00624,0.00,1192.99,R,Allied Exploration & Geotechnics Ltd,No
Http://opendatacommunities.org/id/metropolitan-district-council/leeds,Leeds City Council,30/04/2016,Childrens Services,Basic Need,Capital,Other Costs,7,12-Apr-2016,1604-00625,0.00,902.80,C,Allied Exploration & Geotechnics Ltd,No
Http://opendatacommunities.org/id/metropolitan-district-council/leeds,Leeds City Council,30/04/2016,City Development,Highways,Supplies and Services,Other Hired And Contracted Services,265,21-Apr-2016,1604-00626,0.00,452.80,R,Allied Exploration & Geotechnics Ltd,No
Http://opendatacommunities.org/id/metropolitan-district-council/leeds,Leeds City Council,30/04/2016,City Development,Highways,Capital,Other Costs,7,21-Apr-2016,1604-00627,0.00,1297.70,C,Allied Exploration & Geotechnics Ltd,No
Http://opendatacommunities.org/id/metropolitan-district-council/leeds,Leeds City Council,30/04/2016,City Development,Highways,Supplies and Services,Other Hired And Contracted Services,265,26-Apr-2016,1604-00628,0.00,9123.88,R,Allied Exploration & Geotechnics Ltd,No
Http://opendatacommunities.org/id/metropolitan-district-council/leeds,Leeds City Council,30/04/2016,City Development,Highways,Supplies and Services,Other Hired And Contracted Services,265,28-Apr-2016,1604-00629,0.00,2276.83,R,Allied Exploration & Geotechnics Ltd,No
Http://opendatacommunities.org/id/metropolitan-district-council/leeds,Leeds City Council,30/04/2016,City Development,Highways,Supplies and Services,Other Hired And Contracted Services,265,28-Apr-2016,1604-00630,0.00,20624.27,R,Allied Exploration & Geotechnics Ltd,No
Http://opendatacommunities.org/id/metropolitan-district-council/leeds,Leeds City Council,30/04/2016,Adult Social Care,Services For Older People - 65 And Over,Third Party Payments,Home Care,568,01-Apr-2016,1604-00631,0.00,76.50,R,Allied Healthcare,No
Http://opendatacommunities.org/id/metropolitan-district-council/leeds,Leeds City Council,30/04/2016,Adult Social Care,Services For Older People - 65 And Over,Third Party Payments,Home Care,568,01-Apr-2016,1604-00632,0.00,204.00,R,Allied Healthcare,No
Http://opendatacommunities.org/id/metropolitan-district-council/leeds,Leeds City Council,30/04/2016,Adult Social Care,Services For Older People Under 65 P/Dis,Third Party Payments,Home Care,568,01-Apr-2016,1604-00633,0.00,515.10,R,Allied Healthcare,No
Http://opendatacommunities.org/id/metropolitan-district-council/leeds,Leeds City Council as Accountable Body,30/04/2016,Social Services Pooled Budgets,Jcs For People With Learning Disabilitie,Third Party Payments,Home Care,568,01-Apr-2016,1604-00634,0.00,552.20,R,Allied Healthcare,No
Http://opendatacommunities.org/id/metropolitan-district-council/leeds,Leeds City Council as Accountable Body,30/04/2016,Social Services Pooled Budgets,Jcs For People With Learning Disabilitie,Third Party Payments,Home Care,568,01-Apr-2016,1604-00635,0.00,65.88,R,Allied Healthcare,No
Http://opendatacommunities.org/id/metropolitan-district-council/leeds,Leeds City Council as Accountable Body,30/04/2016,Social Services Pooled Budgets,Jcs For People With Learning Disabilitie,Third Party Payments,Home Care,568,01-Apr-2016,1604-00636,0.00,16474.93,R,Allied Healthcare,No
Http://opendatacommunities.org/id/metropolitan-district-council/leeds,Leeds City Council,30/04/2016,Adult Social Care,Services For Older People - 65 And Over,Third Party Payments,Home Care,568,08-Apr-2016,1604-00637,0.00,15005.77,R,Allied Healthcare,No
Http://opendatacommunities.org/id/metropolitan-district-council/leeds,Leeds City Council,30/04/2016,Adult Social Care,Services For Older People Under 65 P/Dis,Third Party Payments,Home Care,568,08-Apr-2016,1604-00638,0.00,415.18,R,Allied Healthcare,No
Http://opendatacommunities.org/id/metropolitan-district-council/leeds,Leeds City Council,30/04/2016,Adult Social Care,Services For Older People - 65 And Over,Third Party Payments,Home Care,568,08-Apr-2016,1604-00639,0.00,416.13,R,Allied Healthcare,No
Http://opendatacommunities.org/id/metropolitan-district-council/leeds,Leeds City Council,30/04/2016,Adult Social Care,Services For Older People - 65 And Over,Third Party Payments,Home Care,568,08-Apr-2016,1604-00640,0.00,2723.76,R,Allied Healthcare,No
Http://opendatacommunities.org/id/metropolitan-district-council/leeds,Leeds City Council,30/04/2016,Adult Social Care,Services For Older People Under 65 P/Dis,Third Party Payments,Home Care,568,08-Apr-2016,1604-00641,0.00,126.10,R,Allied Healthcare,No
Http://opendatacommunities.org/id/metropolitan-district-council/leeds,Leeds City Council,30/04/2016,Adult Social Care,Services For Older People - 65 And Over,Third Party Payments,Home Care,568,08-Apr-2016,1604-00642,0.00,73.01,R,Allied Healthcare,No
Http://opendatacommunities.org/id/metropolitan-district-council/leeds,Leeds City Council,30/04/2016,Adult Social Care,Services For Older People - 65 And Over,Third Party Payments,Home Care,568,12-Apr-2016,1604-00643,0.00,452.56,R,Allied Healthcare,No
Http://opendatacommunities.org/id/metropolitan-district-council/leeds,Leeds City Council as Accountable Body,30/04/2016,Social Services Pooled Budgets,Jcs For People With Learning Disabilitie,Third Party Payments,Home Care,568,15-Apr-2016,1604-00644,0.00,48.05,R,Allied Healthcare,No
Http://opendatacommunities.org/id/metropolitan-district-council/leeds,Leeds City Council as Accountable Body,30/04/2016,Social Services Pooled Budgets,Jcs For People With Learning Disabilitie,Third Party Payments,Home Care,568,15-Apr-2016,1604-00645,0.00,989.64,R,Allied Healthcare,No
Http://opendatacommunities.org/id/metropolitan-district-council/leeds,Leeds City Council as Accountable Body,30/04/2016,Social Services Pooled Budgets,Jcs For People With Learning Disabilitie,Third Party Payments,Home Care,568,15-Apr-2016,1604-00646,0.00,15129.74,R,Allied Healthcare,No
Http://opendatacommunities.org/id/metropolitan-district-council/leeds,Leeds City Council,30/04/2016,Adult Social Care,Services For Older People - 65 And Over,Third Party Payments,Home Care,568,15-Apr-2016,1604-00647,0.00,16943.20,R,Allied Healthcare,No
Http://opendatacommunities.org/id/metropolitan-district-council/leeds,Leeds City Council,30/04/2016,Adult Social Care,Services For Older People Under 65 P/Dis,Third Party Payments,Home Care,568,15-Apr-2016,1604-00648,0.00,1185.31,R,Allied Healthcare,No
Http://opendatacommunities.org/id/metropolitan-district-council/leeds,Leeds City Council as Accountable Body,30/04/2016,Social Services Pooled Budgets,Jcs For People With Learning Disabilitie,Third Party Payments,Home Care,568,15-Apr-2016,1604-00649,0.00,62.75,R,Allied Healthcare,No
Http://opendatacommunities.org/id/metropolitan-district-council/leeds,Leeds City Council as Accountable Body,30/04/2016,Social Services Pooled Budgets,Jcs For People With Learning Disabilitie,Third Party Payments,Home Care,568,15-Apr-2016,1604-00650,0.00,62.75,R,Allied Healthcare,No
Http://opendatacommunities.org/id/metropolitan-district-council/leeds,Leeds City Council,30/04/2016,Adult Social Care,Services For Older People - 65 And Over,Third Party Payments,Home Care,568,20-Apr-2016,1604-00651,0.00,15140.92,R,Allied Healthcare,No
Http://opendatacommunities.org/id/metropolitan-district-council/leeds,Leeds City Council,30/04/2016,Adult Social Care,Services For Older People Under 65 P/Dis,Third Party Payments,Home Care,568,20-Apr-2016,1604-00652,0.00,1297.91,R,Allied Healthcare,No
Http://opendatacommunities.org/id/metropolitan-district-council/leeds,Leeds City Council,30/04/2016,Adult Social Care,Services For Older People Under 65 P/Dis,Third Party Payments,Home Care,568,29-Apr-2016,1604-00653,0.00,326.40,R,Allied Healthcare,No
Http://opendatacommunities.org/id/metropolitan-district-council/leeds,Leeds City Council,30/04/2016,Childrens Services,Safeguarding Targeted & Specialist,Third Party Payments,Services Rendered By Voluntary Sector,505,29-Apr-2016,1604-00654,0.00,598.50,R,Allied Healthcare,No
Http://opendatacommunities.org/id/metropolitan-district-council/leeds,Leeds City Council,30/04/2016,Adult Social Care,Services For Older People Under 65 P/Dis,Third Party Payments,Home Care,568,29-Apr-2016,1604-00655,0.00,-18401.15,R,Allied Healthcare,No
Http://opendatacommunities.org/id/metropolitan-district-council/leeds,Leeds City Council,30/04/2016,Adult Social Care,Services For Older People - 65 And Over,Third Party Payments,Home Care,568,29-Apr-2016,1604-00656,0.00,17342.37,R,Allied Healthcare,No
Http://opendatacommunities.org/id/metropolitan-district-council/leeds,Leeds City Council,30/04/2016,Adult Social Care,Services For Older People Under 65 P/Dis,Third Party Payments,Home Care,568,29-Apr-2016,1604-00657,0.00,10996.71,R,Allied Healthcare,No
Http://opendatacommunities.org/id/metropolitan-district-council/leeds,Leeds City Council,30/04/2016,Adult Social Care,Services For Older People - 65 And Over,Third Party Payments,Home Care,568,29-Apr-2016,1604-00658,0.00,19764.98,R,Allied Healthcare,No
Http://opendatacommunities.org/id/metropolitan-district-council/leeds,Leeds City Council,30/04/2016,Adult Social Care,Services For Older People Under 65 P/Dis,Third Party Payments,Home Care,568,29-Apr-2016,1604-00659,0.00,1548.50,R,Allied Healthcare,No
Http://opendatacommunities.org/id/metropolitan-district-council/leeds,Leeds City Council,30/04/2016,Adult Social Care,Services For Older People - 65 And Over,Third Party Payments,Home Care,568,29-Apr-2016,1604-00660,0.00,11217.86,R,Allied Healthcare,No
Http://opendatacommunities.org/id/metropolitan-district-council/leeds,Leeds City Council,30/04/2016,Adult Social Care,Services For Older People Under 65 P/Dis,Third Party Payments,Home Care,568,29-Apr-2016,1604-00661,0.00,2146.88,R,Allied Healthcare,No
Http://opendatacommunities.org/id/metropolitan-district-council/leeds,Leeds City Council,30/04/2016,City Development,Libraries  Arts & Heritage,Supplies and Services,Other Hired And Contracted Services,265,29-Apr-2016,1604-00662,0.00,100.00,R,Allison Robinson,No
Http://opendatacommunities.org/id/metropolitan-district-council/leeds,Leeds City Council,30/04/2016,Central & Corporate,Democratic Services,Transport,Fuel (Non LCC Supplies),321,07-Apr-2016,1604-00663,0.00,145.44,R,Allstar Business Solutions Ltd,No
Http://opendatacommunities.org/id/metropolitan-district-council/leeds,Leeds City Council,30/04/2016,Childrens Services,Learning Skills & Universal,Transport,Fuel (Non LCC Supplies),321,07-Apr-2016,1604-00664,0.00,1975.48,R,Allstar Business Solutions Ltd,No
Http://opendatacommunities.org/id/metropolitan-district-council/leeds,Leeds City Council,30/04/2016,Environment & Housing,Parks and Countryside,Transport,Fuel (Non LCC Supplies),321,07-Apr-2016,1604-00665,0.00,30.73,R,Allstar Business Solutions Ltd,No
Http://opendatacommunities.org/id/metropolitan-district-council/leeds,Leeds City Council,30/04/2016,City Development,Highways,Transport,Fuel (Non LCC Supplies),321,07-Apr-2016,1604-00666,0.00,207.98,R,Allstar Business Solutions Ltd,No
Http://opendatacommunities.org/id/metropolitan-district-council/leeds,Leeds City Council,30/04/2016,Environment & Housing,Waste Management,Transport,Fuel (Non LCC Supplies),321,07-Apr-2016,1604-00667,0.00,1.20,R,Allstar Business Solutions Ltd,No
Http://opendatacommunities.org/id/metropolitan-district-council/leeds,Leeds City Council,30/04/2016,Environment & Housing,Strategic Housing Support,Supplies and Services,Other Hired And Contracted Services,265,13-Apr-2016,1604-00668,0.00,127.34,R,Alpesh Patel,No
Http://opendatacommunities.org/id/metropolitan-district-council/leeds,Leeds City Council,30/04/2016,Environment & Housing,SP Contracts & SECC,Third Party Payments,Supporting Ppl - Block Gross Chargeable,514,07-Apr-2016,1604-00669,0.00,58.89,R,Alpha (Rsl) Limited,No
Http://opendatacommunities.org/id/metropolitan-district-council/leeds,Leeds City Council,30/04/2016,Childrens Services,Safeguarding Targeted & Specialist,Support Services,Legal Disbursements,411,04-Apr-2016,1604-00670,0.00,490.00,R,Alpha Biolaboratories Limited,No
Http://opendatacommunities.org/id/metropolitan-district-council/leeds,Leeds City Council,30/04/2016,Childrens Services,Safeguarding Targeted & Specialist,Support Services,Legal Disbursements,411,04-Apr-2016,1604-00671,0.00,1545.00,R,Alpha Biolaboratories Limited,No
Http://opendatacommunities.org/id/metropolitan-district-council/leeds,Leeds City Council,30/04/2016,Childrens Services,Safeguarding Targeted & Specialist,Support Services,Legal Disbursements,411,08-Apr-2016,1604-00672,0.00,480.00,R,Alpha Biolaboratories Limited,No
Http://opendatacommunities.org/id/metropolitan-district-council/leeds,Leeds City Council,30/04/2016,Childrens Services,Safeguarding Targeted & Specialist,Support Services,Legal Disbursements,411,08-Apr-2016,1604-00673,0.00,220.00,R,Alpha Biolaboratories Limited,No
Http://opendatacommunities.org/id/metropolitan-district-council/leeds,Leeds City Council,30/04/2016,Childrens Services,Safeguarding Targeted & Specialist,Support Services,Legal Disbursements,411,08-Apr-2016,1604-00674,0.00,126.25,R,Alpha Biolaboratories Limited,No
Http://opendatacommunities.org/id/metropolitan-district-council/leeds,Leeds City Council,30/04/2016,Childrens Services,Safeguarding Targeted & Specialist,Support Services,Legal Disbursements,411,08-Apr-2016,1604-00675,0.00,181.68,R,Alpha Biolaboratories Limited,No
Http://opendatacommunities.org/id/metropolitan-district-council/leeds,Leeds City Council,30/04/2016,Childrens Services,Safeguarding Targeted & Specialist,Support Services,Legal Disbursements,411,13-Apr-2016,1604-00676,0.00,220.00,R,Alpha Biolaboratories Limited,No
Http://opendatacommunities.org/id/metropolitan-district-council/leeds,Leeds City Council,30/04/2016,Childrens Services,Safeguarding Targeted & Specialist,Support Services,Legal Disbursements,411,28-Apr-2016,1604-00677,0.00,360.00,R,Alpha Biolaboratories Limited,No
Http://opendatacommunities.org/id/metropolitan-district-council/leeds,Leeds City Council,30/04/2016,Childrens Services,Safeguarding Targeted & Specialist,Third Party Payments,Placement Support,550,01-Apr-2016,1604-00678,0.00,15.00,R,Alpha Hospitals Sheffield Patient Acc,No
Http://opendatacommunities.org/id/metropolitan-district-council/leeds,Leeds City Council,30/04/2016,Childrens Services,Safeguarding Targeted & Specialist,Third Party Payments,Placement Support,550,08-Apr-2016,1604-00679,0.00,15.00,R,Alpha Hospitals Sheffield Patient Acc,No
Http://opendatacommunities.org/id/metropolitan-district-council/leeds,Leeds City Council,30/04/2016,Childrens Services,Safeguarding Targeted & Specialist,Third Party Payments,Placement Support,550,12-Apr-2016,1604-00680,0.00,125.00,R,Alpha Hospitals Sheffield Patient Acc,No
Http://opendatacommunities.org/id/metropolitan-district-council/leeds,Leeds City Council,30/04/2016,Childrens Services,Safeguarding Targeted & Specialist,Third Party Payments,Placement Support,550,15-Apr-2016,1604-00681,0.00,15.00,R,Alpha Hospitals Sheffield Patient Acc,No
Http://opendatacommunities.org/id/metropolitan-district-council/leeds,Leeds City Council,30/04/2016,Childrens Services,Safeguarding Targeted & Specialist,Third Party Payments,Placement Support,550,22-Apr-2016,1604-00682,0.00,35.00,R,Alpha Hospitals Sheffield Patient Acc,No
Http://opendatacommunities.org/id/metropolitan-district-council/leeds,Leeds City Council,30/04/2016,Childrens Services,Safeguarding Targeted & Specialist,Third Party Payments,Placement Support,550,29-Apr-2016,1604-00683,0.00,15.00,R,Alpha Hospitals Sheffield Patient Acc,No
Http://opendatacommunities.org/id/metropolitan-district-council/leeds,Leeds City Council,30/04/2016,Central & Corporate,Technology,Supplies and Services,Computer Software & Equipment,214,29-Apr-2016,1604-00684,0.00,-1990.00,R,Alt Delivery Ltd,No
Http://opendatacommunities.org/id/metropolitan-district-council/leeds,Leeds City Council,30/04/2016,Central & Corporate,Technology,Supplies and Services,Computer Software & Equipment,214,29-Apr-2016,1604-00685,0.00,11940.00,R,Alt Delivery Ltd,No
Http://opendatacommunities.org/id/metropolitan-district-council/leeds,Leeds City Council,30/04/2016,Civic Enterprise Leeds,Corporate Property Management,Premises,Maintenance Of Buildings,101,08-Apr-2016,1604-00686,0.00,206.00,R,Alternative Drainage Company Ltd,No
Http://opendatacommunities.org/id/metropolitan-district-council/leeds,Leeds City Council,30/04/2016,Childrens Services,Safeguarding Targeted & Specialist  ,Supplies and Services,Holidays-  Service Users,284,03-Mar-2016,1604-00687,0.00,145.40,,Alton Towers,Yes
Http://opendatacommunities.org/id/metropolitan-district-council/leeds,Leeds City Council,30/04/2016,Childrens Services,Safeguarding Targeted & Specialist  ,Supplies and Services,Holidays-  Service Users,284,03-Mar-2016,1604-00688,0.00,145.40,,Alton Towers,Yes
Http://opendatacommunities.org/id/metropolitan-district-council/leeds,Leeds City Council,30/04/2016,Adult Social Care,Services For Older People - 65 And Over,Third Party Payments,Nursing Home,570,06-Apr-2016,1604-00689,0.00,2883.04,R,Alwoodley Nursing Home,No
Http://opendatacommunities.org/id/metropolitan-district-council/leeds,Leeds City Council,30/04/2016,Strategic Accounts,Strategic,Supplies and Services,Non-Recurring Grants,227,01-Apr-2016,1604-00690,0.00,1009.00,R,Alwoodley Parish Council,No
Http://opendatacommunities.org/id/metropolitan-district-council/leeds,Leeds City Council,30/04/2016,Strategic Accounts,Strategic,Supplies and Services,Office Consumables,210,01-Apr-2016,1604-00691,0.00,36720.00,R,Alwoodley Parish Council,No
Http://opendatacommunities.org/id/metropolitan-district-council/leeds,Leeds City Council,30/04/2016,Childrens Services,Partnership Development & Leadership,Employees,Training & Development,70,28-Apr-2016,1604-00692,0.00,1322.20,R,REDACTED PERSONAL DATA,No
Http://opendatacommunities.org/id/metropolitan-district-council/leeds,Leeds City Council,30/04/2016,Childrens Services,Learning Skills & Universal,Third Party Payments,Services Rendered By Other Organisations,511,22-Apr-2016,1604-00693,0.00,1185.60,R,REDACTED PERSONAL DATA,No
Http://opendatacommunities.org/id/metropolitan-district-council/leeds,Leeds City Council,30/04/2016,Childrens Services,Safeguarding Targeted & Specialist,Third Party Payments,Section 17,551,08-Apr-2016,1604-00694,0.00,507.00,R,REDACTED PERSONAL DATA,No
Http://opendatacommunities.org/id/metropolitan-district-council/leeds,Leeds City Council,30/04/2016,Childrens Services,Learning Skills & Universal,Third Party Payments,Services Rendered By Other Organisations,511,22-Apr-2016,1604-00695,0.00,592.80,R,REDACTED PERSONAL DATA,No
Http://opendatacommunities.org/id/metropolitan-district-council/leeds,Leeds City Council,30/04/2016,Childrens Services,Learning Skills & Universal,Third Party Payments,Services Rendered By Other Organisations,511,20-Apr-2016,1604-00696,0.00,1513.20,R,Amanda Wharton,No
Http://opendatacommunities.org/id/metropolitan-district-council/leeds,Leeds City Council,30/04/2016,Childrens Services,Learning Skills & Universal,Third Party Payments,Services Rendered By Other Organisations,511,22-Apr-2016,1604-00697,0.00,592.80,R,Amanda Wharton,No
Http://opendatacommunities.org/id/metropolitan-district-council/leeds,Leeds City Council,30/04/2016,Environment & Housing,Leeds Building Services,Supplies and Services,Operational Furniture And Equipment,203,15-Apr-2016,1604-00698,0.00,91.50,R,Amari Plastics Plc,No
Http://opendatacommunities.org/id/metropolitan-district-council/leeds,Leeds City Council,30/04/2016,Environment & Housing,Leeds Building Services,Supplies and Services,Operational Materials,205,20-Apr-2016,1604-00699,0.00,462.20,R,Amari Plastics Plc,No
Http://opendatacommunities.org/id/metropolitan-district-council/leeds,Leeds City Council,30/04/2016,Environment & Housing,Leeds Building Services,Supplies and Services,Operational Materials,205,20-Apr-2016,1604-00700,0.00,200.00,R,Amari Plastics Plc,No
Http://opendatacommunities.org/id/metropolitan-district-council/leeds,Leeds City Council,30/04/2016,Childrens Services,Learning Skills & Universal,Third Party Payments,Services Rendered By Other Organisations,511,20-Apr-2016,1604-00701,0.00,6809.40,R,Amazing Grace Early Years Childcare,No
Http://opendatacommunities.org/id/metropolitan-district-council/leeds,Leeds City Council,30/04/2016,Childrens Services,Learning Skills & Universal,Third Party Payments,Services Rendered By Other Organisations,511,22-Apr-2016,1604-00702,0.00,13041.60,R,Amazing Grace Early Years Childcare,No
Http://opendatacommunities.org/id/metropolitan-district-council/leeds,Leeds City Council,30/04/2016,City Development,Recreation,Supplies and Services,Operational Furniture And Equipment,203,08-Apr-2016,1604-00703,0.00,2814.73,R,Amazon Leisure Uk Ltd,No
Http://opendatacommunities.org/id/metropolitan-district-council/leeds,Leeds City Council,30/04/2016,City Development,Recreation,Supplies and Services,Operational Furniture And Equipment,203,11-Apr-2016,1604-00704,0.00,173.20,R,Amazon Leisure Uk Ltd,No
Http://opendatacommunities.org/id/metropolitan-district-council/leeds,Leeds City Council,30/04/2016,City Development,Recreation,Supplies and Services,Operational Furniture And Equipment,203,20-Apr-2016,1604-00705,0.00,105.00,R,Amazon Leisure Uk Ltd,No
Http://opendatacommunities.org/id/metropolitan-district-council/leeds,Leeds City Council,30/04/2016,City Development,Recreation,Supplies and Services,Operational Furniture And Equipment,203,28-Apr-2016,1604-00706,0.00,105.00,R,Amazon Leisure Uk Ltd,No
Http://opendatacommunities.org/id/metropolitan-district-council/leeds,Leeds City Council,30/04/2016,Childrens Services,Learning Skills & Universal  ,Supplies and Services,Office Consumables,210,29-Feb-2016,1604-00707,0.00,-79.00,,Amazon Prime,Yes
Http://opendatacommunities.org/id/metropolitan-district-council/leeds,Leeds City Council,30/04/2016,Strategic Landlord,Property And Contracts  ,Supplies and Services,Computer Software & Equipment,214,03-Mar-2016,1604-00708,0.00,-79.00,,Amazon Prime,Yes
Http://opendatacommunities.org/id/metropolitan-district-council/leeds,Leeds City Council,30/04/2016,Childrens Services,Safeguarding Targeted & Specialist  ,Third Party Payments,Section 17,551,30-Mar-2016,1604-00709,0.00,79.00,,Amazon Prime,Yes
Http://opendatacommunities.org/id/metropolitan-district-council/leeds,Leeds City Council,30/04/2016,Citizens And Communities,Communities  ,Supplies and Services,Office Consumables,210,02-Mar-2016,1604-00710,0.00,48.98,,Amazon Svcs Europe sar,Yes
Http://opendatacommunities.org/id/metropolitan-district-council/leeds,Leeds City Council,30/04/2016,City Development,Libraries  Arts & Heritage  ,Supplies and Services,Operational Materials,205,02-Mar-2016,1604-00711,0.00,37.50,,Amazon Svcs Europe sar,Yes
Http://opendatacommunities.org/id/metropolitan-district-council/leeds,Leeds City Council,30/04/2016,Childrens Services,Learning Skills & Universal  ,Supplies and Services,Books & Audio-Visual Materials,206,03-Mar-2016,1604-00712,0.00,4.78,,Amazon Svcs Europe sar,Yes
Http://opendatacommunities.org/id/metropolitan-district-council/leeds,Leeds City Council,30/04/2016,Citizens And Communities,Customer Access  ,Supplies and Services,Operational Furniture And Equipment,203,07-Mar-2016,1604-00713,0.00,8.71,,Amazon Svcs Europe sar,Yes
Http://opendatacommunities.org/id/metropolitan-district-council/leeds,Leeds City Council,30/04/2016,City Development,Recreation  ,Supplies and Services,Operational Furniture And Equipment,203,16-Mar-2016,1604-00714,0.00,10.37,,Amazon Svcs Europe sar,Yes
Http://opendatacommunities.org/id/metropolitan-district-council/leeds,Leeds City Council,30/04/2016,City Development,Libraries  Arts & Heritage  ,Supplies and Services,Books & Audio-Visual Materials,206,16-Mar-2016,1604-00715,0.00,24.17,,Amazon Svcs Europe sar,Yes
Http://opendatacommunities.org/id/metropolitan-district-council/leeds,Leeds City Council,30/04/2016,Adult Social Care,Assessment And Care Management  ,Supplies and Services,Books & Audio-Visual Materials,206,21-Mar-2016,1604-00716,0.00,54.17,,Amazon Svcs Europe sar,Yes
Http://opendatacommunities.org/id/metropolitan-district-council/leeds,Leeds City Council,30/04/2016,City Development,Libraries  Arts & Heritage  ,Supplies and Services,Books & Audio-Visual Materials,206,28-Mar-2016,1604-00717,0.00,7.84,,Amazon Svcs Europe sar,Yes
Http://opendatacommunities.org/id/metropolitan-district-council/leeds,Leeds City Council,30/04/2016,Civic Enterprise Leeds,Commercial Services  ,Supplies and Services,Operational Furniture And Equipment,203,29-Feb-2016,1604-00718,0.00,95.61,,Amazon UK Marketplace,Yes
Http://opendatacommunities.org/id/metropolitan-district-council/leeds,Leeds City Council,30/04/2016,City Development,Libraries  Arts & Heritage  ,Supplies and Services,Books & Audio-Visual Materials,206,29-Feb-2016,1604-00719,0.00,25.70,,Amazon UK Marketplace,Yes
Http://opendatacommunities.org/id/metropolitan-district-council/leeds,Leeds City Council,30/04/2016,City Development,Libraries  Arts & Heritage  ,Supplies and Services,Books & Audio-Visual Materials,206,29-Feb-2016,1604-00720,0.00,39.99,,Amazon UK Marketplace,Yes
Http://opendatacommunities.org/id/metropolitan-district-council/leeds,Leeds City Council,30/04/2016,Childrens Services,Learning Skills & Universal  ,Supplies and Services,Teaching Materials,202,29-Feb-2016,1604-00721,0.00,7.60,,Amazon UK Marketplace,Yes
Http://opendatacommunities.org/id/metropolitan-district-council/leeds,Leeds City Council,30/04/2016,City Development,Libraries  Arts & Heritage  ,Supplies and Services,Books & Audio-Visual Materials,206,29-Feb-2016,1604-00722,0.00,9.88,,Amazon UK Marketplace,Yes
Http://opendatacommunities.org/id/metropolitan-district-council/leeds,Leeds City Council,30/04/2016,City Development,Libraries  Arts & Heritage  ,Supplies and Services,Operational Materials,205,01-Mar-2016,1604-00723,0.00,7.80,,Amazon UK Marketplace,Yes
Http://opendatacommunities.org/id/metropolitan-district-council/leeds,Leeds City Council,30/04/2016,Adult Social Care,Services For Adults Under 65 Learn/Dis  ,Employees,Basic Pay,1,01-Mar-2016,1604-00724,0.00,14.99,,Amazon UK Marketplace,Yes
Http://opendatacommunities.org/id/metropolitan-district-council/leeds,Leeds City Council,30/04/2016,City Development,Libraries  Arts & Heritage  ,Supplies and Services,Books & Audio-Visual Materials,206,01-Mar-2016,1604-00725,0.00,13.54,,Amazon UK Marketplace,Yes
Http://opendatacommunities.org/id/metropolitan-district-council/leeds,Leeds City Council,30/04/2016,Childrens Services,Safeguarding Targeted & Specialist  ,Third Party Payments,Section 17,551,01-Mar-2016,1604-00726,0.00,298.00,,Amazon UK Marketplace,Yes
Http://opendatacommunities.org/id/metropolitan-district-council/leeds,Leeds City Council,30/04/2016,Childrens Services,Learning Skills & Universal  ,Supplies and Services,Teaching Materials,202,01-Mar-2016,1604-00727,0.00,2.81,,Amazon UK Marketplace,Yes
Http://opendatacommunities.org/id/metropolitan-district-council/leeds,Leeds City Council,30/04/2016,City Development,Planning & Sustainable Development  ,Supplies and Services,Consultancy Services,259,01-Mar-2016,1604-00728,0.00,27.44,,Amazon UK Marketplace,Yes
Http://opendatacommunities.org/id/metropolitan-district-council/leeds,Leeds City Council,30/04/2016,Childrens Services,Partnership Development & Leadership  ,Employees,Best Value Training,70,02-Mar-2016,1604-00729,0.00,35.99,,Amazon UK Marketplace,Yes
Http://opendatacommunities.org/id/metropolitan-district-council/leeds,Leeds City Council,30/04/2016,City Development,Libraries  Arts & Heritage  ,Supplies and Services,Books & Audio-Visual Materials,206,02-Mar-2016,1604-00730,0.00,9.49,,Amazon UK Marketplace,Yes
Http://opendatacommunities.org/id/metropolitan-district-council/leeds,Leeds City Council,30/04/2016,Citizens And Communities,Customer Access  ,Supplies and Services,Office Consumables,210,02-Mar-2016,1604-00731,0.00,116.67,,Amazon UK Marketplace,Yes
Http://opendatacommunities.org/id/metropolitan-district-council/leeds,Leeds City Council,30/04/2016,City Development,Libraries  Arts & Heritage  ,Supplies and Services,Operational Materials,205,02-Mar-2016,1604-00732,0.00,20.97,,Amazon UK Marketplace,Yes
Http://opendatacommunities.org/id/metropolitan-district-council/leeds,Leeds City Council,30/04/2016,Environment & Housing,Environmental Health  ,Supplies and Services,Operational Materials,205,02-Mar-2016,1604-00733,0.00,3.36,,Amazon UK Marketplace,Yes
Http://opendatacommunities.org/id/metropolitan-district-council/leeds,Leeds City Council,30/04/2016,Childrens Services,Learning Skills & Universal  ,Supplies and Services,Teaching Materials,202,02-Mar-2016,1604-00734,0.00,16.00,,Amazon UK Marketplace,Yes
Http://opendatacommunities.org/id/metropolitan-district-council/leeds,Leeds City Council,30/04/2016,Childrens Services,Learning Skills & Universal  ,Supplies and Services,Teaching Materials,202,02-Mar-2016,1604-00735,0.00,279.13,,Amazon UK Marketplace,Yes
Http://opendatacommunities.org/id/metropolitan-district-council/leeds,Leeds City Council,30/04/2016,Childrens Services,Safeguarding Targeted & Specialist  ,Supplies and Services,Office Consumables,210,02-Mar-2016,1604-00736,0.00,2.30,,Amazon UK Marketplace,Yes
Http://opendatacommunities.org/id/metropolitan-district-council/leeds,Leeds City Council,30/04/2016,Childrens Services,Learning Skills & Universal  ,Supplies and Services,Operational Materials,205,02-Mar-2016,1604-00737,0.00,56.50,,Amazon UK Marketplace,Yes
Http://opendatacommunities.org/id/metropolitan-district-council/leeds,Leeds City Council,30/04/2016,Childrens Services,Learning Skills & Universal  ,Supplies and Services,Teaching Materials,202,02-Mar-2016,1604-00738,0.00,30.36,,Amazon UK Marketplace,Yes
Http://opendatacommunities.org/id/metropolitan-district-council/leeds,Leeds City Council,30/04/2016,Childrens Services,Learning Skills & Universal  ,Supplies and Services,Teaching Materials,202,03-Mar-2016,1604-00739,0.00,2.46,,Amazon UK Marketplace,Yes
Http://opendatacommunities.org/id/metropolitan-district-council/leeds,Leeds City Council,30/04/2016,Childrens Services,Learning Skills & Universal  ,Supplies and Services,Teaching Materials,202,03-Mar-2016,1604-00740,0.00,147.00,,Amazon UK Marketplace,Yes
Http://opendatacommunities.org/id/metropolitan-district-council/leeds,Leeds City Council,30/04/2016,City Development,Libraries  Arts & Heritage  ,Supplies and Services,Operational Materials,205,03-Mar-2016,1604-00741,0.00,4.24,,Amazon UK Marketplace,Yes
Http://opendatacommunities.org/id/metropolitan-district-council/leeds,Leeds City Council,30/04/2016,Childrens Services,Learning Skills & Universal  ,Supplies and Services,Books & Audio-Visual Materials,206,03-Mar-2016,1604-00742,0.00,2.34,,Amazon UK Marketplace,Yes
Http://opendatacommunities.org/id/metropolitan-district-council/leeds,Leeds City Council,30/04/2016,City Development,Libraries  Arts & Heritage  ,Supplies and Services,Books & Audio-Visual Materials,206,03-Mar-2016,1604-00743,0.00,22.74,,Amazon UK Marketplace,Yes
Http://opendatacommunities.org/id/metropolitan-district-council/leeds,Leeds City Council,30/04/2016,Childrens Services,Learning Skills & Universal  ,Supplies and Services,Teaching Materials,202,03-Mar-2016,1604-00744,0.00,7.84,,Amazon UK Marketplace,Yes
Http://opendatacommunities.org/id/metropolitan-district-council/leeds,Leeds City Council,30/04/2016,Central & Corporate,Commercial Services Trading Services  ,Supplies and Services,Operational Materials,205,03-Mar-2016,1604-00745,0.00,6.44,,Amazon UK Marketplace,Yes
Http://opendatacommunities.org/id/metropolitan-district-council/leeds,Leeds City Council,30/04/2016,Childrens Services,Learning Skills & Universal  ,Supplies and Services,Books & Audio-Visual Materials,206,03-Mar-2016,1604-00746,0.00,2.34,,Amazon UK Marketplace,Yes
Http://opendatacommunities.org/id/metropolitan-district-council/leeds,Leeds City Council,30/04/2016,Childrens Services,Learning Skills & Universal  ,Supplies and Services,Books & Audio-Visual Materials,206,03-Mar-2016,1604-00747,0.00,4.09,,Amazon UK Marketplace,Yes
Http://opendatacommunities.org/id/metropolitan-district-council/leeds,Leeds City Council,30/04/2016,Childrens Services,Learning Skills & Universal  ,Supplies and Services,Teaching Materials,202,04-Mar-2016,1604-00748,0.00,95.70,,Amazon UK Marketplace,Yes
Http://opendatacommunities.org/id/metropolitan-district-council/leeds,Leeds City Council,30/04/2016,Central & Corporate,Strategy And Improvement  ,Supplies and Services,Books & Audio-Visual Materials,206,04-Mar-2016,1604-00749,0.00,6.95,,Amazon UK Marketplace,Yes
Http://opendatacommunities.org/id/metropolitan-district-council/leeds,Leeds City Council,30/04/2016,Childrens Services,Learning Skills & Universal  ,Supplies and Services,Teaching Materials,202,05-Mar-2016,1604-00750,0.00,51.84,,Amazon UK Marketplace,Yes
Http://opendatacommunities.org/id/metropolitan-district-council/leeds,Leeds City Council,30/04/2016,Childrens Services,Learning Skills & Universal  ,Supplies and Services,Teaching Materials,202,05-Mar-2016,1604-00751,0.00,20.94,,Amazon UK Marketplace,Yes
Http://opendatacommunities.org/id/metropolitan-district-council/leeds,Leeds City Council,30/04/2016,Civic Enterprise Leeds,Commercial Services  ,Supplies and Services,Operational Furniture And Equipment,203,06-Mar-2016,1604-00752,0.00,29.78,,Amazon UK Marketplace,Yes
Http://opendatacommunities.org/id/metropolitan-district-council/leeds,Leeds City Council,30/04/2016,Childrens Services,Partnership Development & Leadership  ,Supplies and Services,Office Consumables,210,07-Mar-2016,1604-00753,0.00,39.58,,Amazon UK Marketplace,Yes
Http://opendatacommunities.org/id/metropolitan-district-council/leeds,Leeds City Council,30/04/2016,Childrens Services,Learning Skills & Universal  ,Supplies and Services,Teaching Furniture & Equipment,207,07-Mar-2016,1604-00754,0.00,45.96,,Amazon UK Marketplace,Yes
